{"text_format":"1","workbook":"xlsx","n_sheets":7,"sheets":["BASE RP","Gráfico1","A-GF-F004 Información","A-GF-F005 Supervisión","A-GF-F006 Equivalente","A-GF-F017 Lista","Criterios"],"not_rendered":{"charts":2,"images":3,"macros":1,"external_links":1,"defined_names":11,"comments":0,"pivot_tables":0},"unopened":[{"sheet":"Gráfico1","index":1,"reason":"not_a_worksheet"}],"bounds":{"document_bytes":16777216,"sheet_cells":100000,"rows_first":2000,"rows_last":500,"rows_between":2000,"halvings":0,"cell_chars":16384,"cell_head_chars":4096},"cells_cut":0,"cells_raw":0,"read":"whole","date_system":"1900"}

{"sheet":"BASE RP","index":0,"n_rows":382,"n_cols":40,"rows_kept":382,"cut":false,"hidden":true,"merged":[]}
["NO OLVIDAR ORDENAR EL LISTADO, DEJANDO LOS NIT ARRIBA",null,null,null,null,null,null,"2016-03-01",null,"14:30:00"]
["Identificacion","Numero Documento Soporte 1","Numero Documento Soporte 2","Numero Documento Soporte 3","Numero Documento Soporte 4","Numero Documento","Fecha de Registro","Fecha de Creacion","Estado","Dependencia","Dependencia Descripcion","Rubro","Descripcion","Fuente","Recurso","Situacion","Valor Inicial","Valor Operaciones","Valor Actual","Saldo por Utilizar","Tipo Identificacion","Identificacion","Nombre Razon Social","Medio de Pago","Tipo Cuenta","Numero Cuenta","Estado Cuenta","Entidad Nit","Entidad Descripcion","Solicitud CDP","CDP","Compromisos","Cuentas por Pagar","Obligaciones","Ordenes de Pago","Reintegros","Fecha Documento Soporte","Tipo Documento Soporte","Numero Documento Soporte","Observaciones"]
[{"$f":"+V3+0","v":1049615243},{"$f":"IFERROR(MID(AM3,SEARCH(\"CTO.\",AM3)+5,7),0)","v":0},{"$f":"IFERROR(MID(AM3,SEARCH(\"CTO \",AM3)+4,7),0)","v":0},{"$f":"IFERROR(AM3+0,0)","v":12020},{"$f":"B3+C3+D3","v":12020},120,"2020-01-07 00:00:00","2020-01-07 19:21:04","Con Obligacion","02","IDEAM-GG-SECRETARIA GENERAL","A-02-02-02-008-002","SERVICIOS JURÍDICOS Y CONTABLES","Nación","RECURSOS CORRIENTES","CSF",79834000,0,79834000,66900000,"Cédula de Ciudadanía","1049615243","MUÑOZ LOPEZ MARIA FERNANDA","Abono en cuenta","Ahorro","24045743027","Activa","860007335","BCSC S A","120","120","120","32220, 86420","41720, 96720","17556220, 46531920",null,"2020-01-07 00:00:00","CONTRATO DE PRESTACION DE SERVICIOS - PROFESIONALES","0012020","RENGLON 024, ACT PAA 00, ORFEO 2020200000033 PRESTAR LOS SERVICIOS PROFESIONALES EN LA OFICINA ASESORA JURÍDICA DEL INSTITUTO EN ASUNTOS DE CARÁCTER PRECONTRACTUAL, CONTRACTUAL Y POST-CONTRACTUAL QUE SE REQUIERAN."]
[9540261,0,0,22020,22020,220,"2020-01-07 00:00:00","2020-01-07 19:31:02","Con Obligacion","02","IDEAM-GG-SECRETARIA GENERAL","A-02-02-02-008-002","SERVICIOS JURÍDICOS Y CONTABLES","Nación","RECURSOS CORRIENTES","CSF",79834000,0,79834000,63332000,"Cédula de Ciudadanía","9540261","LANCHEROS BUITRAGO IVAN LEONARDO","Abono en cuenta","Ahorro","0466700019931","Activa","860034313","BANCO DAVIVIENDA S.A.","720","720","220","32420, 98820, 115820","42020, 106920, 123520","17556720, 49002820, 56350720",null,"2020-01-07 00:00:00","CONTRATO DE PRESTACION DE SERVICIOS - PROFESIONALES","0022020","RENGLON 035, ACT PAA 00, PRESTAR LOS SERVICIOS PROFESIONALES EN LA OFICINA ASESORA JURÍDICA DEL INSTITUTO EN ASUNTOS DE CARÁCTER PRECONTRACTUAL, CONTRACTUAL Y POST-CONTRACTUAL QUE SE REQUIERAN."]
[{"$f":"+V5+0","v":33676985},{"$f":"IFERROR(MID(AM5,SEARCH(\"CTO.\",AM5)+5,7),0)","v":0},{"$f":"IFERROR(MID(AM5,SEARCH(\"CTO \",AM5)+4,7),0)","v":0},{"$f":"IFERROR(AM5+0,0)","v":32020},{"$f":"B5+C5+D5","v":32020},320,"2020-01-07 00:00:00","2020-01-07 19:51:11","Con Obligacion","02","IDEAM-GG-SECRETARIA GENERAL","A-02-02-02-008-002","SERVICIOS JURÍDICOS Y CONTABLES","Propios","OTROS RECURSOS DE TESORERIA","CSF",87710000,0,87710000,73500000,"Cédula de Ciudadanía","33676985","PAEZ CUESTA SANDRA MILENA","Abono en cuenta","Ahorro","24522517624","Activa","860007335","BCSC S A","520","520","320","54720, 104720","60720, 112920","23921820, 50123520",null,"2020-01-07 00:00:00","CONTRATO DE PRESTACION DE SERVICIOS - PROFESIONALES","0032020","RENGLON 028, ACT PAA 00, BRINDAR APOYO A LA SECRETARÍA GENERAL EN LA REVISIÓN Y SEGUIMIENTO DE LOS GRUPOS ADSCRITOS A ESTA."]
[1128266621,0,0,42020,42020,420,"2020-01-07 00:00:00","2020-01-07 20:07:46","Con Obligacion","02","IDEAM-GG-SECRETARIA GENERAL","A-02-02-02-008-002","SERVICIOS JURÍDICOS Y CONTABLES","Nación","RECURSOS CORRIENTES","CSF",79834000,0,79834000,66900000,"Cédula de Ciudadanía","1128266621","CALDERON GOMEZ PAULA JULIET","Abono en cuenta","Ahorro","27216575879","Activa","890903938","BANCOLOMBIA S.A.","920","820","420","30620, 84820","40120, 94720","17553920, 44733120",null,"2020-01-07 00:00:00","CONTRATO DE PRESTACION DE SERVICIOS - PROFESIONALES","0042020","RENGLON 036, ACT PAA 00, PRESTAR LOS SERVICIOS PROFESIONALES EN LA OFICINA ASESORA JURÍDICA DEL INSTITUTO EN ASUNTOS DE CARÁCTER PRECONTRACTUAL, CONTRACTUAL Y POST-CONTRACTUAL DE LOS PROCESOS DE SELECCIÓN QUE SE REQUIERAN"]
[1013602988,0,0,52020,52020,520,"2020-01-07 00:00:00","2020-01-07 20:13:37","Con Obligacion","02","IDEAM-GG-SECRETARIA GENERAL","A-02-02-02-008-003","OTROS SERVICIOS PROFESIONALES, CIENTÍFICOS Y TÉCNICOS","Propios","OTROS RECURSOS DE TESORERIA","CSF",63724000,0,63724000,53400000,"Cédula de Ciudadanía","1013602988","QUINCHE BEDOYA JEISSON RICARDO","Abono en cuenta","Ahorro","58294005810","Activa","890903938","BANCOLOMBIA S.A.","220","220","520","35720, 75420","44820, 88220","18159020, 42986020",null,"2020-01-07 00:00:00","CONTRATO DE PRESTACION DE SERVICIOS - PROFESIONALES","0052020","RENGLON 025, ACT PAA 00, PRESTAR LOS SERVICIOS PROFESIONALES EN EL GRUPO DE PRESUPUESTO PARA EL ANÁLISIS, VALIDACIÓN Y REGISTRO DE LAS OPERACIONES ASOCIADAS A LA EJECUCIÓN PRESUPUESTAL CON REFERENCIA A SUS MODIFICACIONES, ASÍ COMO EL REGISTRO PRESUPU"]
[79876185,0,0,62020,62020,620,"2020-01-07 00:00:00","2020-01-07 20:23:07","Con Obligacion","02","IDEAM-GG-SECRETARIA GENERAL","A-02-02-02-008-003","OTROS SERVICIOS PROFESIONALES, CIENTÍFICOS Y TÉCNICOS","Propios","OTROS RECURSOS DE TESORERIA","CSF",63724000,0,63724000,53400000,"Cédula de Ciudadanía","79876185","RIVEROS MORERA JAIME ORLANDO","Abono en cuenta","Ahorro","007270748689","Activa","860034313","BANCO DAVIVIENDA S.A.","320","320","620","35620, 81720","44720, 88320","18158820, 42986120",null,"2020-01-07 00:00:00","CONTRATO DE PRESTACION DE SERVICIOS - PROFESIONALES","0062020","RENGLON 026, ACT PAA 00, PRESTAR LOS SERVICIOS PROFESIONALES EN EL GRUPO DE PRESUPUESTO PARA LA CONSOLIDACIÓN, VALIDACIÓN; ANÁLISIS FINANCIERO, SEGUIMIENTO DE LA EJECUCIÓN Y DEMÁS ACTIVIDADES CONCERNIENTES AL GRUPO DE PRESUPUESTO"]
[1110452773,0,0,72020,72020,720,"2020-01-07 00:00:00","2020-01-07 20:28:50","Con Obligacion","02","IDEAM-GG-SECRETARIA GENERAL","A-02-02-02-008-002","SERVICIOS JURÍDICOS Y CONTABLES","Propios","OTROS RECURSOS DE TESORERIA","CSF",87710000,0,87710000,73500000,"Cédula de Ciudadanía","1110452773","TOVAR LUCUARA CESAR AUGUSTO","Abono en cuenta","Ahorro","14172971238","Activa","890903938","BANCOLOMBIA S.A.","420","420","720","45120, 45220, 94220","53920, 102420","21878520, 48994520",null,"2020-01-07 00:00:00","CONTRATO DE PRESTACION DE SERVICIOS - PROFESIONALES","0072020","RENGLON 027, ACT PAA 00, PRESTAR LOS SERVICIOS EN LA SECRETARIA GENERAL, REALIZANDO EL SEGUIMIENTO A LAS POLÍTICAS Y PLANES INSTITUCIONES A SU CARGO GENERANDO ESTRATEGIAS PARA SU IMPLEMENTACIÓN, ASÍ COMO LA REVISIÓN DE INFORMES A ENTES EXTERNOS"]
[30395082,0,0,82020,82020,820,"2020-01-07 00:00:00","2020-01-07 20:43:00","Con Obligacion","02","IDEAM-GG-SECRETARIA GENERAL","A-02-02-02-008-003","OTROS SERVICIOS PROFESIONALES, CIENTÍFICOS Y TÉCNICOS","Nación","RECURSOS CORRIENTES","CSF",56763000,0,56763000,47700000,"Cédula de Ciudadanía","30395082","RICARDO GOMEZ SANDRA PATRICIA","Abono en cuenta","Ahorro","001001147397","Activa","860034594","SCOTIABANK COLPATRIA SA","620","620","820","31720, 88920","40920, 98220","20168120, 46534820",null,"2020-01-07 00:00:00","CONTRATO DE PRESTACION DE SERVICIOS - PROFESIONALES","0082020","RENGLON 029, ACT PAA 00, PRESTAR LOS SERVICIOS PROFESIONALES EN EL GRUPO DE SERVICIOS ADMINISTRATIVOS PARA LOS TEMAS RELACIONADOS CON LOS CONTRATOS DE ASEO Y CAFETERÍA, EL SERVICIO DE VIGILANCIA PRIVADA PARA EL IDEAM A NIVEL NACIONAL"]
[1000322301,0,0,92020,92020,1420,"2020-01-08 00:00:00","2020-01-08 12:16:01","Con Obligacion","02","IDEAM-GG-SECRETARIA GENERAL","A-02-02-02-008-002","SERVICIOS JURÍDICOS Y CONTABLES","Nación","RECURSOS CORRIENTES","CSF",79254000,0,79254000,66600000,"Cédula de Ciudadanía","1000322301","RAMIREZ ZAMBRANO JULIANA FERNANDA","Abono en cuenta","Ahorro","24079779074","Activa","860007335","BCSC S A","820","1020","1420","31420, 89120","40720, 98420","17555120, 46535020",null,"2020-01-08 00:00:00","CONTRATO DE PRESTACION DE SERVICIOS - PROFESIONALES","0092020","RENGLON 030, ACT PAA 00, PRESTAR LOS SERVICIOS PROFESIONALES COMO APOYO A LA ETAPA PRECONTRACTUAL, CONTRACTUAL Y POSTCONTRACTUAL DE LOS PROCESOS DE CONTRATACIÓN DEL GRUPO DE SERVICIOS ADMINISTRATIVOS Y ADSCRITOS A LA SECRETARIA GENERAL DEL IDEAM"]
[34326964,0,0,102020,102020,1620,"2020-01-08 00:00:00","2020-01-08 12:24:51","Con Obligacion","02","IDEAM-GG-SECRETARIA GENERAL","A-02-02-02-008-002","SERVICIOS JURÍDICOS Y CONTABLES","Nación","RECURSOS CORRIENTES","CSF",79834000,0,79834000,66900000,"Cédula de Ciudadanía","34326964","BRAVO IDROBO NANCY PATRICIA","Abono en cuenta","Ahorro","542025598","Activa","860002964","BANCO DE BOGOTA S. A.","1020","920","1620","32320, 85320","41920, 95220","17556520, 46530820",null,"2020-01-08 00:00:00","CONTRATO DE PRESTACION DE SERVICIOS - PROFESIONALES","0102020","RENGLON 037, ACT PAA 00, PRESTAR LOS SERVICIOS PROFESIONALES EN LA OFICINA ASESORA JURÍDICA PARA ADELANTAR ACTUACIONES ADMINISTRATIVAS, JUDICIALES Y EXTRAJUDICIALES QUE SE REQUIERAN"]
[1032393512,0,0,112020,112020,1720,"2020-01-08 00:00:00","2020-01-08 12:29:56","Con Obligacion","02","IDEAM-GG-SECRETARIA GENERAL","A-02-02-02-008-002","SERVICIOS JURÍDICOS Y CONTABLES","Nación","RECURSOS CORRIENTES","CSF",79834000,0,79834000,66900000,"Cédula de Ciudadanía","1032393512","HERRERA CORTES ANDREA VERONICA","Abono en cuenta","Ahorro","15362172095","Activa","890903938","BANCOLOMBIA S.A.","1720","1720","1720","31920, 84920","41120, 94820","17555520, 46530320",null,"2020-01-08 00:00:00","CONTRATO DE PRESTACION DE SERVICIOS - PROFESIONALES","0112020","RENGLON 034, ACT PAA 00, PRESTAR LOS SERVICIOS PROFESIONALES EN LA OFICINA ASESORA JURÍDICA DEL INSTITUTO EN ASUNTOS DE CARÁCTER PRECONTRACTUAL, CONTRACTUAL Y POST-CONTRACTUAL DE LOS PROCESOS DE SELECCIÓN QUE SE REQUIERAN, POR LA MODALIDAD DE SELECCI"]
[1006812918,0,0,122020,122020,1920,"2020-01-08 00:00:00","2020-01-08 12:35:51","Con Obligacion","02","IDEAM-GG-SECRETARIA GENERAL","A-02-02-02-008-002","SERVICIOS JURÍDICOS Y CONTABLES","Nación","RECURSOS CORRIENTES","CSF",79834000,0,79834000,65785000,"Cédula de Ciudadanía","1006812918","RUBIO QUINTANA ADRIANA PATRICIA","Abono en cuenta","Ahorro","46785691580","Activa","890903938","BANCOLOMBIA S.A.","1220","1220","1920","50420, 86320, 95920","57320, 96620, 102320","23112520, 46431520, 46435620",null,"2020-01-08 00:00:00","CONTRATO DE PRESTACION DE SERVICIOS - PROFESIONALES","0122020","RENGLON 038, ACT PAA 00, PRESTAR LOS SERVICIOS PROFESIONALES EN LA OFICINA ASESORA JURÍDICA DEL INSTITUTO EN ASUNTOS ADMINISTRATIVOS Y PRECONTRACTUALES, CONTRACTUALES Y POST-CONTRACTUAL QUE SE REQUIERAN."]
[1052385243,0,0,132020,132020,2020,"2020-01-08 00:00:00","2020-01-08 12:42:19","Con Obligacion","02","IDEAM-GG-SECRETARIA GENERAL","A-02-02-02-008-003","OTROS SERVICIOS PROFESIONALES, CIENTÍFICOS Y TÉCNICOS","Nación","RECURSOS CORRIENTES","CSF",79834000,0,79834000,66900000,"Cédula de Ciudadanía","1052385243","PINTO MALAVER JULIAN ROBERTO","Abono en cuenta","Ahorro","60650583402","Activa","890903938","BANCOLOMBIA S.A.","1320","1320","2020","35420, 86920","44520, 97320","18158720, 46533620",null,"2020-01-08 00:00:00","CONTRATO DE PRESTACION DE SERVICIOS - PROFESIONALES","0132020","RENGLON 031, ACT PAA 00, PRESTAR LOS SERVICIOS PROFESIONALES PARA BRINDAR APOYO JURÍDICO AL GRUPO DE ADMINISTRACIÓN Y DESARROLLO DEL TALENTO HUMANO, EN TEMAS RELACIONADOS CON DERECHO LABORAL ADMINISTRATIVO QUE SEAN COMPETENCIA DE ESE GRUPO"]
[80231739,0,0,3722019,3722019,2620,"2020-01-08 00:00:00","2020-01-08 15:21:20","Con Obligacion","04","IDEAM-GG-DG.OFICINA DEL SERVICIO DE PRONOSTICOS Y ALERTAS","C-3204-0900-3-0-3204043-02","ADQUISICIÓN DE BIENES Y SERVICIOS - SERVICIO DE INFORMACIÓN DE DATOS CLIMÁTICOS Y MONITOREO - FORTALECIMIENTO DE LA GESTIÓN DEL CONOCIMIENTO HIDROLÓGICO, METEOROLÓGICO Y AMBIENTAL NACIONAL","Nación","OTROS RECURSOS DEL TESORO","CSF",70290000,0,70290000,57510000,"Cédula de Ciudadanía","80231739","PEREZ TORRES JUAN CAMILO","Abono en cuenta","Ahorro","20225929595","Activa","890903938","BANCOLOMBIA S.A.","3720","3620","2620","42920, 95020","50620, 103920","21414920, 47634820",null,"2020-01-08 00:00:00","CONTRATO DE PRESTACION DE SERVICIOS - PROFESIONALES","3722019 ","RENGLON 096, ACT PAA 14, AMPARAR VIGENCIA FUTURA 2020 PRESTAR LOS SERVICIOS PROFESIONALES EN LA ELABORACIÓN DE PRONOSTICOS DEL ESTADO DEL TIEMPO, ESPECIALES, VARIABILIDAD CLIMATICA, METEOMARINOS, AGROMETEOROLOGICOS Y DEMAS SERVICIOS OPERATIVOS"]
[80765196,0,0,3732019,3732019,2720,"2020-01-08 00:00:00","2020-01-08 15:25:53","Con Obligacion","04","IDEAM-GG-DG.OFICINA DEL SERVICIO DE PRONOSTICOS Y ALERTAS","C-3204-0900-3-0-3204043-02","ADQUISICIÓN DE BIENES Y SERVICIOS - SERVICIO DE INFORMACIÓN DE DATOS CLIMÁTICOS Y MONITOREO - FORTALECIMIENTO DE LA GESTIÓN DEL CONOCIMIENTO HIDROLÓGICO, METEOROLÓGICO Y AMBIENTAL NACIONAL","Nación","OTROS RECURSOS DEL TESORO","CSF",63030000,0,63030000,51570000,"Cédula de Ciudadanía","80765196","POVEDA FERNANDEZ RODNEY","Abono en cuenta","Ahorro","0631203619","Activa","860003020","BANCO BILBAO VIZCAYA ARGENTARIA COLOMBIA S.A. BBVA","3820","3720","2720","32020, 95120","41320, 104020","17555720, 47635020",null,"2020-01-08 00:00:00","CONTRATO DE PRESTACION DE SERVICIOS - PROFESIONALES",3732019,"RRENGLON 096, ACT PAA 14, AMPARAR VIGENCIA FUTURA 2020 PRESTAR LOS SERVICIOS PROFESIONALES PARA EL ACOMPAÑAMIENTO Y REALIZACIÓN DE PRODUCTOS ESPECIFICOS, ENCAMINADOS A LA ELABORACIÓN DE PRONOSTICOS DEL ESTADO DEL TIEMPO"]
[80904042,0,0,3742019,3742019,2820,"2020-01-08 00:00:00","2020-01-08 15:36:55","Con Obligacion","04","IDEAM-GG-DG.OFICINA DEL SERVICIO DE PRONOSTICOS Y ALERTAS","C-3204-0900-3-0-3204043-02","ADQUISICIÓN DE BIENES Y SERVICIOS - SERVICIO DE INFORMACIÓN DE DATOS CLIMÁTICOS Y MONITOREO - FORTALECIMIENTO DE LA GESTIÓN DEL CONOCIMIENTO HIDROLÓGICO, METEOROLÓGICO Y AMBIENTAL NACIONAL","Nación","OTROS RECURSOS DEL TESORO","CSF",63030000,0,63030000,51570000,"Cédula de Ciudadanía","80904042","DAZA ROJAS JOSUE DAVID","Abono en cuenta","Ahorro","052311842","Activa","860002964","BANCO DE BOGOTA S. A.","3920","3820","2820","41120, 96520","48620, 104820","20255020, 48997920",null,"2020-01-08 00:00:00","CONTRATO DE PRESTACION DE SERVICIOS - PROFESIONALES",3742019,"RENGLON 096, ACT PAA 14, RENGLON 096, ACT PAA 14, AMPARAR VIGENCIA FUTURA 2020 PRESTAR LOS SERVICIOS PROFESIONALES EN LA OFICINA DEL SERVICIOS DE PRONOSTICOS Y ALERTAS DEL IDEAM, MEDIANTE LA PRESTACIÓN DE TURNOS DE MONITOREO DIURNO Y NOCTURNO"]
[80130414,0,0,3712019,3712019,2920,"2020-01-08 00:00:00","2020-01-08 15:43:29","Con Obligacion","04","IDEAM-GG-DG.OFICINA DEL SERVICIO DE PRONOSTICOS Y ALERTAS","C-3204-0900-3-0-3204043-02","ADQUISICIÓN DE BIENES Y SERVICIOS - SERVICIO DE INFORMACIÓN DE DATOS CLIMÁTICOS Y MONITOREO - FORTALECIMIENTO DE LA GESTIÓN DEL CONOCIMIENTO HIDROLÓGICO, METEOROLÓGICO Y AMBIENTAL NACIONAL","Nación","OTROS RECURSOS DEL TESORO","CSF",70290000,0,70290000,57510000,"Cédula de Ciudadanía","80130414","SUAREZ VARGAS DIEGO ALEJANDRO","Abono en cuenta","Ahorro","24523416135","Activa","860007335","BCSC S A","4020","3920","2920","29320, 95820","39620, 104320","17552920, 48996820",null,"2020-01-08 00:00:00","CONTRATO DE PRESTACION DE SERVICIOS - PROFESIONALES",3712019,"RRENGLON 096, ACT PAA 14, AMPARAR VIGENCIA FUTURA 2020 PRESTAR LOS SERVICIOS PROFESIONALES EN LA ELABORACIÓN DE PRONOSTICOS DEL ESTADO DEL TIEMPO, ESPECIALES, VARIABILIDAD CLIMATICA, METEOMARINOS"]
[1022334263,0,0,3752019,3752019,3020,"2020-01-08 00:00:00","2020-01-08 16:27:29","Con Obligacion","04","IDEAM-GG-DG.OFICINA DEL SERVICIO DE PRONOSTICOS Y ALERTAS","C-3204-0900-3-0-3204043-02","ADQUISICIÓN DE BIENES Y SERVICIOS - SERVICIO DE INFORMACIÓN DE DATOS CLIMÁTICOS Y MONITOREO - FORTALECIMIENTO DE LA GESTIÓN DEL CONOCIMIENTO HIDROLÓGICO, METEOROLÓGICO Y AMBIENTAL NACIONAL","Nación","OTROS RECURSOS DEL TESORO","CSF",70290000,0,70290000,57510000,"Cédula de Ciudadanía","1022334263","ARANGO CHACON CRISTIAN DARIO","Abono en cuenta","Ahorro","24068122407","Activa","860007335","BCSC S A","4520","4320","3020","34820, 96320","43920, 104620","18158220, 48997420",null,"2020-01-08 00:00:00","CONTRATO DE PRESTACION DE SERVICIOS - PROFESIONALES",3752019,"RENGLON 096, ACT PAA 14, AMPARAR VIGENCIA FUTURA 2020 PRESTAR LOS SERVICIOS PROFESIONALES EN LA ELABORACIÓN DE PRONOSTICOS DEL ESTADO DEL TIEMPO, ESPECIALES, VARIABILIDAD CLIMATICA, METEOMARINOS"]
[52884546,0,0,3792019,3792019,3120,"2020-01-08 00:00:00","2020-01-08 16:33:49","Con Obligacion","04","IDEAM-GG-DG.OFICINA DEL SERVICIO DE PRONOSTICOS Y ALERTAS","C-3204-0900-3-0-3204043-02","ADQUISICIÓN DE BIENES Y SERVICIOS - SERVICIO DE INFORMACIÓN DE DATOS CLIMÁTICOS Y MONITOREO - FORTALECIMIENTO DE LA GESTIÓN DEL CONOCIMIENTO HIDROLÓGICO, METEOROLÓGICO Y AMBIENTAL NACIONAL","Nación","OTROS RECURSOS DEL TESORO","CSF",68970000,-3300000,65670000,53730000,"Cédula de Ciudadanía","52884546","GARZON VARGAS VIVIAN FARLEY","Abono en cuenta","Ahorro","24078187292","Activa","860007335","BCSC S A","4720","4620","3120","43320, 96420","53320, 104720","21933120, 48997620",null,"2020-01-08 00:00:00","CONTRATO DE PRESTACION DE SERVICIOS - PROFESIONALES",3792019,"RENGLON 096, ACT PAA 14, VIGENCIA FUTURA 2020 PRESTAR LOS SERVICIOS PROFESIONALES EN LA OFICINA DEL SERVICIO DE PRONOSTICOS Y ALERTAS PARA EL DESARROLLO DE LAS ACTIVIDADES ENMARCADAS EN EL COMPONENTE DE GESTIÓN DEL RIESGO, EN LO RELACIONADO CON EL CO"]
[79947744,0,0,3942019,3942019,3220,"2020-01-08 00:00:00","2020-01-08 16:49:34","Con Obligacion","04","IDEAM-GG-DG.OFICINA DEL SERVICIO DE PRONOSTICOS Y ALERTAS","C-3204-0900-3-0-3204043-02","ADQUISICIÓN DE BIENES Y SERVICIOS - SERVICIO DE INFORMACIÓN DE DATOS CLIMÁTICOS Y MONITOREO - FORTALECIMIENTO DE LA GESTIÓN DEL CONOCIMIENTO HIDROLÓGICO, METEOROLÓGICO Y AMBIENTAL NACIONAL","Nación","OTROS RECURSOS DEL TESORO","CSF",67320000,0,67320000,55080000,"Cédula de Ciudadanía","79947744","SANABRIA MEJIA JESUS ALFREDO","Abono en cuenta","Ahorro","18812185477","Activa","890903938","BANCOLOMBIA S.A.","4820","4720","3220","31220, 100020","40520, 108120","17554820, 49003920",null,"2020-01-08 00:00:00","CONTRATO DE PRESTACION DE SERVICIOS - PROFESIONALES",3942019,"RENGLON 096, ACT PAA 14, VIGENCIA FUTURA 2020 PRESTAR LOS SERVICIOS PROFESIONALES EN LA OFICINA DEL SERVICIO DE PRONOSTICOS Y ALERTAS DEL IDEAM, CON EL FIN DE ESTABLECER Y GENERAR PRODUCTOS METEOROLOGICOS QUE APORTEN AL ANALISIS Y EMISIÓN DE PRONOSTI"]
[33368340,0,0,142020,142020,3320,"2020-01-08 00:00:00","2020-01-08 17:12:24","Con Obligacion","02","IDEAM-GG-SECRETARIA GENERAL","A-02-02-02-008-002","SERVICIOS JURÍDICOS Y CONTABLES","Nación","RECURSOS CORRIENTES","CSF",79834000,0,79834000,66900000,"Cédula de Ciudadanía","33368340","ALFONSO VALDERRAMA JAZMIN ROCIO","Abono en cuenta","Ahorro","25808378496","Activa","890903938","BANCOLOMBIA S.A.","1420","1420","3320","50120, 86620","57020, 97020","23114020, 46532720",null,"2020-01-08 00:00:00","CONTRATO DE PRESTACION DE SERVICIOS - PROFESIONALES","0142020","RENGLON 039, ACT PAA 00, PRESTAR LOS SERVICIOS PROFESIONALES EN LA OFICINA ASESORA JURÍDICA DEL INSTITUTO EN ASUNTOS DE CARÁCTER PRECONTRACTUAL, CONTRACTUAL Y POST-CONTRACTUAL QUE SE REQUIERAN."]
[33375219,0,0,152020,152020,3420,"2020-01-08 00:00:00","2020-01-08 17:18:49","Con Obligacion","02","IDEAM-GG-SECRETARIA GENERAL","A-02-02-02-008-002","SERVICIOS JURÍDICOS Y CONTABLES","Nación","RECURSOS CORRIENTES","CSF",79834000,0,79834000,66900000,"Cédula de Ciudadanía","33375219","OCHOA CASTRO FANNY ANDREA","Abono en cuenta","Ahorro","50213567184","Activa","890903938","BANCOLOMBIA S.A.","1820","1820","3420","50020, 88420","57120, 96920","23121620, 46532420",null,"2020-01-08 00:00:00","CONTRATO DE PRESTACION DE SERVICIOS - PROFESIONALES","0152020","RENGLON 032, ACT PAA 00, PRESTAR LOS SERVICIOS PROFESIONALES EN LA OFICINA ASESORA JURÍDICA DEL INSTITUTO EN ASUNTOS DE CARÁCTER PRECONTRACTUAL, CONTRACTUAL Y POST-CONTRACTUAL QUE SE REQUIERAN."]
[1085276112,0,0,162020,162020,3520,"2020-01-08 00:00:00","2020-01-08 17:23:38","Con Obligacion","02","IDEAM-GG-SECRETARIA GENERAL","A-02-02-02-008-002","SERVICIOS JURÍDICOS Y CONTABLES","Nación","RECURSOS CORRIENTES","CSF",78942000,0,78942000,66900000,"Cédula de Ciudadanía","1085276112","JAIMEZ URRESTY ELIANA","Abono en cuenta","Ahorro","88187583513","Activa","890903938","BANCOLOMBIA S.A.","1620","1620","3520","41220, 86520","48720, 96820","20256220, 46532220",null,"2020-01-08 00:00:00","CONTRATO DE PRESTACION DE SERVICIOS - PROFESIONALES","0162020","RENGLON 033, ACT PAA 00, PRESTAR LOS SERVICIOS PROFESIONALES EN LA OFICINA ASESORA JURÍDICA DEL INSTITUTO EN ASUNTOS DE CARÁCTER PRECONTRACTUAL, CONTRACTUAL Y POST-CONTRACTUAL QUE SE REQUIERAN"]
[1032382293,0,0,172020,172020,3620,"2020-01-08 00:00:00","2020-01-08 17:29:44","Con Obligacion","02","IDEAM-GG-SECRETARIA GENERAL","A-02-02-02-008-002","SERVICIOS JURÍDICOS Y CONTABLES","Nación","RECURSOS CORRIENTES","CSF",78942000,0,78942000,66900000,"Cédula de Ciudadanía","1032382293","ROJAS BALLESTEROS MAGDA BOLENA","Abono en cuenta","Ahorro","42216200785","Activa","890903938","BANCOLOMBIA S.A.","4220","4120","3620","31120, 52620, 86720","40420, 58820, 97120","17554520, 23128220, 46533020",null,"2020-01-08 00:00:00","CONTRATO DE PRESTACION DE SERVICIOS - PROFESIONALES","0172020","RENGLON 047, ACT PAA 00, PRESTAR SERVICIOS PROFESIONALES EN LA OFICINA ASESORA JURÍDICA PARA ELABORAR RESPUESTAS A REQUERIMIENTOS DE LOS ENTES DE CONTROL, CONGRESO DE LA REPÚBLICA, ADELANTAR ACTUACIONES ADMINISTRATIVAS, PREPARAC IÓN D ELOS PROYECTOS"]
[1030536972,0,0,182020,182020,3720,"2020-01-08 00:00:00","2020-01-08 17:34:24","Con Obligacion","02","IDEAM-GG-SECRETARIA GENERAL","A-02-02-02-008-003","OTROS SERVICIOS PROFESIONALES, CIENTÍFICOS Y TÉCNICOS","Propios","OTROS RECURSOS DE TESORERIA","CSF",63724000,0,63724000,53400000,"Cédula de Ciudadanía","1030536972","CARDOSO VARGAS CINDY LORENA","Abono en cuenta","Ahorro","57163946744","Activa","890903938","BANCOLOMBIA S.A.","1120","1120","3720","35820, 75320","44920, 87120","18159220, 44478820",null,"2020-01-08 00:00:00","CONTRATO DE PRESTACION DE SERVICIOS - PROFESIONALES","0182020","RENGLON 040, ACT PAA 00, PRESTAR LOS SERVICIOS PROFESIONALES PARA LA VERIFICACIÓN, ANÁLISIS Y REGISTRO PRESUPUESTAL DE LOS COMPROMISOS RELACIONADOS CON COMISIONES DE SERVICIO, AUTORIZACIÓN DE DESPLAZAMIENTO Y DEMÁS ACTIVIDADES RELACIONADAS CON EL CIC"]
[79332230,0,0,192020,192020,5420,"2020-01-09 00:00:00","2020-01-09 12:19:42","Con Obligacion","02","IDEAM-GG-SECRETARIA GENERAL","A-02-02-02-008-003","OTROS SERVICIOS PROFESIONALES, CIENTÍFICOS Y TÉCNICOS","Nación","RECURSOS CORRIENTES","CSF",37418000,0,37418000,31800000,"Cédula de Ciudadanía","79332230","PULIDO DOMINGUEZ JAIME","Abono en cuenta","Ahorro","19347031095","Activa","890903938","BANCOLOMBIA S.A.","4620","4520","5420","30520, 89020","40020, 98320","17553820, 46534920",null,"2020-01-09 00:00:00","CONTRATO DE PRESTACION DE SERVICIOS","0192020","RENGLON 050, ACT PAA 00, PRESTAR SERVICIOS DE APOYO AL SEGUIMIENTO FINANCIERO DE LA EJECUCIÓN DE LOS CONTRATOS SUPERVISADOS POR EL GRUPO DE SERVICIOS ADMINISTRATIVOS"]
[79322678,0,0,202020,202020,5520,"2020-01-09 00:00:00","2020-01-09 12:33:52","Con Obligacion","02","IDEAM-GG-SECRETARIA GENERAL","A-02-02-02-008-003","OTROS SERVICIOS PROFESIONALES, CIENTÍFICOS Y TÉCNICOS","Nación","RECURSOS CORRIENTES","CSF",33888000,0,33888000,28800000,"Cédula de Ciudadanía","79322678","PRIETO VASQUEZ CESAR AUGUSTO","Abono en cuenta","Ahorro","008124984","Activa","860002964","BANCO DE BOGOTA S. A.","4420","4420","5520","31020, 88820","40320, 98120","17554320, 46534720",null,"2020-01-09 00:00:00","CONTRATO DE PRESTACION DE SERVICIOS","0202020","RENGLON 049, ACT PAA 00, PRESTAR LOS SERVICIOS TÉCNICOS EN EL GRUPO DE SERVICIOS ADMINISTRATIVOS EN TEMAS RELACIONADOS CON EL PROGRAMA DE SEGUROS GENERALES DEL IDEAM"]
[79504808,0,0,212020,212020,5620,"2020-01-09 00:00:00","2020-01-09 12:45:16","Con Obligacion","02","IDEAM-GG-SECRETARIA GENERAL","A-02-02-02-008-003","OTROS SERVICIOS PROFESIONALES, CIENTÍFICOS Y TÉCNICOS","Nación","RECURSOS CORRIENTES","CSF",102017000,0,102017000,86700000,"Cédula de Ciudadanía","79504808","HERNANDEZ RODRIGUEZ RICARDO AUGUSTO","Abono en cuenta","Corriente","001072760776","Activa","860034313","BANCO DAVIVIENDA S.A.","4920","4920","5620","31320, 89620","40620, 98720","17554920, 46535420",null,"2020-01-09 00:00:00","CONTRATO DE PRESTACION DE SERVICIOS - PROFESIONALES","0212020","RENGLON 052, ACT PAA 00, PRESTAR LOS SERVICIOS PROFESIONALES PARA APOYAR AL GRUPO DE SERVICIOS ADMINISTRATIVOS EN LA ESTRUCTURACIÓN Y EJECUCIÓN TÉCNICA DE LOS PROYECTOS DE INFRAESTRUCTURA QUE DESARROLLE EL IDEAM."]
[79469761,0,0,222020,222020,5720,"2020-01-09 00:00:00","2020-01-09 12:59:34","Con Obligacion","02","IDEAM-GG-SECRETARIA GENERAL","A-02-02-02-008-002","SERVICIOS JURÍDICOS Y CONTABLES","Nación","RECURSOS CORRIENTES","CSF",79611000,0,79611000,66900000,"Cédula de Ciudadanía","79469761","FRANCO BUITRAGO CESAR TULIO","Abono en cuenta","Ahorro","165550054","Activa","860002964","BANCO DE BOGOTA S. A.","4120","4020","5720","35520, 87420","44620, 97820","20188420, 46534320",null,"2020-01-09 00:00:00","CONTRATO DE PRESTACION DE SERVICIOS - PROFESIONALES","0222020","RENGLON 046, ACT PAA 00, PRESTAR SERVICIOS PROFESIONALES EN LA OFICINA ASESORA JURÍDICA DEL IDEAM EN ASUNTOS DE CARÁCTER CONTRACTUAL Y POST-CONTRACTUAL QUE SE REQUIERAN"]
[1026306218,0,0,232020,232020,6020,"2020-01-09 00:00:00","2020-01-09 14:37:59","Con Obligacion","02","IDEAM-GG-SECRETARIA GENERAL","A-02-02-02-008-002","SERVICIOS JURÍDICOS Y CONTABLES","Nación","RECURSOS CORRIENTES","CSF",15130000,0,15130000,10710000,"Cédula de Ciudadanía","1026306218","SUAREZ CUADROS LUIS FELIPE","Abono en cuenta","Ahorro","21900015175","Activa","890903938","BANCOLOMBIA S.A.","4320","4220","6020","34920, 86220","44020, 96520","18158420, 46531620",null,"2020-01-09 00:00:00","CONTRATO DE PRESTACION DE SERVICIOS","0232020","RENGLON 048, ACT PAA 00, APOYO A LA OFICINA ASESORA JURÍDICA GENERANDO LOS INFORMES DE CARÁCTER CONTRACTUAL SOLICITADOS POR LA OFICINA DE CONTROL INTERNO, DE LOS ORGANISMOS DE CONTROL Y DEMÁS ENTIDADES O USUARIOS QUE DE ACUERDO A LA LEY O PREVIA SOLI"]
[53102052,0,0,3992019,3992019,7320,"2020-01-09 00:00:00","2020-01-09 16:01:57","Con Obligacion","04","IDEAM-GG-DG.OFICINA DEL SERVICIO DE PRONOSTICOS Y ALERTAS","C-3204-0900-3-0-3204043-02","ADQUISICIÓN DE BIENES Y SERVICIOS - SERVICIO DE INFORMACIÓN DE DATOS CLIMÁTICOS Y MONITOREO - FORTALECIMIENTO DE LA GESTIÓN DEL CONOCIMIENTO HIDROLÓGICO, METEOROLÓGICO Y AMBIENTAL NACIONAL","Nación","OTROS RECURSOS DEL TESORO","CSF",70290000,0,70290000,57510000,"Cédula de Ciudadanía","53102052","VALENCIA MONROY CAROLINA","Abono en cuenta","Ahorro","04527805568","Activa","890903938","BANCOLOMBIA S.A.","8720","8720","7320","38720, 97120","46320, 105420","20203620, 48999420",null,"2020-01-09 00:00:00","CONTRATO DE PRESTACION DE SERVICIOS - PROFESIONALES",3992019,"RENGLON 096, ACT PAA 14, RENGLON 096, ACT PAA 14, AMPARAR VIGENCIA FUTURA 2020, PRESTAR LOS SERVICIOS PROFESIONALES EN LA ELABORACIÓN DE PRONOSTICOS DEL ESTADO DEL TIEMPO, ESPECIALES, VARIABILIDAD CLIMATICA, METEOMARINOS, AGROMETEOROLOGICOS Y DEMÁS"]
[52440067,0,0,242020,242020,8220,"2020-01-10 00:00:00","2020-01-10 10:10:21","Con Obligacion","02","IDEAM-GG-SECRETARIA GENERAL","A-02-02-02-008-003","OTROS SERVICIOS PROFESIONALES, CIENTÍFICOS Y TÉCNICOS","Nación","RECURSOS CORRIENTES","CSF",33696000,0,33696000,28800000,"Cédula de Ciudadanía","52440067","SANCHEZ MARENTES LIBIA YANETH","Abono en cuenta","Ahorro","240837203","Activa","890300279","BANCO DE OCCIDENTE","5220","5320","8220","42320, 74620","51220, 89720","21409320, 44480520",null,"2020-01-10 00:00:00","CONTRATO DE PRESTACION DE SERVICIOS","0242020","RENGLON 058, ACT PAA 00, PRESTAR SERVICIOS OPERATIVOS COMO APOYO AL GRUPO DE MANEJO Y CONTROL DE ALMACÉN E INVENTARIOS EN LOS PROCEDIMIENTOS RELACIONADOS CON EL TRÁMITE DE BAJA DE BIENES MUEBLES E INMUEBLES DE PROPIEDAD DEL IDEAM"]
[79448875,0,0,252020,252020,8420,"2020-01-10 00:00:00","2020-01-10 10:28:43","Con Obligacion","02","IDEAM-GG-SECRETARIA GENERAL","A-02-02-02-008-003","OTROS SERVICIOS PROFESIONALES, CIENTÍFICOS Y TÉCNICOS","Nación","RECURSOS CORRIENTES","CSF",74763000,0,74763000,63900000,"Cédula de Ciudadanía","79448875","BOSSA RODRIGUEZ JOSUE EDILBERTO","Abono en cuenta","Ahorro","1001804754","Activa","860034594","SCOTIABANK COLPATRIA SA","9820","9720","8420","41020, 43120, 94720","50120, 103620","21399720, 47800820",null,"2020-01-10 00:00:00","CONTRATO DE PRESTACION DE SERVICIOS - PROFESIONALES","0252020","RENGLON 084, ACT PAA 00, PRESTAR SERVICIOS PROFESIONALES EN EL GRUPO DE ADMINISTRACIÓN Y DESARROLLO DEL TALENTO HUMANO EN LA REVISIÓN Y SEGUIMIENTO DE LA NÓMINA, DEL GASTO LABORAL, DE LAS PROYECCIONES PRESUPUESTALES Y SEGUIMIENTO A LOS CONTRATOS DEL"]
[7180432,0,0,262020,262020,8620,"2020-01-10 00:00:00","2020-01-10 10:45:17","Con Obligacion","02","IDEAM-GG-SECRETARIA GENERAL","A-02-02-02-008-002","SERVICIOS JURÍDICOS Y CONTABLES","Propios","OTROS RECURSOS DE TESORERIA","CSF",61776000,0,61776000,52800000,"Cédula de Ciudadanía","7180432","DAZA BENITEZ WILSON ARMANDO","Abono en cuenta","Ahorro","176270104076","Activa","860034313","BANCO DAVIVIENDA S.A.","5120","5220","8620","28820, 76520","38820, 80720","17551020, 42240520",null,"2020-01-10 00:00:00","CONTRATO DE PRESTACION DE SERVICIOS - PROFESIONALES","0262020","RENGLON 055, ACT PAA 00, PRESTAR LOS SERVICIOS PROFESIONALES EN EL GRUPO DE CONTABILIDAD, REALIZANDO ANÁLISIS, TRAMITE Y REGISTRO EN EL SISTEMA INTEGRADO DE INFORMACIÓN FINANCIERA SIIF NACION II DE TODAS LAS CUENTAS POR PAGAR DE DE LA ENTIDAD EN EL N"]
[80770178,0,0,272020,272020,8720,"2020-01-10 00:00:00","2020-01-10 11:03:50","Con Obligacion","02","IDEAM-GG-SECRETARIA GENERAL","A-02-02-02-008-003","OTROS SERVICIOS PROFESIONALES, CIENTÍFICOS Y TÉCNICOS","Nación","RECURSOS CORRIENTES","CSF",33696000,0,33696000,28800000,"Cédula de Ciudadanía","80770178","VELASQUEZ TORREJANO CARLOS EMILIO","Abono en cuenta","Ahorro","90010881390","Activa","860050750","BANCO GNB SUDAMERIS S A","6220","6320","8720","33920, 89220","43320, 98520","20520920, 46535120",null,"2020-01-10 00:00:00","CONTRATO DE PRESTACION DE SERVICIOS - PROFESIONALES","0272020","RENGLON 066, ACT PAA 00, PRESTAR LOS SERVICIOS DE APOYO AL GRUPO DE SERVICIOS ADMINISTRATIVOS PARA LOS PROYECTOS DE INFRAESTRUCTURA QUE DESARROLLE EL INSTITUTO Y APOYO EN EL TRÁMITE DE SOLICITUDES DE TIQUETES AÉREOS PARA EL TRANSPORTE EN RUTAS NACION"]
[1049606753,0,0,282020,282020,8820,"2020-01-10 00:00:00","2020-01-10 11:17:13","Con Obligacion","02","IDEAM-GG-SECRETARIA GENERAL","A-02-02-02-008-003","OTROS SERVICIOS PROFESIONALES, CIENTÍFICOS Y TÉCNICOS","Nación","RECURSOS CORRIENTES","CSF",55809000,0,55809000,47700000,"Cédula de Ciudadanía","1049606753","PERILLA NOVOA WALTER STEVEN","Abono en cuenta","Ahorro","462900066467","Activa","860034313","BANCO DAVIVIENDA S.A.","6120","6220","8820","28920, 89320","39020, 98620","20145820, 46535320",null,"2020-01-10 00:00:00","CONTRATO DE PRESTACION DE SERVICIOS - PROFESIONALES","0282020","RENGLON 065, ACT PAA 00, PRESTAR LOS SERVICIOS PROFESIONALES PARA LA ESTRUCTURACIÓN TÉCNICA DE LOS PROCESOS CONTRACTUALES, APOYO A LA SUPERVISIÓN Y LIQUIDACIÓN DE CONTRATOS DE MANTENIMIENTOS, COMPRAVENTAS Y SUMINISTROS A CARGO DEL GRUPO DE SERVICIOS"]
[1022338248,0,0,4042019,4042019,8920,"2020-01-10 00:00:00","2020-01-10 11:46:49","Con Obligacion","04","IDEAM-GG-DG.OFICINA DEL SERVICIO DE PRONOSTICOS Y ALERTAS","C-3204-0900-3-0-3204043-02","ADQUISICIÓN DE BIENES Y SERVICIOS - SERVICIO DE INFORMACIÓN DE DATOS CLIMÁTICOS Y MONITOREO - FORTALECIMIENTO DE LA GESTIÓN DEL CONOCIMIENTO HIDROLÓGICO, METEOROLÓGICO Y AMBIENTAL NACIONAL","Nación","OTROS RECURSOS DEL TESORO","CSF",63030000,0,63030000,51570000,"Cédula de Ciudadanía","1022338248","LADINO RINCON ALFONSO","Abono en cuenta","Ahorro","476770002121","Activa","860034313","BANCO DAVIVIENDA S.A.","11220","11120","8920","34020, 34120, 98720","43420, 106820","18157220, 49002520",null,"2020-01-10 00:00:00","CONTRATO DE PRESTACION DE SERVICIOS - PROFESIONALES",4042019,"RENGLON 096, ACT PAA 14, APALANCAR VIGENCIA FUTURA 2020 PRESTAR LOS SERVICIOS PROFESIONALES EN LA OSPA, CON EL FIN DE GENERAR PRODUCTOS DERIVADOS DEL ANALISIS DE INFORMACIÓN PROVENIENTE DE LOS RADARES METEOROLOGICOS"]
[80896709,0,0,4062019,4062019,9020,"2020-01-10 00:00:00","2020-01-10 11:52:43","Con Obligacion","04","IDEAM-GG-DG.OFICINA DEL SERVICIO DE PRONOSTICOS Y ALERTAS","C-3204-0900-3-0-3204043-02","ADQUISICIÓN DE BIENES Y SERVICIOS - SERVICIO DE INFORMACIÓN DE DATOS CLIMÁTICOS Y MONITOREO - FORTALECIMIENTO DE LA GESTIÓN DEL CONOCIMIENTO HIDROLÓGICO, METEOROLÓGICO Y AMBIENTAL NACIONAL","Nación","OTROS RECURSOS DEL TESORO","CSF",63030000,0,63030000,51570000,"Cédula de Ciudadanía","80896709","ROJAS BARBOSA SERGIO ALEJANDRO","Abono en cuenta","Ahorro","24093621210","Activa","860007335","BCSC S A","11320","11220","9020","40320, 102920","48220, 111520","20249820, 50122020",null,"2020-01-10 00:00:00","CONTRATO DE PRESTACION DE SERVICIOS - PROFESIONALES",4062019,"RENGLON 096, ACT PAA 14, AMPARAR VIGENCIA FUTURA 2020 PRESTAR LOS SERVICIOS PROFESIONALES EN LA OSPA, PARA REALIZAR EL MONITOREO, SEGUIMIENTO Y LA GENERACIÓN DE ALERTAS TEMPRANAS"]
[52959011,0,0,4132019,4132019,9120,"2020-01-10 00:00:00","2020-01-10 11:56:23","Con Obligacion","04","IDEAM-GG-DG.OFICINA DEL SERVICIO DE PRONOSTICOS Y ALERTAS","C-3204-0900-3-0-3204043-02","ADQUISICIÓN DE BIENES Y SERVICIOS - SERVICIO DE INFORMACIÓN DE DATOS CLIMÁTICOS Y MONITOREO - FORTALECIMIENTO DE LA GESTIÓN DEL CONOCIMIENTO HIDROLÓGICO, METEOROLÓGICO Y AMBIENTAL NACIONAL","Nación","OTROS RECURSOS DEL TESORO","CSF",63030000,0,63030000,51570000,"Cédula de Ciudadanía","52959011","FONSECA PARGA YIRA NATHALIE","Abono en cuenta","Ahorro","299094276","Activa","860002964","BANCO DE BOGOTA S. A.","11420","11320","9120","34620, 97020","43720, 105320","18157720, 48999220",null,"2020-01-10 00:00:00","CONTRATO DE PRESTACION DE SERVICIOS - PROFESIONALES",4132019,"RENGLON 096, ACT PAA 14, AMPARAR VIGENCIA FUTURA 2020 PRESTAR LOS SERVICIOS PROFESIONALES PARA EL ACOMPAÑAMIENTO Y REALIZACIÓN DE PRODUCTOS ESPECIFICOS, ENCAMINADOS A LA ELABORACIÓN DE PRONOSTICOS DEL ESTADO DEL TIEMPO, ESPECIALES, VARIABILIDAD CLIMA"]
[94230129,0,0,4142019,4142019,9220,"2020-01-10 00:00:00","2020-01-10 12:00:01","Con Obligacion","04","IDEAM-GG-DG.OFICINA DEL SERVICIO DE PRONOSTICOS Y ALERTAS","C-3204-0900-3-0-3204043-02","ADQUISICIÓN DE BIENES Y SERVICIOS - SERVICIO DE INFORMACIÓN DE DATOS CLIMÁTICOS Y MONITOREO - FORTALECIMIENTO DE LA GESTIÓN DEL CONOCIMIENTO HIDROLÓGICO, METEOROLÓGICO Y AMBIENTAL NACIONAL","Nación","OTROS RECURSOS DEL TESORO","CSF",63030000,0,63030000,51570000,"Cédula de Ciudadanía","94230129","BARROSO MENA FABIAN ULISES","Abono en cuenta","Ahorro","016570404307","Activa","860034313","BANCO DAVIVIENDA S.A.","11520","11420","9220","33820, 97420","43220, 105720","18156920, 48999920",null,"2020-01-10 00:00:00","CONTRATO DE PRESTACION DE SERVICIOS - PROFESIONALES",4142019,"RENGLON 096, ACT PAA 14, APALANCAR VIGENCIA FUTURA 2020 PRESTAR LOS SERVICIOS PROFESIONALES EN LA OSPA, MEDIANTE LA PRESTACIÓN DE TURNOS DE MONITOREO DIURNO Y NOCTURNO, CON EL FIN DE OBTENER INSUMOS PARA LA GENERACIÓN DE PRONOSTICOS"]
[1030632732,0,0,4052019,4052019,9320,"2020-01-10 00:00:00","2020-01-10 12:03:56","Con Obligacion","04","IDEAM-GG-DG.OFICINA DEL SERVICIO DE PRONOSTICOS Y ALERTAS","C-3204-0900-3-0-3204043-02","ADQUISICIÓN DE BIENES Y SERVICIOS - SERVICIO DE INFORMACIÓN DE DATOS CLIMÁTICOS Y MONITOREO - FORTALECIMIENTO DE LA GESTIÓN DEL CONOCIMIENTO HIDROLÓGICO, METEOROLÓGICO Y AMBIENTAL NACIONAL","Nación","OTROS RECURSOS DEL TESORO","CSF",33330000,0,33330000,27270000,"Cédula de Ciudadanía","1030632732","URREA URREGO JULIAN DAVID","Abono en cuenta","Ahorro","002895477","Activa","860035827","BANCO COMERCIAL AV VILLAS S.A.","11720","11520","9320","34320, 96920","43620, 105220","18157620, 48999020",null,"2020-01-10 00:00:00","CONTRATO DE PRESTACION DE SERVICIOS - PROFESIONALES",4052019,"RENGLON 096, ACT PAA 14, APALANCAR VIGENCIA FUTURA 2020 PRESTAR LOS SERVICIOS EN LA OSPA, PARA REALIZAR LA RECEPCIÓN Y PROCESAMIENTO DE DATOS METEOROLOGICOS E HIDROLOGICOS, GENERACIÓN DE PRODUCTOS CARTOGRAFICOS"]
[79542107,0,0,4082019,4082019,9420,"2020-01-10 00:00:00","2020-01-10 12:08:25","Con Obligacion","04","IDEAM-GG-DG.OFICINA DEL SERVICIO DE PRONOSTICOS Y ALERTAS","C-3204-0900-3-0-3204043-02","ADQUISICIÓN DE BIENES Y SERVICIOS - SERVICIO DE INFORMACIÓN DE DATOS CLIMÁTICOS Y MONITOREO - FORTALECIMIENTO DE LA GESTIÓN DEL CONOCIMIENTO HIDROLÓGICO, METEOROLÓGICO Y AMBIENTAL NACIONAL","Nación","OTROS RECURSOS DEL TESORO","CSF",63030000,0,63030000,51570000,"Cédula de Ciudadanía","79542107","RODRIGUEZ AMAYA BENJAMIN ENRIQUE","Abono en cuenta","Ahorro","082862926","Activa","860035827","BANCO COMERCIAL AV VILLAS S.A.","11820","11720","9420","42220, 96120","52920, 104520","21411920, 48997220",null,"2020-01-10 00:00:00","CONTRATO DE PRESTACION DE SERVICIOS - PROFESIONALES",4082019,"RENGLON 096, ACT PAA 14, AMPARAR VIGENCIA FUTURA 2020 PRESTAR LOS SERVICIOSPROFESIONALES EN LA OSPA, MEDIANTE LA PRESTACIÓN D ETURNOS DE MONITOREO DIURNO Y NOCTURNO, CON EL FIN DE OBTENER PRONOSTICOS HIDROLOGIICOS DINAMICOS"]
[1033710750,0,0,4102019,4102019,9520,"2020-01-10 00:00:00","2020-01-10 12:11:16","Con Obligacion","04","IDEAM-GG-DG.OFICINA DEL SERVICIO DE PRONOSTICOS Y ALERTAS","C-3204-0900-3-0-3204043-02","ADQUISICIÓN DE BIENES Y SERVICIOS - SERVICIO DE INFORMACIÓN DE DATOS CLIMÁTICOS Y MONITOREO - FORTALECIMIENTO DE LA GESTIÓN DEL CONOCIMIENTO HIDROLÓGICO, METEOROLÓGICO Y AMBIENTAL NACIONAL","Nación","OTROS RECURSOS DEL TESORO","CSF",63030000,0,63030000,51570000,"Cédula de Ciudadanía","1033710750","VILLAMIZAR HERNANDEZ ALEXANDER","Abono en cuenta","Ahorro","161593488","Activa","860002964","BANCO DE BOGOTA S. A.","11920","11820","9520","35020, 97220","44120, 105520","18158520, 48999620",null,"2020-01-10 00:00:00","CONTRATO DE PRESTACION DE SERVICIOS - PROFESIONALES",4102019,"RENGLON 096, ACT PAA 14, AMPARAR VIGENCIA FUTURA 2020 PRESTAR LOS SERVICIOS PROFESIONALES EN LA OSPA MEDIANTE LA PRESTACIÓN DE TURNOS DE MONITOREO DIURNO YNOCTURNO, CON EL FIN DE OBTENER INSUMOS PARA LA GENERACIÓN DE PRONOSTICOS"]
[1015395343,0,0,4032019,4032019,9620,"2020-01-10 00:00:00","2020-01-10 12:15:15","Con Obligacion","04","IDEAM-GG-DG.OFICINA DEL SERVICIO DE PRONOSTICOS Y ALERTAS","C-3204-0900-3-0-3204043-02","ADQUISICIÓN DE BIENES Y SERVICIOS - SERVICIO DE INFORMACIÓN DE DATOS CLIMÁTICOS Y MONITOREO - FORTALECIMIENTO DE LA GESTIÓN DEL CONOCIMIENTO HIDROLÓGICO, METEOROLÓGICO Y AMBIENTAL NACIONAL","Nación","OTROS RECURSOS DEL TESORO","CSF",53460000,0,53460000,43740000,"Cédula de Ciudadanía","1015395343","ESPEJO DELGADO ANDRES FELIPE","Abono en cuenta","Ahorro","68915351186","Activa","890903938","BANCOLOMBIA S.A.","12020","11920","9620","40220, 96020","48120, 104420","20249020, 48997020",null,"2020-01-10 00:00:00","CONTRATO DE PRESTACION DE SERVICIOS - PROFESIONALES",4032019,"RENGLON 096, ACT PAA 14, AMPARAR VIGENCIA FUTURA 2020 PRESTAR LOS SERVICIOS PROFESIONALES EN LA OSPA, CON EL FIN DE GENERAR PRODUCTOS GRAFICOS Y CARTOGRAFICOS AUTOMATIZADOS A PARTIR DEL USO DE LENGIAJES DE PROGRAMACIÓN"]
[{"$f":"+V47+0","v":1026264442},{"$f":"IFERROR(MID(AM47,SEARCH(\"CTO.\",AM47)+5,7),0)","v":0},{"$f":"IFERROR(MID(AM47,SEARCH(\"CTO \",AM47)+4,7),0)","v":0},{"$f":"IFERROR(AM47+0,0)","v":4092019},{"$f":"B47+C47+D47","v":4092019},9720,"2020-01-10 00:00:00","2020-01-10 12:20:18","Con Obligacion","05","IDEAM-GG-SUBDIRECCION HIDROLOGIA","C-3204-0900-3-0-3204051-02","ADQUISICIÓN DE BIENES Y SERVICIOS - SERVICIO DE MONITOREO Y SEGUIMIENTO HIDROMETEOROLÓGICO - FORTALECIMIENTO DE LA GESTIÓN DEL CONOCIMIENTO HIDROLÓGICO, METEOROLÓGICO Y AMBIENTAL NACIONAL","Nación","OTROS RECURSOS DEL TESORO","CSF",27000000,0,27000000,21600000,"Cédula de Ciudadanía","1026264442","PEREZ RUEDA NUBIA ESPERANZA","Abono en cuenta","Ahorro","29995650833","Activa","890903938","BANCOLOMBIA S.A.","12120","12020","9720","45520, 81920","54120, 92020","21876020, 44482720",null,"2020-01-10 00:00:00","CONTRATO DE PRESTACION DE SERVICIOS - PROFESIONALES",4092019,"RENGLON 107, ACT PAA 05, AMPARAR VIGENCIA FUTURA 2020 PRESTAR LOS SERVICIOS PROFESIONALES PARA EVALUAR, CAPTURAR, PROCESAR, VERIFICAR Y ANALIZAR DATOS HIDROLOGICOS (NIVELES, CAUDALES Y SEDIMENTOS)"]
[1061720936,0,0,4152019,4152019,9820,"2020-01-10 00:00:00","2020-01-10 12:25:01","Con Obligacion","04","IDEAM-GG-DG.OFICINA DEL SERVICIO DE PRONOSTICOS Y ALERTAS","C-3204-0900-3-0-3204043-02","ADQUISICIÓN DE BIENES Y SERVICIOS - SERVICIO DE INFORMACIÓN DE DATOS CLIMÁTICOS Y MONITOREO - FORTALECIMIENTO DE LA GESTIÓN DEL CONOCIMIENTO HIDROLÓGICO, METEOROLÓGICO Y AMBIENTAL NACIONAL","Nación","OTROS RECURSOS DEL TESORO","CSF",70290000,0,70290000,57510000,"Cédula de Ciudadanía","1061720936","GUZMAN LUGO DIANA MARCELA","Abono en cuenta","Ahorro","035389014","Activa","860002964","BANCO DE BOGOTA S. A.","12220","12120","9820","38320, 98620","46120, 106720","20191420, 49002320",null,"2020-01-10 00:00:00","CONTRATO DE PRESTACION DE SERVICIOS - PROFESIONALES",4152019,"RENGLON 096, ACT PAA 14, AMPARAR VIGENCIA FUTURA 2020 PRESTAR LOS SERVICIOS PROFESIONALES EN LA ELABORACIÓN DE PRONOSTICOS DEL ESTADO DEL TIEMPO, ESPECIALES, VARIABILIDAD CLIMATICA, METEOMARINOS, AGROMETEOROLOGICOS"]
[14638651,0,0,4172019,4172019,9920,"2020-01-10 00:00:00","2020-01-10 12:28:30","Con Obligacion","04","IDEAM-GG-DG.OFICINA DEL SERVICIO DE PRONOSTICOS Y ALERTAS","C-3204-0900-3-0-3204043-02","ADQUISICIÓN DE BIENES Y SERVICIOS - SERVICIO DE INFORMACIÓN DE DATOS CLIMÁTICOS Y MONITOREO - FORTALECIMIENTO DE LA GESTIÓN DEL CONOCIMIENTO HIDROLÓGICO, METEOROLÓGICO Y AMBIENTAL NACIONAL","Nación","OTROS RECURSOS DEL TESORO","CSF",63030000,0,63030000,50997000,"Cédula de Ciudadanía","14638651","URREGO ZULUAGA JUAN PABLO","Abono en cuenta","Ahorro","07731353314","Activa","890903938","BANCOLOMBIA S.A.","12320","12220","9920","29220, 74920, 91020","39420, 85020, 96420","17552320, 42241320, 44374520",null,"2020-01-10 00:00:00","CONTRATO DE PRESTACION DE SERVICIOS - PROFESIONALES",4172019,"RENGLON 096, ACT PAA 14, AMPARAR VIGENCIA FUTURA 2020 PRESTAR LOS SERVICIOS EN LA OSPA, MEDIANTE LA PRESTACIÓN DE TURNOS DE MONITOREO DIURNO Y NOCTURNO CON EL FIN DE OBTENER PRONOSTICOS HIDROLOGICOS DINAMICOS Y ACTUALIZABLES A NIVEL NACIONAL"]
[1022361975,0,0,4072019,4072019,10020,"2020-01-10 00:00:00","2020-01-10 12:32:50","Con Obligacion","04","IDEAM-GG-DG.OFICINA DEL SERVICIO DE PRONOSTICOS Y ALERTAS","C-3204-0900-3-0-3204043-02","ADQUISICIÓN DE BIENES Y SERVICIOS - SERVICIO DE INFORMACIÓN DE DATOS CLIMÁTICOS Y MONITOREO - FORTALECIMIENTO DE LA GESTIÓN DEL CONOCIMIENTO HIDROLÓGICO, METEOROLÓGICO Y AMBIENTAL NACIONAL","Nación","OTROS RECURSOS DEL TESORO","CSF",63030000,0,63030000,51570000,"Cédula de Ciudadanía","1022361975","NAVIA DIAZ JUAN DAVID","Abono en cuenta","Ahorro","04521061885","Activa","890903938","BANCOLOMBIA S.A.","12420","12320","10020","50320, 98020","57220, 106320","23126220, 49001320",null,"2020-01-10 00:00:00","CONTRATO DE PRESTACION DE SERVICIOS - PROFESIONALES",4072019,"RENGLON 096, ACT PAA 14, AMPARAR VIGENCIA FUTURA 2020 PRESTAR LOS SERVICIOS PROFESIONALES EN LA ELABORACIÓN DE PRONOSTICOS DEL ESTADO DEL TIEMPO, ESPECIALES, VARIABILIDAD CLIMATICA, METEOMARINOS"]
[1053825682,0,0,4112019,4112019,10120,"2020-01-10 00:00:00","2020-01-10 12:37:56","Con Obligacion","04","IDEAM-GG-DG.OFICINA DEL SERVICIO DE PRONOSTICOS Y ALERTAS","C-3204-0900-3-0-3204043-02","ADQUISICIÓN DE BIENES Y SERVICIOS - SERVICIO DE INFORMACIÓN DE DATOS CLIMÁTICOS Y MONITOREO - FORTALECIMIENTO DE LA GESTIÓN DEL CONOCIMIENTO HIDROLÓGICO, METEOROLÓGICO Y AMBIENTAL NACIONAL","Nación","OTROS RECURSOS DEL TESORO","CSF",39270000,0,39270000,32130000,"Cédula de Ciudadanía","1053825682","ROMERO ROJAS CHRISTIAN CAMILO","Abono en cuenta","Ahorro","023097256","Activa","860002964","BANCO DE BOGOTA S. A.","12520","12420","10120","30720, 97520","40220, 105820","17554120, 49000220",null,"2020-01-10 00:00:00","CONTRATO DE PRESTACION DE SERVICIOS - PROFESIONALES",4112019,"RENGLON 096, ACT PAA 14, AMPARAR VIGENCIA FUTURA 2020 PRESTAR LOS SERVICIOS PROFESIONALES EN LA OSPA, MEDIANTE LA PRESTACIÓN DE TURNOS DE MONITOREO DIURNO Y NOCTURNO, CON EL FIN DE OBTENER PRONOSTICOS HIDROLOGICOS DINAMICOS"]
[52780334,0,0,4122019,4122019,10220,"2020-01-10 00:00:00","2020-01-10 12:41:51","Con Obligacion","04","IDEAM-GG-DG.OFICINA DEL SERVICIO DE PRONOSTICOS Y ALERTAS","C-3204-0900-3-0-3204043-02","ADQUISICIÓN DE BIENES Y SERVICIOS - SERVICIO DE INFORMACIÓN DE DATOS CLIMÁTICOS Y MONITOREO - FORTALECIMIENTO DE LA GESTIÓN DEL CONOCIMIENTO HIDROLÓGICO, METEOROLÓGICO Y AMBIENTAL NACIONAL","Nación","OTROS RECURSOS DEL TESORO","CSF",63360000,0,63360000,51840000,"Cédula de Ciudadanía","52780334","BERMUDEZ ARIAS SONIA CRISTINA","Abono en cuenta","Ahorro","69042648981","Activa","890903938","BANCOLOMBIA S.A.","12620","12520","10220","31820, 97920","41020, 108220","17555320, 49004120",null,"2020-01-10 00:00:00","CONTRATO DE PRESTACION DE SERVICIOS - PROFESIONALES",4122019,"RENGLON 096, ACT PAA 14, AMPARAR VIGENCIA FUTURA 2020 PRESTAR LOS SERVICIOS PROFESIONALES EN LA OSPA PARA REALIZAR EL MONITOREO, SEGUIMIENTO Y LA GENERACIÓN DE ALERTAS TEMPRANAS SOBRE AMENAZAS POR DESLIZAMIENTOS DE TIERRA"]
[1014227450,0,0,4162019,4162019,10320,"2020-01-10 00:00:00","2020-01-10 12:52:06","Con Obligacion","04","IDEAM-GG-DG.OFICINA DEL SERVICIO DE PRONOSTICOS Y ALERTAS","C-3204-0900-3-0-3204043-02","ADQUISICIÓN DE BIENES Y SERVICIOS - SERVICIO DE INFORMACIÓN DE DATOS CLIMÁTICOS Y MONITOREO - FORTALECIMIENTO DE LA GESTIÓN DEL CONOCIMIENTO HIDROLÓGICO, METEOROLÓGICO Y AMBIENTAL NACIONAL","Nación","OTROS RECURSOS DEL TESORO","CSF",63030000,0,63030000,51570000,"Cédula de Ciudadanía","1014227450","RAMIREZ HERNANDEZ PAUL SEBASTIAN","Abono en cuenta","Ahorro","191044593","Activa","860002964","BANCO DE BOGOTA S. A.","12720","12620","10320","42820, 98220","50820, 106520","21393820, 49001820",null,"2020-01-10 00:00:00","CONTRATO DE PRESTACION DE SERVICIOS - PROFESIONALES",4162019,"RENGLON 096, ACT PAA 14, AMPARAR VIGENCIA FUTURA 2020 PRESTAR LOS SERVICIOS PROFESIONALES DE ANALISIS, SEGUIMIENTO Y GENERACIÓN DE PRODUCTOS ESPECIFICOS A PARTIR DE DATOS CRUDOS DE RADARES METEOROLOGICOS DISPONIBLES"]
[1057588242,0,0,4222019,4222019,10520,"2020-01-10 00:00:00","2020-01-10 13:02:29","Con Obligacion","05","IDEAM-GG-SUBDIRECCION HIDROLOGIA","C-3204-0900-3-0-3204051-02","ADQUISICIÓN DE BIENES Y SERVICIOS - SERVICIO DE MONITOREO Y SEGUIMIENTO HIDROMETEOROLÓGICO - FORTALECIMIENTO DE LA GESTIÓN DEL CONOCIMIENTO HIDROLÓGICO, METEOROLÓGICO Y AMBIENTAL NACIONAL","Nación","OTROS RECURSOS DEL TESORO","CSF",27000000,0,27000000,21600000,"Cédula de Ciudadanía","1057588242","MAIRA LORENA CRUZ CORREA","Abono en cuenta","Ahorro","596319301","Activa","860002964","BANCO DE BOGOTA S. A.","12920","12820","10520","45020, 76220","53820, 90120","21882020, 44481020",null,"2020-01-10 00:00:00","CONTRATO DE PRESTACION DE SERVICIOS - PROFESIONALES",4222019,"RENGLON 107, ACT PAA 05, AMPARAR VIGENCIA FUTURA 2020 PRESTAR LOS SERVICIOS PROFESIONALES PARA EVALUAR, CAPTURAR, PROCESAR, VERIFICAR Y ANALIZAR DATOS METEOROLOGICOS EN EL AREA OPERATIVA 11-BOGOTÁ"]
[1075215818,0,0,4232019,4232019,10620,"2020-01-10 00:00:00","2020-01-10 13:05:42","Con Obligacion","04","IDEAM-GG-DG.OFICINA DEL SERVICIO DE PRONOSTICOS Y ALERTAS","C-3204-0900-3-0-3204043-02","ADQUISICIÓN DE BIENES Y SERVICIOS - SERVICIO DE INFORMACIÓN DE DATOS CLIMÁTICOS Y MONITOREO - FORTALECIMIENTO DE LA GESTIÓN DEL CONOCIMIENTO HIDROLÓGICO, METEOROLÓGICO Y AMBIENTAL NACIONAL","Nación","OTROS RECURSOS DEL TESORO","CSF",41580000,0,41580000,34020000,"Cédula de Ciudadanía","1075215818","GUZMAN LOPEZ HELMER ALEXIS","Abono en cuenta","Ahorro","17657261459","Activa","890903938","BANCOLOMBIA S.A.","13020","12920","10620","50220, 96620","56820, 104920","23124420, 48998420",null,"2020-01-10 00:00:00","CONTRATO DE PRESTACION DE SERVICIOS - PROFESIONALES",4232019,"RENGLON 096, ACT PAA 14, AMPARAR VIGENCIA FUTURA 2020, PRESTAR LOS SERVICIOS PROFESIONALES PARA EL ACOMPAÑAMIENTO Y REALIZACIÓN DE PRODUCTOS ESPECIFICOS, ENCAMINADOS A LA ELABORACIÓN DE PRONOSTICOS DEL ESTADO DEL ESTADO DEL TIEMPO"]
[1018443572,0,0,4242019,4242019,10720,"2020-01-10 00:00:00","2020-01-10 13:09:09","Con Obligacion","04","IDEAM-GG-DG.OFICINA DEL SERVICIO DE PRONOSTICOS Y ALERTAS","C-3204-0900-3-0-3204043-02","ADQUISICIÓN DE BIENES Y SERVICIOS - SERVICIO DE INFORMACIÓN DE DATOS CLIMÁTICOS Y MONITOREO - FORTALECIMIENTO DE LA GESTIÓN DEL CONOCIMIENTO HIDROLÓGICO, METEOROLÓGICO Y AMBIENTAL NACIONAL","Nación","OTROS RECURSOS DEL TESORO","CSF",33330000,0,33330000,27270000,"Cédula de Ciudadanía","1018443572","RINCON LOAIZA ANA MILENA","Abono en cuenta","Ahorro","24048355070","Activa","860007335","BCSC S A","13120","13020","10720","32120, 96220","41520, 105920","17555920, 49000420",null,"2020-01-10 00:00:00","CONTRATO DE PRESTACION DE SERVICIOS - PROFESIONALES",4242019,"RENGLON 096, ACT PAA 14, AMPARAR VIGENCIA FUTURA 2020 PRESTAR LOS SERVICIOS PROFESIONALES EN LA OSPA, PARA LA RECEPCIÓN Y SEGUIMIENTO DE FENOMENOS EXTREMOS, ANALISIS DE ALERTAS DE ORIGEN HIDROMETEOROLOGICO Y LA GENERACIÓN DE PRODUCTOS CLIMATOLOGICOS"]
[51810900,0,0,4282019,4282019,10820,"2020-01-10 00:00:00","2020-01-10 13:12:16","Con Obligacion","05","IDEAM-GG-SUBDIRECCION HIDROLOGIA","C-3204-0900-3-0-3204051-02","ADQUISICIÓN DE BIENES Y SERVICIOS - SERVICIO DE MONITOREO Y SEGUIMIENTO HIDROMETEOROLÓGICO - FORTALECIMIENTO DE LA GESTIÓN DEL CONOCIMIENTO HIDROLÓGICO, METEOROLÓGICO Y AMBIENTAL NACIONAL","Nación","OTROS RECURSOS DEL TESORO","CSF",20400000,0,20400000,16320000,"Cédula de Ciudadanía","51810900","MORA HERNANDEZ MARTHA OLIVA","Abono en cuenta","Ahorro","24050808445","Activa","860007335","BCSC S A","13220","13120","10820","39320, 74220","47020, 89320","20224320, 44479720",null,"2020-01-10 00:00:00","CONTRATO DE PRESTACION DE SERVICIOS",4282019,"RENGLON 107, ACT PAA 05, AMPARAR VIGENCIA FUTURA 2020 PRESTAR LOS SERVICIOS TECNICOS PARA REPARAR Y CALIBRAR INSTRUMENTAL HIDROMETEOROLOGICO CONVENCIONAL (TERMOGRAFOS, TERMOHIGROGRAOS, HIGROGRAFOS, ANENOMETROS, HELIOGRAFOS, TANQUES DE PLUVIOGRAFO, MO"]
[1049629852,0,0,4292019,4292019,10920,"2020-01-10 00:00:00","2020-01-10 13:15:31","Con Obligacion","05","IDEAM-GG-SUBDIRECCION HIDROLOGIA","C-3204-0900-3-0-3204051-02","ADQUISICIÓN DE BIENES Y SERVICIOS - SERVICIO DE MONITOREO Y SEGUIMIENTO HIDROMETEOROLÓGICO - FORTALECIMIENTO DE LA GESTIÓN DEL CONOCIMIENTO HIDROLÓGICO, METEOROLÓGICO Y AMBIENTAL NACIONAL","Nación","OTROS RECURSOS DEL TESORO","CSF",34200000,0,34200000,27360000,"Cédula de Ciudadanía","1049629852","FIGUEROA CASAS JEFFER IVAN","Abono en cuenta","Ahorro","25826080071","Activa","890903938","BANCOLOMBIA S.A.","13320","13220","10920","43220, 80720, 80820","53220, 91020","21435520, 44482020",null,"2020-01-10 00:00:00","CONTRATO DE PRESTACION DE SERVICIOS - PROFESIONALES",4292019,"RENGLON 107, ACT PAA 05, PARA AMPARAR VIGENCIA FUTURA 2020 PRESTAR SERVICIOS PROFESIONALES PARA APOYAR EN LA ELABORACIÓN DE PROPUESTAS DE INTEROPERABILIDAD Y SEGUIMIENTO A LOS CONVENIOS RELACIONADOS CON LA OPERACIÓN Y GENERACIÓN DE DATOS DE LA RED H"]
[1019033482,0,0,4302019,4302019,11320,"2020-01-10 00:00:00","2020-01-10 14:42:18","Con Obligacion","04","IDEAM-GG-DG.OFICINA DEL SERVICIO DE PRONOSTICOS Y ALERTAS","C-3204-0900-3-0-3204043-02","ADQUISICIÓN DE BIENES Y SERVICIOS - SERVICIO DE INFORMACIÓN DE DATOS CLIMÁTICOS Y MONITOREO - FORTALECIMIENTO DE LA GESTIÓN DEL CONOCIMIENTO HIDROLÓGICO, METEOROLÓGICO Y AMBIENTAL NACIONAL","Nación","OTROS RECURSOS DEL TESORO","CSF",17190000,0,17190000,5157000,"Cédula de Ciudadanía","1019033482","MUÑOZ HERRERA LIZETH NATALIA","Abono en cuenta","Ahorro","54700064673","Activa","890903938","BANCOLOMBIA S.A.","13420","13320","11320","38820, 75720, 91120, 91220","46420, 84920, 97420","20214420, 42241220, 44398120",null,"2020-01-10 00:00:00","CONTRATO DE PRESTACION DE SERVICIOS - PROFESIONALES",4302019,"RENGLON 096, ACT PAA 14, AMPARAR VIGENCIA FUTURA 2020 PRESTAR LOS SERVICIOS PROFESIONALES EN LA OSPA, MEDIANTE LA PRESTACIÓN DE TURNOS DE MONITOREO DIURNO Y NOCTURNO, CON EL FIN DE OBTENER PRONOSTICOS HIDROLOGICOS DINAMICOS Y ACTUALIZABLES A NIVEL NA"]
[75003254,{"$f":"IFERROR(MID(AM60,SEARCH(\"CTO.\",AM60)+5,7),0)","v":0},{"$f":"IFERROR(MID(AM60,SEARCH(\"CTO \",AM60)+4,7),0)","v":0},{"$f":"IFERROR(AM60+0,0)","v":4262019},{"$f":"B60+C60+D60","v":4262019},11420,"2020-01-10 00:00:00","2020-01-10 14:45:17","Con Obligacion","04","IDEAM-GG-DG.OFICINA DEL SERVICIO DE PRONOSTICOS Y ALERTAS","C-3204-0900-3-0-3204043-02","ADQUISICIÓN DE BIENES Y SERVICIOS - SERVICIO DE INFORMACIÓN DE DATOS CLIMÁTICOS Y MONITOREO - FORTALECIMIENTO DE LA GESTIÓN DEL CONOCIMIENTO HIDROLÓGICO, METEOROLÓGICO Y AMBIENTAL NACIONAL","Nación","OTROS RECURSOS DEL TESORO","CSF",63030000,0,63030000,51570000,"Cédula de Ciudadanía","75003254","SALAZAR CASTAÑO MAURICIO","Abono en cuenta","Ahorro","18838904081","Activa","890903938","BANCOLOMBIA S.A.","13520","13420","11420","29020, 103020","39520, 111620","17552620, 50122120",null,"2020-01-10 00:00:00","CONTRATO DE PRESTACION DE SERVICIOS - PROFESIONALES",4262019,"RENGLON 096, ACT PAA 14, AMPARAR VIGENCIA FUTURA 2020 PRESTAR LOS SERVICIOS PROFESIONALES EN LA OSPA, CON EL FIN DE GENERAR PRODUCTOS GRAFICOS Y CARTOGRAFICOS AUTOMATIZADOS A PARTIR DEL USO DE LENGUAJES DE PROGRAMACIÓN"]
[79823683,0,0,4272019,4272019,11520,"2020-01-10 00:00:00","2020-01-10 14:48:57","Con Obligacion","04","IDEAM-GG-DG.OFICINA DEL SERVICIO DE PRONOSTICOS Y ALERTAS","C-3204-0900-3-0-3204043-02","ADQUISICIÓN DE BIENES Y SERVICIOS - SERVICIO DE INFORMACIÓN DE DATOS CLIMÁTICOS Y MONITOREO - FORTALECIMIENTO DE LA GESTIÓN DEL CONOCIMIENTO HIDROLÓGICO, METEOROLÓGICO Y AMBIENTAL NACIONAL","Nación","OTROS RECURSOS DEL TESORO","CSF",63030000,0,63030000,51570000,"Cédula de Ciudadanía","79823683","MERCHAN OLAYA CARLOS MAURICIO","Abono en cuenta","Ahorro","56711337828","Activa","890903938","BANCOLOMBIA S.A.","13620","13520","11520","35120, 96820","44220, 105120","20186620, 48998820",null,"2020-01-10 00:00:00","CONTRATO DE PRESTACION DE SERVICIOS - PROFESIONALES",4272019,"RENGLON 096, ACT PAA 14, AMPARAR VIGENCIA FUTURA 2020 PRESTAR LOS SERVICIOS PROFESIONALES EN LA OSPA, MEDIANTE LA PRESTACIÓN DE TURNOS DE MONITOREO DIURNO Y NOCTURNO, CON EL FIN DE OBTENER PRONOSTICOS HIDROLOGICOS DINAMICOS Y ACTUALIZABLES"]
[1020798754,0,0,4322019,4322019,11620,"2020-01-10 00:00:00","2020-01-10 14:54:32","Con Obligacion","04","IDEAM-GG-DG.OFICINA DEL SERVICIO DE PRONOSTICOS Y ALERTAS","C-3204-0900-3-0-3204043-02","ADQUISICIÓN DE BIENES Y SERVICIOS - SERVICIO DE INFORMACIÓN DE DATOS CLIMÁTICOS Y MONITOREO - FORTALECIMIENTO DE LA GESTIÓN DEL CONOCIMIENTO HIDROLÓGICO, METEOROLÓGICO Y AMBIENTAL NACIONAL","Nación","OTROS RECURSOS DEL TESORO","CSF",58410000,0,58410000,47790000,"Cédula de Ciudadanía","1020798754","MEDINA JAIMES LUIS ENRIQUE","Abono en cuenta","Ahorro","78399668033","Activa","890903938","BANCOLOMBIA S.A.","13720","13620","11620","41420, 97620","50320, 106020","21397720, 49000620",null,"2020-01-10 00:00:00","CONTRATO DE PRESTACION DE SERVICIOS - PROFESIONALES",4322019,"RENGLON 096, ACT PAA 14, AMPARAR VIGENCIA FUTURA 2020 PRESTAR LOS SERVICIOS PROFESIONALES EN LA OSPA, CON EL FIN DE GENERAR PRODUCTOS GRAFICOS Y CARTOGRAFICOS AUTOMATIZADOS MEDIANTE EL EMPLEO DE HERRAMIENTAS WEB Y DE SISTEMAS DE INFORMACIÓN GEOGRAFI"]
[79885613,0,0,4342019,4342019,11920,"2020-01-10 00:00:00","2020-01-10 14:59:33","Con Obligacion","04","IDEAM-GG-DG.OFICINA DEL SERVICIO DE PRONOSTICOS Y ALERTAS","C-3204-0900-3-0-3204043-02","ADQUISICIÓN DE BIENES Y SERVICIOS - SERVICIO DE INFORMACIÓN DE DATOS CLIMÁTICOS Y MONITOREO - FORTALECIMIENTO DE LA GESTIÓN DEL CONOCIMIENTO HIDROLÓGICO, METEOROLÓGICO Y AMBIENTAL NACIONAL","Nación","OTROS RECURSOS DEL TESORO","CSF",70290000,0,70290000,57510000,"Cédula de Ciudadanía","79885613","MARTINEZ MERCADO ALEXANDER MARCIAL","Abono en cuenta","Ahorro","69856084329","Activa","890903938","BANCOLOMBIA S.A.","13820","13720","11920","29620, 95720","39720, 104220","17553120, 48996520",null,"2020-01-10 00:00:00","CONTRATO DE PRESTACION DE SERVICIOS - PROFESIONALES",4342019,"RENGLON 096, ACT PAA 14, AMPARAR VIGENCIA FUTURA 2020 PRESTAR LOS SERVICIOS PROFESIONALES EN LA ELABORACIÓN DE PRONOSTICOS DEL ESTADO DEL TIEMPO, ESPECIALES, VARIABILIDAD CLIMATICA, METEOMARINOS, AGROMETEOROLOGICOS Y DEMAS SERVICIOS OPERATIVOS"]
[1018421469,0,0,4332019,4332019,12120,"2020-01-10 00:00:00","2020-01-10 15:02:43","Con Obligacion","04","IDEAM-GG-DG.OFICINA DEL SERVICIO DE PRONOSTICOS Y ALERTAS","C-3204-0900-3-0-3204043-02","ADQUISICIÓN DE BIENES Y SERVICIOS - SERVICIO DE INFORMACIÓN DE DATOS CLIMÁTICOS Y MONITOREO - FORTALECIMIENTO DE LA GESTIÓN DEL CONOCIMIENTO HIDROLÓGICO, METEOROLÓGICO Y AMBIENTAL NACIONAL","Nación","OTROS RECURSOS DEL TESORO","CSF",47520000,0,47520000,38880000,"Cédula de Ciudadanía","1018421469","BARRIOS MORENO JUAN SEBASTIAN","Abono en cuenta","Ahorro","24527872100","Activa","860007335","BCSC S A","13920","13820","12120","33720, 97320","43120, 105620","20523220, 50121920",null,"2020-01-10 00:00:00","CONTRATO DE PRESTACION DE SERVICIOS - PROFESIONALES",4332019,"RENGLON 096, ACT PAA 14, AMPARAR VIGENCIA FUTURA 2020 PRESTAR LOS SERVICIOS PROFESIONALES EN LA OSPA, MEDIANTE LA PRESTACIÓN DE TURNOS DE MONITOREO, SEGUIMIENTO Y ANALISIS DE DATOS HIDROMETEOROLOGICOS CON EL FIN DE GENERAR INFORMACIÓN BASICA PARA LA"]
[1122404244,0,0,4312019,4312019,12320,"2020-01-10 00:00:00","2020-01-10 15:07:37","Con Obligacion","05","IDEAM-GG-SUBDIRECCION HIDROLOGIA","C-3204-0900-3-0-3204051-02","ADQUISICIÓN DE BIENES Y SERVICIOS - SERVICIO DE MONITOREO Y SEGUIMIENTO HIDROMETEOROLÓGICO - FORTALECIMIENTO DE LA GESTIÓN DEL CONOCIMIENTO HIDROLÓGICO, METEOROLÓGICO Y AMBIENTAL NACIONAL","Nación","OTROS RECURSOS DEL TESORO","CSF",28110000,0,28110000,22488000,"Cédula de Ciudadanía","1122404244","CUELLO CASTRO FRAMBEY","Abono en cuenta","Ahorro","4862026045","Activa","860034594","SCOTIABANK COLPATRIA SA","14020","13920","12320","43020, 80420","53020, 90520","21425720, 44481420",null,"2020-01-10 00:00:00","CONTRATO DE PRESTACION DE SERVICIOS - PROFESIONALES",4312019,"RENGLON 107, ACT PAA 05, AMPARAR VIGENCIA FUTURA 2020 PRESTAR SERVICIOS PROFESIONALES PARA APOYAR EN EL SEGUIMIENTO Y CONTROL A LA OPERACIÓN Y MANTENIMINETO DE LA RED NACIONAL DE ESTACIONES HIDROMETEOROLOGICAS Y A LOS INDICADORES DE GESTIÓN DEL GRUP"]
[1014191032,0,0,4362019,4362019,12620,"2020-01-10 00:00:00","2020-01-10 15:13:33","Con Obligacion","04","IDEAM-GG-DG.OFICINA DEL SERVICIO DE PRONOSTICOS Y ALERTAS","C-3204-0900-3-0-3204043-02","ADQUISICIÓN DE BIENES Y SERVICIOS - SERVICIO DE INFORMACIÓN DE DATOS CLIMÁTICOS Y MONITOREO - FORTALECIMIENTO DE LA GESTIÓN DEL CONOCIMIENTO HIDROLÓGICO, METEOROLÓGICO Y AMBIENTAL NACIONAL","Nación","OTROS RECURSOS DEL TESORO","CSF",70290000,0,70290000,57510000,"Cédula de Ciudadanía","1014191032","RUALES HERNANDEZ JOSE LEONARDO","Abono en cuenta","Ahorro","007770258742","Activa","860034313","BANCO DAVIVIENDA S.A.","14120","14020","12620","43420, 43520, 98420","53420, 106620","22471320, 49002120",null,"2020-01-10 00:00:00","CONTRATO DE PRESTACION DE SERVICIOS - PROFESIONALES",4362019,"RENGLON 096, ACT PAA 14, AMPARAR VIGENCIA FUTURA 2020, PRESTAR LOS SERVICIOS PROFESIONALES EN LA ELABORACIÓN DE PRONOSTICOS DEL ESTADO DEL TIEMPO, ESPECIALES, VARIABILIDAD CLIMATICA, METEOMARINOS, AGROMETEOROLOGICOS Y DEMÁS SERVICIOS OPERATIVOS"]
[1020751408,0,0,4382019,4382019,12720,"2020-01-10 00:00:00","2020-01-10 15:19:16","Con Obligacion","05","IDEAM-GG-SUBDIRECCION HIDROLOGIA","C-3204-0900-3-0-3204051-02","ADQUISICIÓN DE BIENES Y SERVICIOS - SERVICIO DE MONITOREO Y SEGUIMIENTO HIDROMETEOROLÓGICO - FORTALECIMIENTO DE LA GESTIÓN DEL CONOCIMIENTO HIDROLÓGICO, METEOROLÓGICO Y AMBIENTAL NACIONAL","Nación","OTROS RECURSOS DEL TESORO","CSF",34800000,-464000,34336000,27840000,"Cédula de Ciudadanía","1020751408","ALDANA ROA BAIRON ALIRIO","Abono en cuenta","Ahorro","94443023776","Activa","890903938","BANCOLOMBIA S.A.","14220","14120","12720","29520, 82120","38420, 92220","16268620, 44482920",null,"2020-01-10 00:00:00","CONTRATO DE PRESTACION DE SERVICIOS - PROFESIONALES",4382019,"RENGLON 107, ACT PAA 05, PARA AMPARAR VIGENCIA FUTURA 2020 PRESTAR SERVICIOS PROFESIONALES PARA APOYAR EN EL SEGUIMIENTO A LA GENERACIÓN DE DATOS HIDROMETEOROLOGICOS DE REDES DE ESTACIONES AUTOMATICAS DE OTRAS ENTIDADES ASI COMO LA ESTRUCTURACIÓN DE"]
[1049613445,0,0,4442019,4442019,12820,"2020-01-10 00:00:00","2020-01-10 16:21:45","Con Obligacion","05","IDEAM-GG-SUBDIRECCION HIDROLOGIA","C-3204-0900-3-0-3204051-02","ADQUISICIÓN DE BIENES Y SERVICIOS - SERVICIO DE MONITOREO Y SEGUIMIENTO HIDROMETEOROLÓGICO - FORTALECIMIENTO DE LA GESTIÓN DEL CONOCIMIENTO HIDROLÓGICO, METEOROLÓGICO Y AMBIENTAL NACIONAL","Nación","OTROS RECURSOS DEL TESORO","CSF",25110000,0,25110000,19530000,"Cédula de Ciudadanía","1049613445","GAONA BARRERA DAVID ARTURO","Abono en cuenta","Ahorro","88234364141","Activa","890903938","BANCOLOMBIA S.A.","14320","14220","12820","39120, 74020, 74120","46820, 89220","20219220, 44479620",null,"2020-01-10 00:00:00","CONTRATO DE PRESTACION DE SERVICIOS - PROFESIONALES",4442019,"RENGLON 107, ACT PAA 05, AMPARAR VIGENCIA FUTURA 2020 PRESTAR SERVICIOS PROFESIONALES PARA MANTENER LA RED NACIONAL DE ESTACIONES HIDROMETEOROLOGICAS AUTOMATICAS, DIAGNOSTICAR LOS EUIPOS ELECTRONICOS CON FINES HIDROMETEOROLOGICOS QUE CONSTITUYEN LA R"]
[91532338,0,0,4402019,4402019,13020,"2020-01-10 00:00:00","2020-01-10 16:31:12","Con Obligacion","05","IDEAM-GG-SUBDIRECCION HIDROLOGIA","C-3204-0900-3-0-3204051-02","ADQUISICIÓN DE BIENES Y SERVICIOS - SERVICIO DE MONITOREO Y SEGUIMIENTO HIDROMETEOROLÓGICO - FORTALECIMIENTO DE LA GESTIÓN DEL CONOCIMIENTO HIDROLÓGICO, METEOROLÓGICO Y AMBIENTAL NACIONAL","Nación","OTROS RECURSOS DEL TESORO","CSF",32130000,0,32130000,24990000,"Cédula de Ciudadanía","91532338","MORENO RIVEROS GEIZMAR","Abono en cuenta","Ahorro","046470120406","Activa","860034313","BANCO DAVIVIENDA S.A.","14420","14320","13020","39220, 74320","46920, 89420","20221220, 44479820",null,"2020-01-10 00:00:00","CONTRATO DE PRESTACION DE SERVICIOS - PROFESIONALES",4402019,"RENGLON 107, ACT PAA 05, AMPARAR VIGENCIA FUTURA 2020 PRESTAR SERVICIOS PROFESIONALES PARA MANTENER LA RED NACIONAL DE ESTACIONES HIDROMETEOROLOGICAS AUTOMATICAS, DIAGNOSTICAR LOS EUIPOS ELECTRONICOS CON FINES HIDROMETEOROLOGICOS QUE CONSTITUYEN LA R"]
[1049614524,0,0,4452019,4452019,13120,"2020-01-10 00:00:00","2020-01-10 16:35:28","Con Obligacion","05","IDEAM-GG-SUBDIRECCION HIDROLOGIA","C-3204-0900-3-0-3204051-02","ADQUISICIÓN DE BIENES Y SERVICIOS - SERVICIO DE MONITOREO Y SEGUIMIENTO HIDROMETEOROLÓGICO - FORTALECIMIENTO DE LA GESTIÓN DEL CONOCIMIENTO HIDROLÓGICO, METEOROLÓGICO Y AMBIENTAL NACIONAL","Nación","OTROS RECURSOS DEL TESORO","CSF",32400000,0,32400000,25200000,"Cédula de Ciudadanía","1049614524","RODRIGUEZ PEREZ MANUEL FELIPE","Abono en cuenta","Ahorro","20272404616","Activa","890903938","BANCOLOMBIA S.A.","14520","14420","13120","38920, 73920","46620, 88920","20216320, 44479520",null,"2020-01-10 00:00:00","CONTRATO DE PRESTACION DE SERVICIOS - PROFESIONALES",4452019,"RENGLON 107, ACT PAA 05, AMPARAR VIGENCIA FUTURA 2020 PRESTAR SERVICIOS PROFESIONALES PARA MANTENER LA RED NACIONAL DE ESTACIONES HIDROMETEOROLOGICAS AUTOMATICAS, DIAGNOSTICAR LOS EUIPOS ELECTRONICOS CON FINES HIDROMETEOROLOGICOS QUE CONSTITUYEN LA"]
[8650234,0,0,4392019,4392019,13220,"2020-01-10 00:00:00","2020-01-10 16:41:31","Con Obligacion","05","IDEAM-GG-SUBDIRECCION HIDROLOGIA","C-3204-0900-3-0-3204051-02","ADQUISICIÓN DE BIENES Y SERVICIOS - SERVICIO DE MONITOREO Y SEGUIMIENTO HIDROMETEOROLÓGICO - FORTALECIMIENTO DE LA GESTIÓN DEL CONOCIMIENTO HIDROLÓGICO, METEOROLÓGICO Y AMBIENTAL NACIONAL","Nación","OTROS RECURSOS DEL TESORO","CSF",32130000,0,32130000,24990000,"Cédula de Ciudadanía","8650234","PADILLA LOPEZ MANUEL DE JESUS","Abono en cuenta","Ahorro","52690206102","Activa","890903938","BANCOLOMBIA S.A.","14620","14520","13220","39020, 73820","46720, 88820","20217820, 44479420",null,"2020-01-10 00:00:00","CONTRATO DE PRESTACION DE SERVICIOS - PROFESIONALES",4392019,"RENGLON 107, ACT PAA 05, AMPARAR VIGENCIA FUTURA 2020 PRESTAR SERVICIOS PROFESIONALES PARA MANTENER LA RED NACIONAL DE ESTACIONES HIDROMETEOROLOGICAS AUTOMATICAS, DIAGNOSTICAR LOS EUIPOS ELECTRONICOS CON FINES HIDROMETEOROLOGICOS QUE CONSTITUYEN LA R"]
[52736936,0,0,292020,292020,13320,"2020-01-10 00:00:00","2020-01-10 16:50:32","Con Obligacion","02","IDEAM-GG-SECRETARIA GENERAL","C-3299-0900-1-0-3299007-02","ADQUISICIÓN DE BIENES Y SERVICIOS - SERVICIO DE ATENCIÓN AL CIUDADANO - FORTALECIMIENTO DE LA GESTIÓN Y DIRECCIÓN DEL INSTITUTO DE HIDROLOGÍA, METEOROLOGÍA Y ESTUDIOS AMBIENTALES NACIONAL","Nación","OTROS RECURSOS DEL TESORO","CSF",52605000,0,52605000,45925000,"Cédula de Ciudadanía","52736936","BULLA PORTUGUEZ PAOLA ANDREA","Abono en cuenta","Ahorro","24017773713","Activa","860007335","BCSC S A","11620","11620","13320","37220, 86120","116820, 117020","52478620, 52485420",null,"2020-01-10 00:00:00","CONTRATO DE PRESTACION DE SERVICIOS - PROFESIONALES","0292020","RENGLON 051, ACT PAA 3299007, PRESTAR LOS SERVICIOS PROFESIONALES AL GRUPO DE SERVICIO AL CIUDADANO PARA REALIZAR EL ANÁLISIS DE DATOS METEOROLÓGICOS A TRAVÉS DE METODOLOGÍAS ESTADÍSTICAS Y ESPECIALIZACIÓN DE LAS ESTACIONES CON EL FIN DE ELABORAR LAS"]
[1019063818,0,0,4522019,4522019,14620,"2020-01-13 00:00:00","2020-01-13 11:17:06","Con Obligacion","05","IDEAM-GG-SUBDIRECCION HIDROLOGIA","C-3204-0900-3-0-3204051-02","ADQUISICIÓN DE BIENES Y SERVICIOS - SERVICIO DE MONITOREO Y SEGUIMIENTO HIDROMETEOROLÓGICO - FORTALECIMIENTO DE LA GESTIÓN DEL CONOCIMIENTO HIDROLÓGICO, METEOROLÓGICO Y AMBIENTAL NACIONAL","Nación","OTROS RECURSOS DEL TESORO","CSF",26100000,0,26100000,20880000,"Cédula de Ciudadanía","1019063818","TIQUE ROJAS DANIEL FERNANDO","Abono en cuenta","Ahorro","095880498","Activa","860002964","BANCO DE BOGOTA S. A.","16720","16320","14620","41920, 74520","70720, 89620","33236520, 44480220",null,"2020-01-13 00:00:00","CONTRATO DE PRESTACION DE SERVICIOS - PROFESIONALES",4522019,"RENGLON 107, ACT PAA 05, AMPARAR VIGENCIA FUTURA 2020 PRESTAR SERVICIOS PROFESIONALES EN EL PROCESO DE CALIBRACIÓN Y VERIFICACIÓN DE LOS CALCULOS DE INCERTIDUMBRE EN LAS VARIABLES DE TEMPERATURA, HUMEDAD, PRESION, RADIACIÓN, VOLTAJE, CORRIENTE Y PREC"]
[52813548,0,0,4502019,4502019,14720,"2020-01-13 00:00:00","2020-01-13 11:34:31","Con Obligacion","04","IDEAM-GG-DG.OFICINA DEL SERVICIO DE PRONOSTICOS Y ALERTAS","C-3204-0900-3-0-3204043-02","ADQUISICIÓN DE BIENES Y SERVICIOS - SERVICIO DE INFORMACIÓN DE DATOS CLIMÁTICOS Y MONITOREO - FORTALECIMIENTO DE LA GESTIÓN DEL CONOCIMIENTO HIDROLÓGICO, METEOROLÓGICO Y AMBIENTAL NACIONAL","Nación","OTROS RECURSOS DEL TESORO","CSF",6390000,0,6390000,0,"Cédula de Ciudadanía","52813548","TORRES PINEDA CLAUDIA ELIZABETH","Abono en cuenta","Ahorro","17758514358","Activa","890903938","BANCOLOMBIA S.A.","16820","16420","14720","34220","43520","18157320",null,"2020-01-13 00:00:00","CONTRATO DE PRESTACION DE SERVICIOS - PROFESIONALES",4502019,"RENGLON 096, ACT PAA 14, AMPARAR VIGENCIA FUTURA 2020 PRESTAR LOS SERVICIOS PROFESIONALES EN LA ELABORACIÓN DE PRONOSTICOS DEL ESTADO DEL TIEMPO, ESPECIALES, VARIABILIDAD CLIMATICA, METEOMARINOS, AGROMETEOROLOGICOS Y DEMÁS SERVICIOS OPERATIVOS QUE SE"]
[94509005,0,0,4462019,4462019,14820,"2020-01-13 00:00:00","2020-01-13 11:47:30","Con Obligacion","05","IDEAM-GG-SUBDIRECCION HIDROLOGIA","C-3204-0900-3-0-3204051-02","ADQUISICIÓN DE BIENES Y SERVICIOS - SERVICIO DE MONITOREO Y SEGUIMIENTO HIDROMETEOROLÓGICO - FORTALECIMIENTO DE LA GESTIÓN DEL CONOCIMIENTO HIDROLÓGICO, METEOROLÓGICO Y AMBIENTAL NACIONAL","Nación","OTROS RECURSOS DEL TESORO","CSF",20400000,0,20400000,16320000,"Cédula de Ciudadanía","94509005","JHON ALEXANDER PRADA OSORIO","Abono en cuenta","Ahorro","118831986","Activa","860035827","BANCO COMERCIAL AV VILLAS S.A.","16920","16520","14820","40120, 99220, 100120","48020, 107320","20248020, 47635320",null,"2020-01-13 00:00:00","CONTRATO DE PRESTACION DE SERVICIOS",4462019,"RENGLON 107, ACT PAA 05, AMPARAR VIGENCIA FUTURA 2020 PRESTAR SERVICIOS TECNICOS PARA REALIZAR LA OPERACIÓN DE LAS ESTACIONES CONVENCIONALES Y AUTOMATICAS DE LA RED NACIONAL Y APOYAR EL PROCESO DE INFORMACIÓN HIDROLOGICA Y METEOROLOGICAEN EL AREA O"]
[12129870,0,0,4512019,4512019,14920,"2020-01-13 00:00:00","2020-01-13 11:52:26","Con Obligacion","05","IDEAM-GG-SUBDIRECCION HIDROLOGIA","C-3204-0900-3-0-3204051-02","ADQUISICIÓN DE BIENES Y SERVICIOS - SERVICIO DE MONITOREO Y SEGUIMIENTO HIDROMETEOROLÓGICO - FORTALECIMIENTO DE LA GESTIÓN DEL CONOCIMIENTO HIDROLÓGICO, METEOROLÓGICO Y AMBIENTAL NACIONAL","Nación","OTROS RECURSOS DEL TESORO","CSF",22110000,0,22110000,18090000,"Cédula de Ciudadanía","12129870","OLAYA NARVAEZ MILLER","Abono en cuenta","Ahorro","24084989734","Activa","860007335","BCSC S A","17020","16620","14920","39520, 104020","47220, 112420","21407820, 50123020",null,"2020-01-13 00:00:00","CONTRATO DE PRESTACION DE SERVICIOS",4512019,"RENGLON 107, ACT PAA 05, AMPARAR VIGENCIA FUTURA 2020 PRESTAR SERVICIOS TECNICOS PARA REALIZAR LA OPERACIÓN DE LAS ESTACIONES CONVENCIONALES Y AUTOMATICAS DE LA RED NACIONAL Y APOYAR EL PROCESO DE INFORMACIÓN HIDROLOGICA Y METEOROLOGICAEN EL AREA OPE"]
[1075239507,0,0,4542019,4542019,15320,"2020-01-13 00:00:00","2020-01-13 12:11:46","Con Obligacion","05","IDEAM-GG-SUBDIRECCION HIDROLOGIA","C-3204-0900-3-0-3204051-02","ADQUISICIÓN DE BIENES Y SERVICIOS - SERVICIO DE MONITOREO Y SEGUIMIENTO HIDROMETEOROLÓGICO - FORTALECIMIENTO DE LA GESTIÓN DEL CONOCIMIENTO HIDROLÓGICO, METEOROLÓGICO Y AMBIENTAL NACIONAL","Nación","OTROS RECURSOS DEL TESORO","CSF",29700000,0,29700000,24300000,"Cédula de Ciudadanía","1075239507","POLANIA OSPINA JORGE MAURICIO","Abono en cuenta","Ahorro","07613980665","Activa","890903938","BANCOLOMBIA S.A.","17720","17320","15320","39620, 99520","47420, 107620","20243420, 47635720",null,"2020-01-13 00:00:00","CONTRATO DE PRESTACION DE SERVICIOS - PROFESIONALES",4542019,"RENGLON 107, ACT PAA 05, AMPARAR VIGENCIA FUTURA 2020 PRESTAR SERVICIOS PROFESIONALES PARA EVALUAR, CAPTURAR, PROCESAR, VERIFICAR Y ANALIZAR DATOS HIDROLOGICOS (NIVELES, CAUDALES Y SEDIMENTOS) EN EL AREA OPERATIVA 10-TOLIMA"]
[39536070,0,0,4562019,4562019,15420,"2020-01-13 00:00:00","2020-01-13 12:15:58","Con Obligacion","05","IDEAM-GG-SUBDIRECCION HIDROLOGIA","C-3204-0900-3-0-3204051-02","ADQUISICIÓN DE BIENES Y SERVICIOS - SERVICIO DE MONITOREO Y SEGUIMIENTO HIDROMETEOROLÓGICO - FORTALECIMIENTO DE LA GESTIÓN DEL CONOCIMIENTO HIDROLÓGICO, METEOROLÓGICO Y AMBIENTAL NACIONAL","Nación","OTROS RECURSOS DEL TESORO","CSF",72300000,0,72300000,57840000,"Cédula de Ciudadanía","39536070","AGUILERA AGUILERA DILIA ANGELA","Abono en cuenta","Ahorro","63648441993","Activa","890903938","BANCOLOMBIA S.A.","17820","17420","15420","39420, 80920","47120, 91220","20238620, 44482120",null,"2020-01-13 00:00:00","CONTRATO DE PRESTACION DE SERVICIOS - PROFESIONALES",4562019,"RENGLON 107, ACT PAA 05, AMPARAR VIGENCIA FUTURA 2020 APOYAR Y REALIZAR EL SEGUIMIENTO AL ESTADO DE LA RED Y EL CORRECTO MANTENIMIENTO Y OPERACIÓN DE LA RED DE ESTACIONES HIDROMETEOROLOGICAS, SEGUIMIENTO CONVENIOS E INVESION DEL 1%"]
[13072126,0,0,4552019,4552019,15520,"2020-01-13 00:00:00","2020-01-13 12:22:41","Con Obligacion","05","IDEAM-GG-SUBDIRECCION HIDROLOGIA","C-3204-0900-3-0-3204051-02","ADQUISICIÓN DE BIENES Y SERVICIOS - SERVICIO DE MONITOREO Y SEGUIMIENTO HIDROMETEOROLÓGICO - FORTALECIMIENTO DE LA GESTIÓN DEL CONOCIMIENTO HIDROLÓGICO, METEOROLÓGICO Y AMBIENTAL NACIONAL","Nación","OTROS RECURSOS DEL TESORO","CSF",21284000,0,21284000,17204000,"Cédula de Ciudadanía","13072126","RIASCOS VILLOTA JAIME EDUARDO","Abono en cuenta","Ahorro","106600137421","Activa","860034313","BANCO DAVIVIENDA S.A.","17920","17520","15520","57820, 104320","87520, 112620","43403020, 50123220",null,"2020-01-13 00:00:00","CONTRATO DE PRESTACION DE SERVICIOS",4552019,"RENGLON 107, ACT PAA 05, AMPARAR VIGENCIA FUTURA 2020 PRESTAR SERVICIOS TECNICOS PARA REALIZAR LA OPERACIÓN DE LAS ESTACIONES CONVENCIONALES Y AUTOMATICAS DE LA RED NACIONAL Y APOYAR EL PROCESO DE INFORMACIÓN HIDROLOGICA Y METEOROLOGICAEN EL AREA OPE"]
[1064977116,0,0,4592019,4592019,15720,"2020-01-13 00:00:00","2020-01-13 14:35:41","Con Obligacion","05","IDEAM-GG-SUBDIRECCION HIDROLOGIA","C-3204-0900-3-0-3204051-02","ADQUISICIÓN DE BIENES Y SERVICIOS - SERVICIO DE MONITOREO Y SEGUIMIENTO HIDROMETEOROLÓGICO - FORTALECIMIENTO DE LA GESTIÓN DEL CONOCIMIENTO HIDROLÓGICO, METEOROLÓGICO Y AMBIENTAL NACIONAL","Nación","OTROS RECURSOS DEL TESORO","CSF",27000000,0,27000000,21600000,"Cédula de Ciudadanía","1064977116","ALMANZA HERNANDEZ LETTY CLAUDITH","Abono en cuenta","Ahorro","24058897463","Activa","860007335","BCSC S A","19120","18520","15720","43620, 99320","53520, 107420","25680520, 47635520",null,"2020-01-13 00:00:00","CONTRATO DE PRESTACION DE SERVICIOS - PROFESIONALES",4592019,"RENGLON 107, ACT PAA 05, AMPARAR VIGENCIA FUTURA 2020 PRESTAR SERVICIOS PROFESIONALES PARA EVALUAR, CAPTURAR, PROCESAR, VERIFICAR Y ANALIZAR DATOS METEOROLOGICOS EN EL AREA OPERATIVA No. 02 BARRANQUILLA"]
[1089459037,0,0,4602019,4602019,15820,"2020-01-13 00:00:00","2020-01-13 14:43:10","Con Obligacion","05","IDEAM-GG-SUBDIRECCION HIDROLOGIA","C-3204-0900-3-0-3204051-02","ADQUISICIÓN DE BIENES Y SERVICIOS - SERVICIO DE MONITOREO Y SEGUIMIENTO HIDROMETEOROLÓGICO - FORTALECIMIENTO DE LA GESTIÓN DEL CONOCIMIENTO HIDROLÓGICO, METEOROLÓGICO Y AMBIENTAL NACIONAL","Nación","OTROS RECURSOS DEL TESORO","CSF",21284000,0,21284000,17204000,"Cédula de Ciudadanía","1089459037","GARCIA PASCUASA JORGE MARIO","Abono en cuenta","Ahorro","1632084781","Activa","860034594","SCOTIABANK COLPATRIA SA","19220","18620","15820","58420, 99620","86420, 107720","47631120, 47635820",null,"2020-01-13 00:00:00","CONTRATO DE PRESTACION DE SERVICIOS - PROFESIONALES",4602019,"RENGLON 107, ACT PAA 05, AMPARAR VIGENCIA FUTURA 2020 PRESTAR SERVICIOS TECNICOS PARA REALIZAR LA OPERACIÓN DE LAS ESTACIONES CONVENCIONALES Y AUTOMATICAS DE LA RED NACIONAL Y APOYAR EL PROCESO DE INFORMACIÓN HIDROLOGICA Y METEOROLOGICA EN EL A.O 07-"]
[1120360304,0,0,4612019,4612019,15920,"2020-01-13 00:00:00","2020-01-13 14:47:42","Con Obligacion","05","IDEAM-GG-SUBDIRECCION HIDROLOGIA","C-3204-0900-3-0-3204051-02","ADQUISICIÓN DE BIENES Y SERVICIOS - SERVICIO DE MONITOREO Y SEGUIMIENTO HIDROMETEOROLÓGICO - FORTALECIMIENTO DE LA GESTIÓN DEL CONOCIMIENTO HIDROLÓGICO, METEOROLÓGICO Y AMBIENTAL NACIONAL","Nación","OTROS RECURSOS DEL TESORO","CSF",25500000,0,25500000,20400000,"Cédula de Ciudadanía","1120360304","PINEDA CASTAÑO LEIDY LORENA","Abono en cuenta","Ahorro","488405403574","Activa","860034313","BANCO DAVIVIENDA S.A.","19320","18720","15920","39920, 101020","47820, 119520","20245920, 54966720",null,"2020-01-13 00:00:00","CONTRATO DE PRESTACION DE SERVICIOS - PROFESIONALES",4612019,"RENGLON 107, ACT PAA 05, AMPARAR VIGENCIA FUTURA 2020 PRESTAR SERVICIOS PROFESIONALES PARA EVALUAR, CAPTURAR, PROCESAR, VERIFICAR Y ANALIZAR DATOS HIDROLOGICOS EN EL A.O No. 03 VILLAVICENCIO"]
[1129513226,0,0,4622019,4622019,16020,"2020-01-13 00:00:00","2020-01-13 14:50:54","Con Obligacion","05","IDEAM-GG-SUBDIRECCION HIDROLOGIA","C-3204-0900-3-0-3204051-02","ADQUISICIÓN DE BIENES Y SERVICIOS - SERVICIO DE MONITOREO Y SEGUIMIENTO HIDROMETEOROLÓGICO - FORTALECIMIENTO DE LA GESTIÓN DEL CONOCIMIENTO HIDROLÓGICO, METEOROLÓGICO Y AMBIENTAL NACIONAL","Nación","OTROS RECURSOS DEL TESORO","CSF",27000000,0,27000000,21600000,"Cédula de Ciudadanía","1129513226","OROZCO SOSSA WILLER LUIS","Abono en cuenta","Ahorro","48112897154","Activa","890903938","BANCOLOMBIA S.A.","19620","19020","16020","55320, 99420","60920, 107520","24804120, 47635620",null,"2020-01-13 00:00:00","CONTRATO DE PRESTACION DE SERVICIOS - PROFESIONALES",4622019,"RENGLON 107, ACT PAA 05, AMPARAR VIGENCIA FUTURA 2020 PRESTAR SERVICIOS PROFESIONALES PARA EVALUAR, CAPTURAR, PROCESAR, VERIFICAR Y ANALIZAR DATOS HIDROLOGICOS EN EL A.O No. 02 BARRANQUILLA"]
[74082981,0,0,4632019,4632019,16120,"2020-01-13 00:00:00","2020-01-13 14:53:57","Con Obligacion","05","IDEAM-GG-SUBDIRECCION HIDROLOGIA","C-3204-0900-3-0-3204051-02","ADQUISICIÓN DE BIENES Y SERVICIOS - SERVICIO DE MONITOREO Y SEGUIMIENTO HIDROMETEOROLÓGICO - FORTALECIMIENTO DE LA GESTIÓN DEL CONOCIMIENTO HIDROLÓGICO, METEOROLÓGICO Y AMBIENTAL NACIONAL","Nación","OTROS RECURSOS DEL TESORO","CSF",32670000,0,32670000,25410000,"Cédula de Ciudadanía","74082981","USGAME LOPEZ DIEGO RENATO","Abono en cuenta","Ahorro","0841124258","Activa","860003020","BANCO BILBAO VIZCAYA ARGENTARIA COLOMBIA S.A. BBVA","19920","19220","16120","44920, 99820","53620, 107920","22240620, 49003520",null,"2020-01-13 00:00:00","CONTRATO DE PRESTACION DE SERVICIOS - PROFESIONALES",4632019,"RENGLON 107, ACT PAA 05, AMPARAR VIGENCIA FUTURA 2020 PRESTAR SERVICIOS PROFESIONALES PARA APOYAR EN EL SEGUIMIENTO DE LA TRANSMISIÓN DE LOS DATOS DE LA RED DE ESTACIONES HIDROMETEOROLOGICAS DEL IDEAM"]
[1049614781,0,0,4582019,4582019,16220,"2020-01-13 00:00:00","2020-01-13 15:53:10","Con Obligacion","05","IDEAM-GG-SUBDIRECCION HIDROLOGIA","C-3204-0900-3-0-3204051-02","ADQUISICIÓN DE BIENES Y SERVICIOS - SERVICIO DE MONITOREO Y SEGUIMIENTO HIDROMETEOROLÓGICO - FORTALECIMIENTO DE LA GESTIÓN DEL CONOCIMIENTO HIDROLÓGICO, METEOROLÓGICO Y AMBIENTAL NACIONAL","Nación","OTROS RECURSOS DEL TESORO","CSF",43230000,0,43230000,35370000,"Cédula de Ciudadanía","1049614781","MOLINA ESPINOSA HERNAN LEONARDO","Abono en cuenta","Ahorro","403600031411","Activa","800037800","BANCO AGRARIO DE COLOMBIA S.A.","21420","20720","16220","45320, 104220","54020, 112520","21405520, 50123120",null,"2020-01-13 00:00:00","CONTRATO DE PRESTACION DE SERVICIOS - PROFESIONALES",4582019,"RENGLON 107, ACT PAA 05, AMPARAR VIGENCIA FUTURA 2020 PRESTAR SERVICIOS PROFESIONALES PARA EVALUAR, CAPTURAR, PROCESAR, VERIFICAR Y ANALIZAR DATOS HIDROLOGICOS (NIVELES, CAUDALES Y SEDIMENTOS) EN EL AREA OPERATIVA No. 06 DUITAMA"]
[80244277,0,0,4642019,4642019,16320,"2020-01-13 00:00:00","2020-01-13 15:58:06","Con Obligacion","05","IDEAM-GG-SUBDIRECCION HIDROLOGIA","C-3204-0900-3-0-3204051-02","ADQUISICIÓN DE BIENES Y SERVICIOS - SERVICIO DE MONITOREO Y SEGUIMIENTO HIDROMETEOROLÓGICO - FORTALECIMIENTO DE LA GESTIÓN DEL CONOCIMIENTO HIDROLÓGICO, METEOROLÓGICO Y AMBIENTAL NACIONAL","Nación","OTROS RECURSOS DEL TESORO","CSF",32670000,0,32670000,25410000,"Cédula de Ciudadanía","80244277","BRAVO ARANDIA HAMILTON ANDRES","Abono en cuenta","Ahorro","24080596370","Activa","860007335","BCSC S A","21520","20820","16320","45420, 81820","54220, 91920","21874320, 44482620",null,"2020-01-13 00:00:00","CONTRATO DE PRESTACION DE SERVICIOS - PROFESIONALES",4642019,"RENGLON 107, ACT PAA 05, AMPARAR VIGENCIA FUTURA 2020 PRESTAR SERVICIOS PROFESIONALES PARA APOYAR EN EL SEGUIMIENTO AL COMPORTAMIENTO ELECTRONICO, CUMPLIMIENTO DE NIVELES Y/O ACUERDO DE SERVICIOS DE INTEGRACION DE LA RED DE ESTACIONES HIDROMETEOROL"]
[80771277,0,0,4572019,4572019,16420,"2020-01-13 00:00:00","2020-01-13 16:09:27","Con Obligacion","05","IDEAM-GG-SUBDIRECCION HIDROLOGIA","C-3204-0900-3-0-3204051-02","ADQUISICIÓN DE BIENES Y SERVICIOS - SERVICIO DE MONITOREO Y SEGUIMIENTO HIDROMETEOROLÓGICO - FORTALECIMIENTO DE LA GESTIÓN DEL CONOCIMIENTO HIDROLÓGICO, METEOROLÓGICO Y AMBIENTAL NACIONAL","Nación","OTROS RECURSOS DEL TESORO","CSF",20400000,0,20400000,16320000,"Cédula de Ciudadanía","80771277","MACIAS HERNANDEZ CARLOS FELIPE","Abono en cuenta","Ahorro","006181108231","Activa","860034313","BANCO DAVIVIENDA S.A.","21620","20920","16420","42120, 74420","70820, 89520","33212420, 44480020",null,"2020-01-13 00:00:00","CONTRATO DE PRESTACION DE SERVICIOS",4572019,"RENGLON 107, ACT PAA 05, AMPARAR VIGENCIA FUTURA 2020 PRESTAR SERVICIOS TECNICOS PARA REALIZAR LAS ACTIVIDADES DE CALIBRACIÓN Y ELABORACIÓN DE CALCULOS Y ESTIMACIÓN DE INCERTIDUMBRE EN LAS VARIABLES DE TEMPERATURA, HUMEDAD, VOLTAJE Y CORRIENTE EN EL"]
[1112101000,0,0,4652019,4652019,16520,"2020-01-13 00:00:00","2020-01-13 16:14:05","Con Obligacion","05","IDEAM-GG-SUBDIRECCION HIDROLOGIA","C-3204-0900-3-0-3204051-02","ADQUISICIÓN DE BIENES Y SERVICIOS - SERVICIO DE MONITOREO Y SEGUIMIENTO HIDROMETEOROLÓGICO - FORTALECIMIENTO DE LA GESTIÓN DEL CONOCIMIENTO HIDROLÓGICO, METEOROLÓGICO Y AMBIENTAL NACIONAL","Nación","OTROS RECURSOS DEL TESORO","CSF",20400000,0,20400000,16320000,"Cédula de Ciudadanía","1112101000","ADRADA MENESES LUIS ALFREDO","Abono en cuenta","Ahorro","87465279948","Activa","890903938","BANCOLOMBIA S.A.","21720","21020","16520","39720, 39820, 103920","47620, 112320","20244420, 50122920",null,"2020-01-13 00:00:00","CONTRATO DE PRESTACION DE SERVICIOS - PROFESIONALES",4652019,"RENGLON 107, ACT PAA 05, AMPARAR VIGENCIA FUTURA 2020 PRESTAR SERVICIOS TECNICOS PARA REALIZAR LA OPERACIÓN DE LAS ESTACIONES CONVENCIONALES Y AUTOMATICAS DE LA RED NACIONAL Y APOYAR EL PROCESO DE INFORMACIÓN HIDROLOGICA Y METEOROLOGICA A.O 09-CALI"]
[1110233000,0,0,4692019,4692019,16620,"2020-01-13 00:00:00","2020-01-13 16:17:17","Con Obligacion","05","IDEAM-GG-SUBDIRECCION HIDROLOGIA","C-3204-0900-3-0-3204051-02","ADQUISICIÓN DE BIENES Y SERVICIOS - SERVICIO DE MONITOREO Y SEGUIMIENTO HIDROMETEOROLÓGICO - FORTALECIMIENTO DE LA GESTIÓN DEL CONOCIMIENTO HIDROLÓGICO, METEOROLÓGICO Y AMBIENTAL NACIONAL","Nación","OTROS RECURSOS DEL TESORO","CSF",27000000,0,27000000,21600000,"Cédula de Ciudadanía","1110233000","ARROYAVE QUEVEDO DIEGO JESUS","Abono en cuenta","Ahorro","767325558","Activa","860002964","BANCO DE BOGOTA S. A.","21820","21120","16620","40020, 99120","47920, 107220","20247020, 47635220",null,"2020-01-13 00:00:00","CONTRATO DE PRESTACION DE SERVICIOS - PROFESIONALES",4692019,"RENGLON 107, ACT PAA 05, AMPARAR VIGENCIA FUTURA 2020 PRESTAR SERVICIOS PROFESIONALES PARA EVALUAR, CAPTURAR, PROCESAR, VERIFICAR Y ANALIZAR DATOS METEOROLOGICOS (METEOROS 1, 2, 3 Y 5) EN A.O 10-IBAGUE"]
[80730624,0,0,4682019,4682019,16720,"2020-01-13 00:00:00","2020-01-13 16:23:34","Con Obligacion","05","IDEAM-GG-SUBDIRECCION HIDROLOGIA","C-3204-0900-3-0-3204051-02","ADQUISICIÓN DE BIENES Y SERVICIOS - SERVICIO DE MONITOREO Y SEGUIMIENTO HIDROMETEOROLÓGICO - FORTALECIMIENTO DE LA GESTIÓN DEL CONOCIMIENTO HIDROLÓGICO, METEOROLÓGICO Y AMBIENTAL NACIONAL","Nación","OTROS RECURSOS DEL TESORO","CSF",21900000,0,21900000,17520000,"Cédula de Ciudadanía","80730624","MORALES DE LA HOZ IVAN ARTURO","Abono en cuenta","Ahorro","007500818567","Activa","860034313","BANCO DAVIVIENDA S.A.","22120","21420","16720","57720, 74720","72920, 89820","33232220, 44480620",null,"2020-01-13 00:00:00","CONTRATO DE PRESTACION DE SERVICIOS",4682019,"RENGLON 107, ACT PAA 05, AMPARAR VIGENCIA FUTURA 2020 PRESTAR SERVICIOS TECNICOS PARA REALIZAR LAS ACTIVIDADES DE REPARACION SISTEMAS DE RELOJERIA, AJUSTE, CALIBRACIÓN Y ELABORACIÓN DE CALCULOS Y ESTIMACION DE INCERTIDUMBRE EN LAS VARIABLES DE PRESIO"]
[51736889,0,0,302020,302020,17020,"2020-01-13 00:00:00","2020-01-13 18:14:42","Con Obligacion","02","IDEAM-GG-SECRETARIA GENERAL","A-02-02-02-008-002","SERVICIOS JURÍDICOS Y CONTABLES","Nación","RECURSOS CORRIENTES","CSF",68598000,0,68598000,58710000,"Cédula de Ciudadanía","51736889","VALDERRAMA FORERO SUSANA","Abono en cuenta","Ahorro","0126036532","Activa","860003020","BANCO BILBAO VIZCAYA ARGENTARIA COLOMBIA S.A. BBVA","5720","5820","17020","42020, 80020","70620, 84520","33234820, 42240820",null,"2020-01-13 00:00:00","CONTRATO DE PRESTACION DE SERVICIOS - PROFESIONALES","0302020","RENGLON 060, ACT PAA 00, PRESTAR LOS SERVICIOS PROFESIONALES DE UN CONTADOR PÚBLICO, PARA QUE DE ACUERDO CON EL PLAN ANUAL DE AUDITORÍAS 2020 Y LA DESIGNACIÓN QUE HAGA LA JEFE DE LA OFICINA DE CONTROL INTERNO, APOYE CONTABLE Y FINANCIERAMENTE LA REAL"]
[{"$f":"+V92+0","v":1121332079},0,0,312020,312020,17120,"2020-01-13 00:00:00","2020-01-13 18:27:45","Con Obligacion","02","IDEAM-GG-SECRETARIA GENERAL","A-02-02-02-008-002","SERVICIOS JURÍDICOS Y CONTABLES","Nación","RECURSOS CORRIENTES","CSF",68598000,-618000,67980000,58504000,"Cédula de Ciudadanía","1121332079","FRAGOZO ALVAREZ MARIA FERNANDA","Abono en cuenta","Ahorro","72471987221","Activa","890903938","BANCOLOMBIA S.A.","5620","5720","17120","36820, 74820","63020, 80120","27758520, 41132620",null,"2020-01-13 00:00:00","CONTRATO DE PRESTACION DE SERVICIOS - PROFESIONALES","0312020","RENGLON 059, ACT PAA 00, PRESTAR LOS SERVICIOS PROFESIONALES DE UN ABOGADO, PARA QUE DE ACUERDO CON EL PLAN ANUAL DE AUDITORÍAS 2020 Y LA DESIGNACIÓN QUE HAGA LA JEFE DE LA OFICINA DE CONTROL INTERNO, APOYE JURÍDICAMENTE REQUERIMIENTOS INTERNOS Y EXT"]
[1020718799,0,0,322020,322020,17220,"2020-01-13 00:00:00","2020-01-13 18:38:53","Con Obligacion","02","IDEAM-GG-SECRETARIA GENERAL","A-02-02-02-008-002","SERVICIOS JURÍDICOS Y CONTABLES","Propios","OTROS RECURSOS DE TESORERIA","CSF",59508000,0,59508000,51300000,"Cédula de Ciudadanía","1020718799","CAMACHO CORREA JENNY LUCIA","Abono en cuenta","Ahorro","08494092035","Activa","890903938","BANCOLOMBIA S.A.","6020","6120","17220","29920, 76320","39320, 80620","17551720, 42240420",null,"2020-01-13 00:00:00","CONTRATO DE PRESTACION DE SERVICIOS - PROFESIONALES","0322020","RENGLON 063, ACT PAA 00, PRESTAR LOS SERVICIOS PROFESIONALES PARA ORGANIZAR, CONTROLAR Y HACER SEGUIMIENTO CONTABLE DE LOS REGISTROS DE LOS BIENES Y ELEMENTOS DEVOLUTIVOS Y DE CONSUMO, ASÍ COMO GENERAR LAS DEPRECIACIONES MENSUALES EN EL APLICATIVO DE"]
[52771915,0,0,332020,332020,17320,"2020-01-13 00:00:00","2020-01-13 18:53:21","Con Obligacion","02","IDEAM-GG-SECRETARIA GENERAL","A-02-02-02-008-002","SERVICIOS JURÍDICOS Y CONTABLES","Nación","RECURSOS CORRIENTES","CSF",26448000,0,26448000,22800000,"Cédula de Ciudadanía","52771915","RODRIGUEZ BABATIVA ARLETH JOHANA","Abono en cuenta","Ahorro","24065972184","Activa","860007335","BCSC S A","7520","7520","17320","31620, 85020","40820, 94920","17555220, 46530420",null,"2020-01-13 00:00:00","CONTRATO DE PRESTACION DE SERVICIOS","0332020","RENGLON 069, ACT PAA 00, PRESTAR LOS SERVICIOS DE APOYO A LA GESTIÓN EN EL GRUPO DE GESTIÓN DOCUMENTAL EN LA ORGANIZACIÓN FÍSICA Y DIGITALIZACIÓN DE DOCUMENTOS Y SU TRANSFERENCIA DOCUMENTAL PRIMARIA DE ACUERDO A LAS TRD."]
[1075656289,0,0,342020,342020,17420,"2020-01-13 00:00:00","2020-01-13 19:07:56","Con Obligacion","02","IDEAM-GG-SECRETARIA GENERAL","A-02-02-02-008-002","SERVICIOS JURÍDICOS Y CONTABLES","Nación","RECURSOS CORRIENTES","CSF",62604000,0,62604000,53580000,"Cédula de Ciudadanía","1075656289","OSPINA ESPITIA LAURA CATALINA","Abono en cuenta","Ahorro","64039495129","Activa","890903938","BANCOLOMBIA S.A.","5420","5520","17420","30420, 94520","39820, 102620","17553420, 47804020",null,"2020-01-13 00:00:00","CONTRATO DE PRESTACION DE SERVICIOS - PROFESIONALES","0342020","RENGLON 056, ACT PAA 00, PRESTAR LOS SERVICIOS PROFESIONALES EN EL ÁREA DE COOPERACIÓN Y ASUNTOS INTERNACIONALES DEL IDEAM PARA APOYAR LA GESTIÓN DE PROYECTOS DE ASISTENCIA TÉCNICA CON NORTEAMÉRICA, ASIA Y EUROPA, ASÍ COMO APOYAR EL SEGUIMIENTO A LAS"]
[1032429922,0,0,352020,352020,17520,"2020-01-13 00:00:00","2020-01-13 19:14:48","Con Obligacion","02","IDEAM-GG-SECRETARIA GENERAL","A-02-02-02-008-002","SERVICIOS JURÍDICOS Y CONTABLES","Nación","RECURSOS CORRIENTES","CSF",62604000,0,62604000,53580000,"Cédula de Ciudadanía","1032429922","HERNANDEZ GARCES MARIA CAMILA","Abono en cuenta","Ahorro","481800007678","Activa","860034313","BANCO DAVIVIENDA S.A.","5520","5620","17520","43720, 94420","50420, 102520","21395420, 48994720",null,"2020-01-13 00:00:00","CONTRATO DE PRESTACION DE SERVICIOS - PROFESIONALES","0352020","RENGLON 057, ACT PAA 00, PRESTAR LOS SERVICIOS PROFESIONALES EN EL ÁREA DE COOPERACIÓN Y ASUNTOS INTERNACIONALES DEL IDEAM PARA APOYAR LA GESTIÓN DE PROYECTOS DE ASISTENCIA TÉCNICA CON AMÉRICA LATINA Y EL CARIBE, ASÍ COMO CON LA BANCA MULTILATERAL"]
[52656996,0,0,362020,362020,17620,"2020-01-13 00:00:00","2020-01-13 19:22:15","Con Obligacion","02","IDEAM-GG-SECRETARIA GENERAL","A-02-02-02-008-002","SERVICIOS JURÍDICOS Y CONTABLES","Propios","OTROS RECURSOS DE TESORERIA","CSF",61596000,0,61596000,53100000,"Cédula de Ciudadanía","52656996","RANGEL ALFONSO YURI MARGARITA","Abono en cuenta","Ahorro","0318050770","Activa","860003020","BANCO BILBAO VIZCAYA ARGENTARIA COLOMBIA S.A. BBVA","5320","5420","17620","28620, 76420","38520, 80920","17550620, 42240620",null,"2020-01-13 00:00:00","CONTRATO DE PRESTACION DE SERVICIOS - PROFESIONALES","0362020","RENGLON 054, ACT PAA 00, PRESTAR LOS SERVICIOS PROFESIONALES EN EL GRUPO DE CONTABILIDAD, REALIZANDO EL ANÁLISIS, DEPURACIÓN Y AJUSTES A LAS CUENTAS DEL BALANCE EN EL SISTEMA INTEGRADO DE INFORMACIÓN FINANCIERA SIIF NACION II, DE LA ENTIDAD EN EL NOR"]
[80217553,0,0,372020,372020,17720,"2020-01-13 00:00:00","2020-01-13 19:26:54","Con Obligacion","02","IDEAM-GG-SECRETARIA GENERAL","A-02-02-02-008-003","OTROS SERVICIOS PROFESIONALES, CIENTÍFICOS Y TÉCNICOS","Nación","RECURSOS CORRIENTES","CSF",65424000,0,65424000,56400000,"Cédula de Ciudadanía","80217553","MEDINA VALENCIA JOHN FREDY","Abono en cuenta","Ahorro","4532001825","Activa","860034594","SCOTIABANK COLPATRIA SA","5020","5120","17720","59020, 87320","71820, 97920","33227720, 46534520",null,"2020-01-13 00:00:00","CONTRATO DE PRESTACION DE SERVICIOS - PROFESIONALES","0372020","RENGLON 053, ACT PAA 00, PRESTAR LOS SERVICIOS PROFESIONALES EN EL GRUPO DE ADMINISTRACIÓN Y DESARROLLO DEL TALENTO HUMANO EN TEMAS RELACIONADOS CON EL SISTEMA DE SEGURIDAD Y SALUD EN EL TRABAJO EN EL IDEAM"]
[6758082,0,0,382020,382020,17820,"2020-01-13 00:00:00","2020-01-13 19:34:36","Con Obligacion","02","IDEAM-GG-SECRETARIA GENERAL","A-02-02-02-008-003","OTROS SERVICIOS PROFESIONALES, CIENTÍFICOS Y TÉCNICOS","Nación","RECURSOS CORRIENTES","CSF",59856000,0,59856000,51600000,"Cédula de Ciudadanía","6758082","SANCHEZ NEIRA LUIS ENRIQUE","Abono en cuenta","Ahorro","451500057547","Activa","860034313","BANCO DAVIVIENDA S.A.","10220","10120","17820","40920, 94620","48520, 102720","20253320, 47802120",null,"2020-01-13 00:00:00","CONTRATO DE PRESTACION DE SERVICIOS - PROFESIONALES","0382020","RENGLON 090, ACT PAA 00,PRESTAR SERVICIOS EN EL GRUPO DE ADMINISTRACIÓN Y DESARROLLO DEL TALENTO HUMANO EN LA VALIDACIÓN DE LA PARAMETRIZACION Y REGISTROS DE LA BASE DE DATOS DEL APLICATIVO SIGEP Y SUS BASES DE DATOS"]
[20714518,0,0,402020,402020,19220,"2020-01-15 00:00:00","2020-01-15 17:53:51","Con Obligacion","02","IDEAM-GG-SECRETARIA GENERAL","A-02-02-02-008-003","OTROS SERVICIOS PROFESIONALES, CIENTÍFICOS Y TÉCNICOS","Propios","OTROS RECURSOS DE TESORERIA","CSF",61242000,0,61242000,53100000,"Cédula de Ciudadanía","20714518","BUSTOS BRASBI MARIA STELLA","Abono en cuenta","Ahorro","0570450270146118","Activa","860034313","BANCO DAVIVIENDA S.A.","7220","7220","19220","35320, 75520","44420, 88520","17557220, 42986320",null,"2020-01-15 00:00:00","CONTRATO DE PRESTACION DE SERVICIOS - PROFESIONALES","0402020","RENGLON 074, ACT PAA 00, PRESTACIÓN DE SERVICIOS PROFESIONALES PARA APOYAR AL GRUPO DE TESORERÍA REALIZANDO LA REVISIÓN DE OBLIGACIONES CONTRAÍDAS POR EL IDEAM, SUS IMPUESTOS Y REALIZAR EL PAGO EN SIIF NACIÓN DE CONTRATISTAS Y PROVEEDORES; Y A SU VE"]
[1013592420,0,0,412020,412020,19320,"2020-01-15 00:00:00","2020-01-15 18:16:22","Con Obligacion","02","IDEAM-GG-SECRETARIA GENERAL","A-02-02-02-008-002","SERVICIOS JURÍDICOS Y CONTABLES","Nación","RECURSOS CORRIENTES","CSF",26296000,0,26296000,22800000,"Cédula de Ciudadanía","1013592420","AMADO SUAREZ RAFAEL ANTONIO","Abono en cuenta","Ahorro","240848374","Activa","890300279","BANCO DE OCCIDENTE","7720","7720","19320","37020, 85920","71620, 95320","33225220, 46531120",null,"2020-01-15 00:00:00","CONTRATO DE PRESTACION DE SERVICIOS","0412020","RENGLON 070, ACT PAA 00, PRESTAR LOS SERVICIOS DE APOYO A LA GESTIÓN EN EL GRUPO DE GESTIÓN DOCUMENTAL EN LA ORGANIZACIÓN FÍSICA Y DIGITALIZACIÓN DE DOCUMENTOS Y SU TRANSFERENCIA DOCUMENTAL PRIMARIA DE ACUERDO A LAS TRD."]
[52772242,0,0,422020,422020,19420,"2020-01-15 00:00:00","2020-01-15 18:28:59","Con Obligacion","02","IDEAM-GG-SECRETARIA GENERAL","A-02-02-02-008-002","SERVICIOS JURÍDICOS Y CONTABLES","Propios","OTROS RECURSOS DE TESORERIA","CSF",61242000,0,61242000,53100000,"Cédula de Ciudadanía","52772242","SALAVARRIETA TUNJO JOVANNA HASBLEIDY","Abono en cuenta","Ahorro","17223863051","Activa","890903938","BANCOLOMBIA S.A.","9920","9820","19420","28720, 75020","38720, 80520","20137620, 42240320",null,"2020-01-15 00:00:00","CONTRATO DE PRESTACION DE SERVICIOS - PROFESIONALES","0422020","RENGLON 064, ACT PAA 00, PRESTAR LOS SERVICIOS PROFESIONALES EN EL GRUPO DE CONTABILIDAD, REALIZANDO ANÁLISIS, TRAMITE Y REGISTRO EN EL SISTEMA INTEGRADO DE INFORMACIÓN FINANCIERA SIIF NACION II DE TODAS LAS CUENTAS POR PAGAR DE LA ENTIDAD EN EL NOR"]
[28540257,0,0,432020,432020,20820,"2020-01-16 00:00:00","2020-01-16 15:36:08","Con Obligacion","02","IDEAM-GG-SECRETARIA GENERAL","C-3204-0900-3-0-3204049-02","ADQUISICIÓN DE BIENES Y SERVICIOS - SERVICIO DE DIVULGACIÓN DECONOCIMIENTO GENERADO PARA LA PLANIFICACIÓN SECTORIAL Y LA GESTIÓN AMBIENTAL. - FORTALECIMIENTO DE LA GESTIÓN DEL CONOCIMIENTO HIDROLÓGICO, METEOROLÓGICO Y AMBIENTAL NACIONAL","Nación","OTROS RECURSOS DEL TESORO","CSF",64860000,0,64860000,56400000,"Cédula de Ciudadanía","28540257","HERNANDEZ CARRASCAL MARIA PAULA","Abono en cuenta","Ahorro","59735046114","Activa","890903938","BANCOLOMBIA S.A.","21920","21220","20820","51220, 103620","71220, 112020","33219120, 50122620",null,"2020-01-16 00:00:00","CONTRATO DE PRESTACION DE SERVICIOS - PROFESIONALES","0432020","RENGLON 108, ACT PAA 3204049, PRESTACIÓN DE SERVICIOS PROFESIONALES EN LA OFICINA DE COMUNICACIONES DEL IDEAM, PARA EL DISEÑO Y DESARROLLO DE ACTIVIDADES Y ESTRATEGIAS TENDIENTES A MEJORAR EL CLIMA ORGANIZACIONAL, LA COMUNICACIÓN INTERNA, ASI COMO EL"]
[1020804395,0,0,442020,442020,20920,"2020-01-16 00:00:00","2020-01-16 15:42:12","Con Obligacion","02","IDEAM-GG-SECRETARIA GENERAL","C-3204-0900-3-0-3204049-02","ADQUISICIÓN DE BIENES Y SERVICIOS - SERVICIO DE DIVULGACIÓN DECONOCIMIENTO GENERADO PARA LA PLANIFICACIÓN SECTORIAL Y LA GESTIÓN AMBIENTAL. - FORTALECIMIENTO DE LA GESTIÓN DEL CONOCIMIENTO HIDROLÓGICO, METEOROLÓGICO Y AMBIENTAL NACIONAL","Nación","OTROS RECURSOS DEL TESORO","CSF",63480000,0,63480000,55200000,"Cédula de Ciudadanía","1020804395","BOTERO MORENO MARIA GABRIELA","Abono en cuenta","Ahorro","004300227719","Activa","860034313","BANCO DAVIVIENDA S.A.","22020","21320","20920","51520, 103320","71320, 87020, 111820","42985820, 50122420",null,"2020-01-16 00:00:00","CONTRATO DE PRESTACION DE SERVICIOS - PROFESIONALES","0442020","RENGLON 109, ACT PAA 3204049, PRESTAR LOS SERVICIOS PROFESIONALES EN EL GRUPO DE COMUNICACIONES PARA EL DESARROLLO DE CONTENIDOS DE CARÁCTER NOTICIOSO, PERIODÍSTICO E INFORMATIVO, CON UNA VISIÓN COMUNICACIONAL ESTRATÉGICA, CON EL FIN DE FORTALECER L"]
[1014309884,0,0,452020,452020,21020,"2020-01-16 00:00:00","2020-01-16 17:02:06","Con Obligacion","02","IDEAM-GG-SECRETARIA GENERAL","A-02-02-02-008-003","OTROS SERVICIOS PROFESIONALES, CIENTÍFICOS Y TÉCNICOS","Nación","RECURSOS CORRIENTES","CSF",30360000,0,30360000,26400000,"Cédula de Ciudadanía","1014309884","JARA VARGAS KAREN MAYERLI","Abono en cuenta","Ahorro","24085681040","Activa","860007335","BCSC S A","6520","6620","21020","30920, 86820","79320, 97220","37901520, 46533320",null,"2020-01-16 00:00:00","CONTRATO DE PRESTACION DE SERVICIOS - PROFESIONALES","0452020","RENGLON 067, ACT PAA 00, PRESTAR LOS SERVICIOS PROFESIONALES PARA APOYAR AL GRUPO DE ADMINISTRACIÓN Y DESARROLLO DE TALENTO HUMANO EN LA EJECUCIÓN Y SEGUIMIENTO DEL PLAN DE BIENESTAR SOCIAL, CONVENIOS DE PASANTÍAS, IMPLEMENTACIÓN DEL CODIGO DE INTEGR"]
[23508587,0,0,462020,462020,21920,"2020-01-17 00:00:00","2020-01-17 15:21:43","Con Obligacion","08","IDEAM-GG-SUBDIRECCION ESTUDIOS AMBIENTALES","C-3204-0900-3-0-3204007-02","ADQUISICIÓN DE BIENES Y SERVICIOS - SERVICIO DE ACREDITACIÓN DE LABORATORIOS Y ORGANIZACIONES - FORTALECIMIENTO DE LA GESTIÓN DEL CONOCIMIENTO HIDROLÓGICO, METEOROLÓGICO Y AMBIENTAL NACIONAL","Propios","INGRESOS CORRIENTES","CSF",76368000,0,76368000,66600000,"Cédula de Ciudadanía","23508587","DUARTE PACHECO HARLEM ISABEL","Abono en cuenta","Ahorro","0550006000847480","Activa","860034313","BANCO DAVIVIENDA S.A.","26620","25820","21920","37320, 92620","84820, 102220","42241120, 47634520",null,"2020-01-17 00:00:00","CONTRATO DE PRESTACION DE SERVICIOS - PROFESIONALES","0462020","RENGLON 001, ACT PAA ESTUDI06, PRESTAR LOS SERVICIOS PROFESIONALES COMO ABOGADO PARA PROYECTAR LOS ACTOS ADMINISTRATIVOS Y APOYAR LOS TRÁMITES LEGALES QUE SE GENERAN EN LOS SERVICIOS DE AUTORIZACIÓN DE LA MEDICIÓN DE EMISIONES DE FUENTES MOVILES Y D"]
[79724443,0,0,472020,472020,22820,"2020-01-20 00:00:00","2020-01-20 10:44:25","Con Obligacion","08","IDEAM-GG-SUBDIRECCION ESTUDIOS AMBIENTALES","C-3204-0900-3-0-3204007-02","ADQUISICIÓN DE BIENES Y SERVICIOS - SERVICIO DE ACREDITACIÓN DE LABORATORIOS Y ORGANIZACIONES - FORTALECIMIENTO DE LA GESTIÓN DEL CONOCIMIENTO HIDROLÓGICO, METEOROLÓGICO Y AMBIENTAL NACIONAL","Propios","INGRESOS CORRIENTES","CSF",90024000,0,90024000,79200000,"Cédula de Ciudadanía","79724443","BELTRAN BALLEN JAIRO MAURICIO","Abono en cuenta","Ahorro","0570008970305994","Activa","860034313","BANCO DAVIVIENDA S.A.","26720","25920","22820","37120, 93520","85420, 103020","43402220, 48994920",null,"2020-01-20 00:00:00","CONTRATO DE PRESTACION DE SERVICIOS - PROFESIONALES","0472020","RENGLON 002, ACT PAA ESTUDI06, PRESTAR LOS SERVICIOS PROFESIONALES COMO ABOGADO PARA PROYECTAR LOS ACTOS ADMINISTRATIVOS Y APOYAR LOS TRÁMITES LEGALES QUE SE GENERAN EN LOS SERVICIOS DE AUTORIZACIÓN DE LA MEDICIÓN DE EMISIONES DE FUENTES MOVILES Y DE"]
[19351997,0,0,482020,482020,23120,"2020-01-20 00:00:00","2020-01-20 11:04:25","Con Obligacion","06","IDEAM-GG-SUBDIRECCION METEOROLOGIA","C-3204-0900-3-0-3204043-02","ADQUISICIÓN DE BIENES Y SERVICIOS - SERVICIO DE INFORMACIÓN DE DATOS CLIMÁTICOS Y MONITOREO - FORTALECIMIENTO DE LA GESTIÓN DEL CONOCIMIENTO HIDROLÓGICO, METEOROLÓGICO Y AMBIENTAL NACIONAL","Nación","OTROS RECURSOS DEL TESORO","CSF",78240000,0,78240000,68400000,"Cédula de Ciudadanía","19351997","HERNANDEZ IGLESIAS NESTOR","Abono en cuenta","Ahorro","8112003768","Activa","860034594","SCOTIABANK COLPATRIA SA","21220","20520","23120","29420, 84520","69220, 94120","33214320, 44484320",null,"2020-01-20 00:00:00","CONTRATO DE PRESTACION DE SERVICIOS - PROFESIONALES","0482020","RENGLON 013, ACT PAA METEO02, PRESTAR LOS SERVICIOS PROFESIONALES A LA SUBDIRECCIÓN DE METEOROLOGÍA EN EVALUACIÓN DE INSTRUMENTOS QUE PERMITAN FORTALECIMIENTO DE LA COMPETITIVIDAD FRENTE A LOS POSIBLES IMPACTOS DE LA VARIABILIDA"]
[1031139701,0,0,492020,492020,23420,"2020-01-20 00:00:00","2020-01-20 11:20:52","Con Obligacion","06","IDEAM-GG-SUBDIRECCION METEOROLOGIA","C-3204-0900-3-0-3204043-02","ADQUISICIÓN DE BIENES Y SERVICIOS - SERVICIO DE INFORMACIÓN DE DATOS CLIMÁTICOS Y MONITOREO - FORTALECIMIENTO DE LA GESTIÓN DEL CONOCIMIENTO HIDROLÓGICO, METEOROLÓGICO Y AMBIENTAL NACIONAL","Nación","OTROS RECURSOS DEL TESORO","CSF",29340000,0,29340000,25650000,"Cédula de Ciudadanía","1031139701","QUINTERO CALDERON EDINSON HERNANDO","Abono en cuenta","Ahorro","22547186277","Activa","890903938","BANCOLOMBIA S.A.","20320","19620","23420","51120, 94820","69020, 103720","33213020, 47798420",null,"2020-01-20 00:00:00","CONTRATO DE PRESTACION DE SERVICIOS - PROFESIONALES","0492020","RENGLON 006, ACT PAA METEO01, PRESTAR LOS SERVICIOS PROFESIONALES A LA SUBDIRECCIÓN DE METEOROLOGÍA PARA LA RECOPILACIÓN DE METODOLOGÍAS PARA LA ZONIFICACIÓN AGROCLIMÁTICA PARA COLOMBIA, ASÍ COMO PROPICIAR EL DESARROLLO DE BOLETINES AGROCLIMATICOS RE"]
[1014283853,0,0,502020,502020,24420,"2020-01-20 00:00:00","2020-01-20 13:01:28","Con Obligacion","02","IDEAM-GG-SECRETARIA GENERAL","A-02-02-02-008-003","OTROS SERVICIOS PROFESIONALES, CIENTÍFICOS Y TÉCNICOS","Nación","RECURSOS CORRIENTES","CSF",27058000,0,27058000,23655000,"Cédula de Ciudadanía","1014283853","RONCANCIO CARDENAS JORGE ENRIQUE","Abono en cuenta","Ahorro","0550488402186883","Activa","860034313","BANCO DAVIVIENDA S.A.","10020","10020","24420","37620, 87220","69720, 98020","33219920, 46534620",null,"2020-01-20 00:00:00","CONTRATO DE PRESTACION DE SERVICIOS","0502020","RENGLON 082, ACT PAA 00, OPRESTAR LOS SERVICIOS DE APOYO A LA GESTIÓN, PARA LA IMPLEMENTACIÓN Y MONITOREO DE LAS ESTRATEGIAS DEL GRUPO DE SERVICIO AL CIUDADANO, A FIN DE DAR CUMPLIMIENTO A ESTAS."]
[{"$f":"+V111+0","v":52853198},0,0,512020,512020,24720,"2020-01-20 00:00:00","2020-01-20 16:31:05","Con Obligacion","02","IDEAM-GG-SECRETARIA GENERAL","A-02-02-02-008-003","OTROS SERVICIOS PROFESIONALES, CIENTÍFICOS Y TÉCNICOS","Nación","RECURSOS CORRIENTES","CSF",24450000,0,24450000,21375000,"Cédula de Ciudadanía","52853198","MOLINA ANDREA MARCELA","Abono en cuenta","Ahorro","24051381330","Activa","860007335","BCSC S A","9120","9120","24720","29120, 87020","39220, 97520","17551220, 46533820",null,"2020-01-20 00:00:00","CONTRATO DE PRESTACION DE SERVICIOS","0512020","RENGLON 080, ACT PAA 00, PRESTAR LOS SERVICIOS DE APOYO A LA GESTIÓN PARA LA OPORTUNA ATENCIÓN Y TRÁMITE DE SOLICITUDES DE INFORMACIÓN BÁSICA HIDROMETEOROLÓGICA ALLEGADAS A TRAVÉS DE LOS DISTINTOS CANALES DE ATENCIÓN AL CIUDADANO, BRINDAR ORIENTACIÓN"]
[1115857151,0,0,522020,522020,24820,"2020-01-20 00:00:00","2020-01-20 16:51:27","Con Obligacion","02","IDEAM-GG-SECRETARIA GENERAL","A-02-02-02-008-003","OTROS SERVICIOS PROFESIONALES, CIENTÍFICOS Y TÉCNICOS","Nación","RECURSOS CORRIENTES","CSF",24450000,0,24450000,21375000,"Cédula de Ciudadanía","1115857151","PUERTA GUTIERREZ NASLY SUSANA","Abono en cuenta","Ahorro","35887715848","Activa","890903938","BANCOLOMBIA S.A.","9320","9220","24820","47920, 87120","71120, 97620","33218120, 46534120",null,"2020-01-20 00:00:00","CONTRATO DE PRESTACION DE SERVICIOS","0522020","RENGLON 083, ACT PAA 00, PRESTAR LOS SERVICIOS DE APOYO A LA GESTIÓN PARA LA OPORTUNA ATENCIÓN Y TRÁMITE DE SOLICITUDES DE INFORMACIÓN BÁSICA HIDROMETEOROLÓGICA ALLEGADAS A TRAVÉS DE LOS DISTINTOS CANALES DE ATENCIÓN AL CIUDADANO, BRINDAR ORIENTACIÓN"]
[80093870,0,0,532020,532020,24920,"2020-01-20 00:00:00","2020-01-20 17:02:22","Con Obligacion","02","IDEAM-GG-SECRETARIA GENERAL","A-02-02-02-008-002","SERVICIOS JURÍDICOS Y CONTABLES","Propios","OTROS RECURSOS DE TESORERIA","CSF",78089000,0,78089000,68700000,"Cédula de Ciudadanía","80093870","DE LOS RIOS SALAZAR ANDRES FELIPE","Abono en cuenta","Ahorro","602020665","Activa","890903937","ITAU CORPBANCA COLOMBIA S A","8620","8620","24920","58320, 105620","73320, 113020","33234720, 50123620",null,"2020-01-20 00:00:00","CONTRATO DE PRESTACION DE SERVICIOS - PROFESIONALES","0532020","RENGLON 077, ACT PAA 00, BRINDAR APOYO JURÍDICO A LA SECRETARÍA GENERAL EN LA REVISIÓN DE LOS ACTOS ADMINISTRATIVOS Y DEMÁS DOCUMENTOS DE CARÁCTER JURÍDICO DE SU COMPETENCIA DE CARÁCTER DISCIPLINARIO QUE SE REQUIERA."]
[1019007735,{"$f":"IFERROR(MID(AM114,SEARCH(\"CTO.\",AM114)+5,7),0)","v":0},{"$f":"IFERROR(MID(AM114,SEARCH(\"CTO \",AM114)+4,7),0)","v":0},{"$f":"IFERROR(AM114+0,0)","v":542020},{"$f":"B114+C114+D114","v":542020},25020,"2020-01-20 00:00:00","2020-01-20 17:14:47","Con Obligacion","02","IDEAM-GG-SECRETARIA GENERAL","A-02-02-02-008-002","SERVICIOS JURÍDICOS Y CONTABLES","Nación","RECURSOS CORRIENTES","CSF",64108000,0,64108000,56400000,"Cédula de Ciudadanía","1019007735","LOPEZ MOJICA ADRIANA CRISTINA","Abono en cuenta","Ahorro","05281413637","Activa","890903938","BANCOLOMBIA S.A.","8520","8520","25020","51020, 82220","71420, 92320","33219820, 44483120",null,"2020-01-20 00:00:00","CONTRATO DE PRESTACION DE SERVICIOS - PROFESIONALES","0542020","RENGLON 076, ACT PAA 00, PRESTACIÓN DE SERVICIOS PROFESIONALES EN EL ÁREA DEL DERECHO DISCIPLINARIO, PARA APOYAR AL GRUPO DE CONTROL DISCIPLINARIO INTERNO, EN EL TRÁMITE, SEGUIMIENTO Y SUSTANCIACIÓN DE LOS PROCESOS DISCIPLINARIOS"]
[79234305,0,0,552020,552020,26820,"2020-01-21 00:00:00","2020-01-21 10:59:16","Con Obligacion","08","IDEAM-GG-SUBDIRECCION ESTUDIOS AMBIENTALES","C-3204-0900-3-0-3204007-02","ADQUISICIÓN DE BIENES Y SERVICIOS - SERVICIO DE ACREDITACIÓN DE LABORATORIOS Y ORGANIZACIONES - FORTALECIMIENTO DE LA GESTIÓN DEL CONOCIMIENTO HIDROLÓGICO, METEOROLÓGICO Y AMBIENTAL NACIONAL","Propios","INGRESOS CORRIENTES","CSF",78540000,0,78540000,69300000,"Cédula de Ciudadanía","79234305","ORTIZ BARATO LUIS GERARDO","Abono en cuenta","Corriente","000328666","Activa","860002964","BANCO DE BOGOTA S. A.","26820","26020","26820","48320, 91320","85520, 100620","42985120, 47632020",null,"2020-01-21 00:00:00","CONTRATO DE PRESTACION DE SERVICIOS - PROFESIONALES","0552020","RENGLON 003, ACT PAA ESTUDI06, PRESTAR LOS SERVICIOS PROFESIONALES PARA REALIZAR LAS ACTIVIDADES ADMINISTRATIVAS Y FINANCIERAS QUE SE GENEREN CON OCASIÓN DE LOS SERVICIOS DE AUTORIZACIÓN DE LA MEDICIÓN DE EMISIONES DE FUENTES MÓVILES Y DE ACREDITACIÓ"]
[1073508720,0,0,562020,562020,26920,"2020-01-21 00:00:00","2020-01-21 11:17:05","Con Obligacion","02","IDEAM-GG-SECRETARIA GENERAL","C-3204-0900-3-0-3204049-02","ADQUISICIÓN DE BIENES Y SERVICIOS - SERVICIO DE DIVULGACIÓN DECONOCIMIENTO GENERADO PARA LA PLANIFICACIÓN SECTORIAL Y LA GESTIÓN AMBIENTAL. - FORTALECIMIENTO DE LA GESTIÓN DEL CONOCIMIENTO HIDROLÓGICO, METEOROLÓGICO Y AMBIENTAL NACIONAL","Nación","OTROS RECURSOS DEL TESORO","CSF",42160000,0,42160000,37200000,"Cédula de Ciudadanía","1073508720","DEGADO GUALTEROS LUIS CARLOS","Abono en cuenta","Ahorro","27343224295","Activa","890903938","BANCOLOMBIA S.A.","26020","25220","26920","58620, 58720, 103420","87820, 111920","43403220, 50122520",null,"2020-01-21 00:00:00","CONTRATO DE PRESTACION DE SERVICIOS - PROFESIONALES","0562020","RENGLON 132, ACT PAA 3204049, PRESTACIÓN DE SERVICIOS PROFESIONALES PARA EL DISEÑO Y DIAGRAMACIÓN DE CONTENIDOS Y MATERIAL GRÁFICO, AUDIOVISUAL Y/O MULTIMEDIA, CON EL FIN DE DIFUNDIR A TRAVÉS DE LOS DIFERENTES MEDIOS, ENTIDADES SECTORIALES, GOBIERNO,"]
[88191373,0,0,572020,572020,27020,"2020-01-21 00:00:00","2020-01-21 11:41:29","Con Obligacion","06","IDEAM-GG-SUBDIRECCION METEOROLOGIA","C-3204-0900-3-0-3204043-02","ADQUISICIÓN DE BIENES Y SERVICIOS - SERVICIO DE INFORMACIÓN DE DATOS CLIMÁTICOS Y MONITOREO - FORTALECIMIENTO DE LA GESTIÓN DEL CONOCIMIENTO HIDROLÓGICO, METEOROLÓGICO Y AMBIENTAL NACIONAL","Nación","OTROS RECURSOS DEL TESORO","CSF",29575000,0,29575000,25935000,"Cédula de Ciudadanía","88191373","SEPULVEDA PLAZAS URIEL DIONICIO","Abono en cuenta","Ahorro","04817679728","Activa","890903938","BANCOLOMBIA S.A.","20420","19720","27020","38020, 84720","70220, 94520","33227020, 44737920",null,"2020-01-21 00:00:00","CONTRATO DE PRESTACION DE SERVICIOS","0572020","RENGLON 007, ACT PAA METEO01, PRESTAR LOS SERVICIOS TÉCNICOS A LA SUBDIRECCIÓN DE METEOROLOGÍA PARA MANTENER ACTUALIZADO Y OPERATIVO EL PORTAL DE QUÍMICA DE LA ATMÓSFERA DEL IDEAM, QUE INCLUYE PRODUCTOS DE SEGUIMIENTO EN LOS TEMAS: RADIACIÓN ULTRAVIO"]
[1016048429,0,0,582020,582020,27120,"2020-01-21 00:00:00","2020-01-21 11:58:27","Con Obligacion","06","IDEAM-GG-SUBDIRECCION METEOROLOGIA","C-3204-0900-3-0-3204043-02","ADQUISICIÓN DE BIENES Y SERVICIOS - SERVICIO DE INFORMACIÓN DE DATOS CLIMÁTICOS Y MONITOREO - FORTALECIMIENTO DE LA GESTIÓN DEL CONOCIMIENTO HIDROLÓGICO, METEOROLÓGICO Y AMBIENTAL NACIONAL","Nación","OTROS RECURSOS DEL TESORO","CSF",29575000,0,29575000,25935000,"Cédula de Ciudadanía","1016048429","CALDAS MORALES ANGIE PAOLA","Abono en cuenta","Ahorro","22397683609","Activa","890903938","BANCOLOMBIA S.A.","20120","19420","27120","30320, 85220","69620, 95120","33218520, 46530620",null,"2020-01-21 00:00:00","CONTRATO DE PRESTACION DE SERVICIOS - PROFESIONALES","0582020","RENGLON 005, ACT PAA METEO01, PRESTAR LOS SERVICIOS PROFESIONALES A LA SUBDIRECCIÓN DE METEOROLOGÍA PARA LA REALIZACIÓN DEL ANÁLISIS DE FAVORECIMIENTO DE ENFERMEDADES RESPIRATORIAS POR FACTORES CLIMÁTICOS Y CONSOLIDACIÓN DE LOS DOCUMENTOS BASE PARA E"]
[80830945,0,0,592020,592020,27320,"2020-01-21 00:00:00","2020-01-21 12:27:43","Con Obligacion","06","IDEAM-GG-SUBDIRECCION METEOROLOGIA","C-3204-0900-3-0-3204043-02","ADQUISICIÓN DE BIENES Y SERVICIOS - SERVICIO DE INFORMACIÓN DE DATOS CLIMÁTICOS Y MONITOREO - FORTALECIMIENTO DE LA GESTIÓN DEL CONOCIMIENTO HIDROLÓGICO, METEOROLÓGICO Y AMBIENTAL NACIONAL","Nación","OTROS RECURSOS DEL TESORO","CSF",72150000,0,72150000,63270000,"Cédula de Ciudadanía","80830945","MARTINEZ PEDRAZA ALEXANDER","Abono en cuenta","Ahorro","007770296460","Activa","860034313","BANCO DAVIVIENDA S.A.","20620","19920","27320","37820, 84420","70020, 94020","33225720, 44484220",null,"2020-01-21 00:00:00","CONTRATO DE PRESTACION DE SERVICIOS - PROFESIONALES","0592020","RENGLON 008, ACT PAA METEO02, PRESTAR LOS SERVICIOS PROFESIONALES A LA SUBDIRECCIÓN DE METEOROLOGÍA PARA IMPLEMENTAR METODOLOGÍAS DE COMPLEMENTACIÓN Y HOMOGENIZACIÓN DE LAS SERIES TEMPORALES DE LAS VARIABLES METEOROLÓGICAS PRECIPITACIÓN Y TEMPERATURA"]
[19271529,0,0,602020,602020,27820,"2020-01-21 00:00:00","2020-01-21 14:07:00","Con Obligacion","02","IDEAM-GG-SECRETARIA GENERAL","C-3204-0900-3-0-3204049-02","ADQUISICIÓN DE BIENES Y SERVICIOS - SERVICIO DE DIVULGACIÓN DECONOCIMIENTO GENERADO PARA LA PLANIFICACIÓN SECTORIAL Y LA GESTIÓN AMBIENTAL. - FORTALECIMIENTO DE LA GESTIÓN DEL CONOCIMIENTO HIDROLÓGICO, METEOROLÓGICO Y AMBIENTAL NACIONAL","Nación","OTROS RECURSOS DEL TESORO","CSF",70040000,0,70040000,61800000,"Cédula de Ciudadanía","19271529","VASQUEZ SALAMANCA LUIS EDUARDO","Abono en cuenta","Ahorro","008600317849","Activa","860034313","BANCO DAVIVIENDA S.A.","25920","25020","27820","104420, 104620","112720, 112820","50123320, 50123420",null,"2020-01-21 00:00:00","CONTRATO DE PRESTACION DE SERVICIOS - PROFESIONALES","0602020","RENGLON 131, ACT PAA 3204049, PRESTACIÓN DE SERVICIOS PROFESIONALES PARA LA REVISIÓN DE TEXTOS, CORRECCIÓN DE ESTILO Y SEGUIMIENTO AL CUMPLIMIENTO DE LAS NORMAS EDITORIALES Y DE IDENTIDAD VISUAL. APOYO A LA FORMULACIÓN E IMPLEMENTACIÓN DEL PROCEDIMIE"]
[1032443629,0,0,612020,612020,29220,"2020-01-22 00:00:00","2020-01-22 15:02:15","Con Obligacion","02","IDEAM-GG-SECRETARIA GENERAL","A-02-02-02-008-002","SERVICIOS JURÍDICOS Y CONTABLES","Nación","RECURSOS CORRIENTES","CSF",27864000,0,27864000,24510000,"Cédula de Ciudadanía","1032443629","CORTES CRUZ RAFAEL FRANCISCO","Abono en cuenta","Ahorro","0550457800066765","Activa","860034313","BANCO DAVIVIENDA S.A.","5920","6020","29220","29720, 81020","79520, 84720","37901720, 42241020",null,"2020-01-22 00:00:00","CONTRATO DE PRESTACION DE SERVICIOS - PROFESIONALES","0612020","RENGLON 062, ACT PAA 00, PRESTAR LOS SERVICIOS PROFESIONALES A LA OFICINA DE CONTROL INTERNO PARA REALIZAR SEGUIMIENTO A LOS PLANES DE MEJORAMIENTO MISIONALES TANTO DEL NIVEL CENTRAL COMO DE LAS ÁREAS OPERATIVAS, AEROPUERTOS, LABORATORIOS; REALIZAR"]
[80239829,0,0,622020,622020,29820,"2020-01-23 00:00:00","2020-01-23 09:56:24","Con Obligacion","05","IDEAM-GG-SUBDIRECCION HIDROLOGIA","C-3204-0900-3-0-3204050-02","ADQUISICIÓN DE BIENES Y SERVICIOS - SERVICIO DE MODELACIÓN HIDRODINÁMICA - FORTALECIMIENTO DE LA GESTIÓN DEL CONOCIMIENTO HIDROLÓGICO, METEOROLÓGICO Y AMBIENTAL NACIONAL","Nación","OTROS RECURSOS DEL TESORO","CSF",53956000,0,53956000,43050000,"Cédula de Ciudadanía","80239829","MORENO CASTIBLANCO MARIO ENRIQUE","Abono en cuenta","Ahorro","01364286089","Activa","890903938","BANCOLOMBIA S.A.","23420","22620","29820","48220, 82020","71020, 92120","33215720, 44482820",null,"2020-01-23 00:00:00","CONTRATO DE PRESTACION DE SERVICIOS - PROFESIONALES","0622020","RENGLON 019, ACT PAA HIDRO08, PRESTAR LOS SERVICIOS PROFESIONALES PARA EL ANÁLISIS DE INFORMACIÓN E IMPLEMENTACIÓN DE UN MODELO MATEMÁTICO PARA CARACTERIZAR ESPACIALMENTE Y TEMPORALMENTE LA HIDRODINÁMICA DEL RÍO AMAZONAS EN EL SECTOR ATACUARI"]
[9726852,0,0,632020,632020,29920,"2020-01-23 00:00:00","2020-01-23 10:30:27","Con Obligacion","05","IDEAM-GG-SUBDIRECCION HIDROLOGIA","C-3204-0900-3-0-3204050-02","ADQUISICIÓN DE BIENES Y SERVICIOS - SERVICIO DE MODELACIÓN HIDRODINÁMICA - FORTALECIMIENTO DE LA GESTIÓN DEL CONOCIMIENTO HIDROLÓGICO, METEOROLÓGICO Y AMBIENTAL NACIONAL","Nación","OTROS RECURSOS DEL TESORO","CSF",52640000,0,52640000,42000000,"Cédula de Ciudadanía","9726852","LEYVA PINTO TOBIAS","Abono en cuenta","Ahorro","0550450200039821","Activa","860034313","BANCO DAVIVIENDA S.A.","23220","22420","29920","57620, 81120","87620, 93220","43403120, 44719020",null,"2020-01-23 00:00:00","CONTRATO DE PRESTACION DE SERVICIOS - PROFESIONALES","0632020","RENGLON 021, ACT PAA HIDRO08, PRESTAR LOS SERVICIOS PROFESIONALES PARA ANALIZAR, CONSOLIDAR Y DOCUMENTAR LAS CARACTERÍSTICAS GEOMORFOLOGICAS PARA EL RIO AMAZONAS, SECTOR ATACUARI - LETICIA"]
[1015395081,0,0,642020,642020,30020,"2020-01-23 00:00:00","2020-01-23 10:58:35","Con Obligacion","05","IDEAM-GG-SUBDIRECCION HIDROLOGIA","C-3204-0900-3-0-3204015-02","ADQUISICIÓN DE BIENES Y SERVICIOS - SERVICIO DE MONITOREO HIDROLÓGICO - FORTALECIMIENTO DE LA GESTIÓN DEL CONOCIMIENTO HIDROLÓGICO, METEOROLÓGICO Y AMBIENTAL NACIONAL","Nación","OTROS RECURSOS DEL TESORO","CSF",66538000,0,66538000,58710000,"Cédula de Ciudadanía","1015395081","BOHORQUEZ MORENO DIANA CAROLINA","Abono en cuenta","Ahorro","93272021749","Activa","890903938","BANCOLOMBIA S.A.","24020","23220","30020","82720, 82920","91420, 91620","44482220, 44482420",null,"2020-01-23 00:00:00","CONTRATO DE PRESTACION DE SERVICIOS - PROFESIONALES","0642020","RENGLON 002, ACT PAA HIDRO01, PRESTAR LOS SERVICIOS PROFESIONALES PARA ANALIZAR, EVALUAR, VALIDAR LA CALIDAD DE LA INFORMACIÓN HIDROLÓGICA, PROCESAR Y PUBLICAR EN EL SISTEMA DE INFORMACIÓN HIDROLÓGICA OFICIAL DEL IDEAM (DHIME), LAS SERIES DE NIVELES,"]
[1081153984,0,0,652020,652020,30120,"2020-01-23 00:00:00","2020-01-23 11:26:43","Con Obligacion","05","IDEAM-GG-SUBDIRECCION HIDROLOGIA","C-3204-0900-3-0-3204015-02","ADQUISICIÓN DE BIENES Y SERVICIOS - SERVICIO DE MONITOREO HIDROLÓGICO - FORTALECIMIENTO DE LA GESTIÓN DEL CONOCIMIENTO HIDROLÓGICO, METEOROLÓGICO Y AMBIENTAL NACIONAL","Nación","OTROS RECURSOS DEL TESORO","CSF",66538000,0,66538000,58710000,"Cédula de Ciudadanía","1081153984","SANCHEZ FARFAN PAOLA ANDREA","Abono en cuenta","Ahorro","07624871906","Activa","890903938","BANCOLOMBIA S.A.","25120","24320","30120","80520, 80620","90820, 90920","44481620, 44481820",null,"2020-01-23 00:00:00","CONTRATO DE PRESTACION DE SERVICIOS - PROFESIONALES","0652020","RENGLON 001, ACT PAA HIDRO01, PRESTAR LOS SERVICIOS PROFESIONALES PARA ANALIZAR, EVALUAR, VALIDAR LA CALIDAD DE LA INFORMACIÓN HIDROLÓGICA, PROCESAR Y PUBLICAR EN EL SISTEMA DE INFORMACIÓN HIDROLÓGICA OFICIAL DEL IDEAM (DHIME), LAS SERIES DE NIVELES,"]
[80163989,0,0,662020,662020,30220,"2020-01-23 00:00:00","2020-01-23 12:03:19","Con Obligacion","02","IDEAM-GG-SECRETARIA GENERAL","A-02-02-02-008-003","OTROS SERVICIOS PROFESIONALES, CIENTÍFICOS Y TÉCNICOS","Propios","OTROS RECURSOS DE TESORERIA","CSF",59826000,0,59826000,53100000,"Cédula de Ciudadanía","80163989","SEGURA MEDINA CARLOS ANDRES","Abono en cuenta","Ahorro","19122001426","Activa","890903938","BANCOLOMBIA S.A.","31420","29920","30220","35220, 75620","44320, 88620","17556920, 42986420",null,"2020-01-23 00:00:00","CONTRATO DE PRESTACION DE SERVICIOS - PROFESIONALES","0662020","RENGLON 073, ACT PAA 00, PRESTACIÓN DE SERVICIOS PROFESIONALES EN EL GRUPO DE TESORERÍA EN EL ANALISIS,VALIDACION,CONCILIACION Y SEGUIMIENTO A LA EJECUCION DEL PAC, CUN Y A LOS TEMAS RELAICONADOS CON INGRESOS PERCIBIDOS POR EL IDEAM E IMPUTADOS EN SI"]
[2956117,0,0,672020,672020,30320,"2020-01-23 00:00:00","2020-01-23 12:12:01","Con Obligacion","05","IDEAM-GG-SUBDIRECCION HIDROLOGIA","C-3204-0900-3-0-3204050-02","ADQUISICIÓN DE BIENES Y SERVICIOS - SERVICIO DE MODELACIÓN HIDRODINÁMICA - FORTALECIMIENTO DE LA GESTIÓN DEL CONOCIMIENTO HIDROLÓGICO, METEOROLÓGICO Y AMBIENTAL NACIONAL","Nación","OTROS RECURSOS DEL TESORO","CSF",79458000,0,79458000,70110000,"Cédula de Ciudadanía","2956117","TRIANA GARCIA JOSEVILLE JUNIOR","Abono en cuenta","Ahorro","002600041731","Activa","860034313","BANCO DAVIVIENDA S.A.","24120","23320","30320","58820, 82620","87720, 93120","44479120, 44483520",null,"2020-01-23 00:00:00","CONTRATO DE PRESTACION DE SERVICIOS - PROFESIONALES","0672020","RENGLON 014, ACT PAA HIDRO06, PRESTAR LOS SERVICIOS PROFESIONALES EN SIG PARA LA GENERACIÓN DE PRODUCTOS Y CAPAS TEMÁTICAS ASOCIADAS A LA OCURRENCIA INUNDACIONES, DE AVENIDAS TORRENCIALES E INUNDACIONES Y DEMÁS INFORMACIÓN ASOCIADA A PRODUCTOS DE HID"]
[52176219,0,0,682020,682020,30520,"2020-01-23 00:00:00","2020-01-23 12:19:42","Con Obligacion","03","IDEAM-GG-DG.OFICINA INFORMATICA","C-3299-0900-1-0-3299001-02","ADQUISICIÓN DE BIENES Y SERVICIOS - SERVICIOS DE INFORMACIÓN PARA LA GESTIÓN ADMINISTRATIVA - FORTALECIMIENTO DE LA GESTIÓN Y DIRECCIÓN DEL INSTITUTO DE HIDROLOGÍA, METEOROLOGÍA Y ESTUDIOS AMBIENTALES NACIONAL","Nación","OTROS RECURSOS DEL TESORO","CSF",68799000,0,68799000,60705000,"Cédula de Ciudadanía","52176219","BERRIO ALVARADO ANA MARIA","Abono en cuenta","Ahorro","20151149993","Activa","890903938","BANCOLOMBIA S.A.","26120","25320","30520","59220, 99020","71720, 107120","33226620, 49003020",null,"2020-01-23 00:00:00","CONTRATO DE PRESTACION DE SERVICIOS - PROFESIONALES","0682020","RENGLON 026, ACT PAA INFO04, PRESTAR LOS SERVICIOS PROFESIONALES, PARA EL APOYO EN LOS PROCESOS DE CONTRATACIÓN Y LOS PROYECTOS EN CUMPLIMIENTO DEL PLAN DE ACCIÓN DE LA OFICINA DE INFORMÁTICA – APOYO A LA SUPERVISIÓN"]
[72206667,0,0,692020,692020,30620,"2020-01-23 00:00:00","2020-01-23 12:34:08","Con Obligacion","03","IDEAM-GG-DG.OFICINA INFORMATICA","C-3299-0900-1-0-3299001-02","ADQUISICIÓN DE BIENES Y SERVICIOS - SERVICIOS DE INFORMACIÓN PARA LA GESTIÓN ADMINISTRATIVA - FORTALECIMIENTO DE LA GESTIÓN Y DIRECCIÓN DEL INSTITUTO DE HIDROLOGÍA, METEOROLOGÍA Y ESTUDIOS AMBIENTALES NACIONAL","Nación","OTROS RECURSOS DEL TESORO","CSF",81719000,0,81719000,74129000,"Cédula de Ciudadanía","72206667","CABARCAS GOMEZ WLADIMIR IVAN","Abono en cuenta","Ahorro","20455801301","Activa","890903938","BANCOLOMBIA S.A.","26320","25520","30620","103220","111720","50122320",null,"2020-01-23 00:00:00","CONTRATO DE PRESTACION DE SERVICIOS - PROFESIONALES","0692020","RENGLON 028, ACT PAA INFO04, PRESTAR LOS SERVICIOS PROFESIONALES DE DESARROLLO TEMPORAL DE SOFTWARE DE TECNOLOGÍAS EMERGENTES-BIG DATA"]
[1057603753,0,0,702020,702020,30820,"2020-01-23 00:00:00","2020-01-23 12:42:41","Con Obligacion","05","IDEAM-GG-SUBDIRECCION HIDROLOGIA","C-3204-0900-3-0-3204050-02","ADQUISICIÓN DE BIENES Y SERVICIOS - SERVICIO DE MODELACIÓN HIDRODINÁMICA - FORTALECIMIENTO DE LA GESTIÓN DEL CONOCIMIENTO HIDROLÓGICO, METEOROLÓGICO Y AMBIENTAL NACIONAL","Nación","OTROS RECURSOS DEL TESORO","CSF",26809000,0,26809000,23655000,"Cédula de Ciudadanía","1057603753","RIOS BECERRA JAIRO ANDRES","Abono en cuenta","Ahorro","24060339535","Activa","860007335","BCSC S A","23020","22320","30820","38220, 82820","70520, 91520","33233820, 44482320",null,"2020-01-23 00:00:00","CONTRATO DE PRESTACION DE SERVICIOS - PROFESIONALES","0702020","RENGLON 022, ACT PAA HIDRO06, PRESTAR SERVICIOS PROFESIONALES PARA GENERAR INFORMACIÓN Y DOCUMENTAR Y APOYAR PROCESOS, PROYECTOS Y CONVENIOS DEL GRUPO DE MODELACIÓN Y PRONÓSTICO HIDROLÓGICO"]
[52976442,0,0,712020,712020,35520,"2020-01-23 00:00:00","2020-01-23 15:12:28","Con Obligacion","05","IDEAM-GG-SUBDIRECCION HIDROLOGIA","C-3204-0900-3-0-3204050-02","ADQUISICIÓN DE BIENES Y SERVICIOS - SERVICIO DE MODELACIÓN HIDRODINÁMICA - FORTALECIMIENTO DE LA GESTIÓN DEL CONOCIMIENTO HIDROLÓGICO, METEOROLÓGICO Y AMBIENTAL NACIONAL","Nación","OTROS RECURSOS DEL TESORO","CSF",47564000,0,47564000,37950000,"Cédula de Ciudadanía","52976442","MELO JIMENEZ NATHALIA","Abono en cuenta","Ahorro","457800082598","Activa","860034313","BANCO DAVIVIENDA S.A.","23320","22520","35520","48120, 81420","70920, 93620","33213720, 44483820",null,"2020-01-23 00:00:00","CONTRATO DE PRESTACION DE SERVICIOS - PROFESIONALES","0712020","RENGLON 020, ACT PAA HIDRO08, PRESTAR LOS SERVICIOS PROFESIONALES PARA EL PROCESAMIENTO DE CAPAS TEMÁTICAS E INFORMACIÓN ESPACIAL RELACIONADAS CON LA INFORMACIÓN DISPONIBLE PARA EL RÍO AMAZONAS Y CUENCAS TRANSFRONTERIZAS."]
[1032463520,0,0,722020,722020,35620,"2020-01-23 00:00:00","2020-01-23 15:29:47","Con Obligacion","05","IDEAM-GG-SUBDIRECCION HIDROLOGIA","C-3204-0900-3-0-3204050-02","ADQUISICIÓN DE BIENES Y SERVICIOS - SERVICIO DE MODELACIÓN HIDRODINÁMICA - FORTALECIMIENTO DE LA GESTIÓN DEL CONOCIMIENTO HIDROLÓGICO, METEOROLÓGICO Y AMBIENTAL NACIONAL","Nación","OTROS RECURSOS DEL TESORO","CSF",64600000,0,64600000,57000000,"Cédula de Ciudadanía","1032463520","VEGA VIVIESCAS CAROLINA","Abono en cuenta","Ahorro","001004710645","Activa","860034594","SCOTIABANK COLPATRIA SA","23920","23120","35620","36920, 80320","71520, 90420","33221020, 44481320",null,"2020-01-23 00:00:00","CONTRATO DE PRESTACION DE SERVICIOS - PROFESIONALES","0722020","RENGLON 015, ACT PAA HIDRO07, PRESTAR LOS SERVICIOS PROFESIONALES PARA LA ESTIMACIÓN Y ACTUALIZACIÓN DE LA OFERTA HÍDRICA SUPERFICIAL A NIVEL MENSUAL PARA UN COLOMBIA Y REALIZAR ANÁLISIS DE VARIABILIDAD HIDROLÓGICA Y SEGUIMIENTO DEL ESTADO DE LOS PRI"]
[52929334,0,0,732020,732020,35720,"2020-01-23 00:00:00","2020-01-23 16:34:21","Con Obligacion","08","IDEAM-GG-SUBDIRECCION ESTUDIOS AMBIENTALES","C-3204-0900-3-0-3204007-02","ADQUISICIÓN DE BIENES Y SERVICIOS - SERVICIO DE ACREDITACIÓN DE LABORATORIOS Y ORGANIZACIONES - FORTALECIMIENTO DE LA GESTIÓN DEL CONOCIMIENTO HIDROLÓGICO, METEOROLÓGICO Y AMBIENTAL NACIONAL","Propios","INGRESOS CORRIENTES","CSF",49348000,0,49348000,43800000,"Cédula de Ciudadanía","52929334","GRANADOS MENDOZA VIVIANA","Abono en cuenta","Ahorro","23762927934","Activa","890903938","BANCOLOMBIA S.A.","26520","25720","35720","37520, 90720","85720, 100120","42985320, 47631420",null,"2020-01-23 00:00:00","CONTRATO DE PRESTACION DE SERVICIOS - PROFESIONALES","0732020","RENGLON 018, ACT PAA ESTUDI06, PRESTAR LOS SERVICIOS PROFESIONALES COMO EVALUADOR ASISTENTE, DE ACUERDO CON EL PERFIL DEFINIDO EN LA RESOLUCIÓN 2765 DE 2015, PARA LA EJECUCIÓN, SEGUIMIENTO, APOYO Y MEJORA DEL SERVICIO DE ACREDITACIÓN DE LABORATORIOS"]
[1057570577,0,0,752020,752020,36220,"2020-01-23 00:00:00","2020-01-23 17:08:01","Con Obligacion","02","IDEAM-GG-SECRETARIA GENERAL","A-02-02-02-008-002","SERVICIOS JURÍDICOS Y CONTABLES","Nación","RECURSOS CORRIENTES","CSF",66538000,0,66538000,58710000,"Cédula de Ciudadanía","1057570577","CARDONA RINCON CESAR ANDRES","Abono en cuenta","Ahorro","0901172536","Activa","860003020","BANCO BILBAO VIZCAYA ARGENTARIA COLOMBIA S.A. BBVA","5820","5920","36220","37420, 80120","69520, 84620","33217420, 42240920",null,"2020-01-23 00:00:00","CONTRATO DE PRESTACION DE SERVICIOS - PROFESIONALES","0752020","RENGLON 061, ACT PAA 00, PRESTAR LOS SERVICIOS PROFESIONALES PARA QUE DE ACUERDO CON EL PLAN ANUAL DE AUDITORÍAS 2020 Y LA DESIGNACIÓN QUE HAGA LA JEFA DE LA OFICINA DE CONTROL INTERNO, REALICE AUDITORÍAS/SEGUIMIENTOS A LOS PROCESOPS, PLANES, PROGRAM"]
[52124161,0,0,742020,742020,36420,"2020-01-23 00:00:00","2020-01-23 17:15:34","Con Obligacion","06","IDEAM-GG-SUBDIRECCION METEOROLOGIA","C-3204-0900-3-0-3204043-02","ADQUISICIÓN DE BIENES Y SERVICIOS - SERVICIO DE INFORMACIÓN DE DATOS CLIMÁTICOS Y MONITOREO - FORTALECIMIENTO DE LA GESTIÓN DEL CONOCIMIENTO HIDROLÓGICO, METEOROLÓGICO Y AMBIENTAL NACIONAL","Nación","OTROS RECURSOS DEL TESORO","CSF",70737000,0,70737000,62415000,"Cédula de Ciudadanía","52124161","SEGURA LOPEZ LETICIA","Abono en cuenta","Ahorro","0130034002","Activa","860003020","BANCO BILBAO VIZCAYA ARGENTARIA COLOMBIA S.A. BBVA","21120","20420","36420","30820, 85120","70320, 95020","33228920, 46530520",null,"2020-01-23 00:00:00","CONTRATO DE PRESTACION DE SERVICIOS - PROFESIONALES","0742020","RENGLON 012, ACT PAA METEO02, PRESTAR LOS SERVICIOS PROFESIONALES A LA SUBDIRECCIÓN DE METEOROLOGÍA EN PROCESOS DE OFICIALIZACIÓN DE MAPAS TEMÁTICOS PARA APLICAR LOS FORMATOS Y LOS ESTÁNDARES DEFINIDOS POR EL IDEAM PARA LOS DIFERENTES PRODUCTOS DE LA"]
[79367651,0,0,762020,762020,52320,"2020-01-28 00:00:00","2020-01-28 11:35:56","Con Obligacion","03","IDEAM-GG-DG.OFICINA INFORMATICA","C-3299-0900-1-0-3299001-02","ADQUISICIÓN DE BIENES Y SERVICIOS - SERVICIOS DE INFORMACIÓN PARA LA GESTIÓN ADMINISTRATIVA - FORTALECIMIENTO DE LA GESTIÓN Y DIRECCIÓN DEL INSTITUTO DE HIDROLOGÍA, METEOROLOGÍA Y ESTUDIOS AMBIENTALES NACIONAL","Nación","OTROS RECURSOS DEL TESORO","CSF",67734000,0,67734000,60705000,"Cédula de Ciudadanía","79367651","FONSECA ALBARRACIN PEDRO","Abono en cuenta","Ahorro","004372008319","Activa","860034594","SCOTIABANK COLPATRIA SA","26220","25420","52320","58120, 99720","86620, 107820","43402620, 49003320",null,"2020-01-28 00:00:00","CONTRATO DE PRESTACION DE SERVICIOS - PROFESIONALES","0762020","RENGLON 027, ACT PAA INFO04, PRESTAR LOS SERVICIOS PROFESIONALES, PARA EL APOYO EN LOS PROCESOS DE CONTRATACIÓN Y LOS PROYECTOS EN CUMPLIMIENTO DE LAS ACTIVIDADES DEL PLAN DE ACCIÓN DE LA OFICINA DE INFORMATICA-APOYO A LA SUPERVISIÓN"]
[1085245371,0,0,792020,792020,52520,"2020-01-28 00:00:00","2020-01-28 11:46:53","Con Obligacion","08","IDEAM-GG-SUBDIRECCION ESTUDIOS AMBIENTALES","C-3204-0900-3-0-3204007-02","ADQUISICIÓN DE BIENES Y SERVICIOS - SERVICIO DE ACREDITACIÓN DE LABORATORIOS Y ORGANIZACIONES - FORTALECIMIENTO DE LA GESTIÓN DEL CONOCIMIENTO HIDROLÓGICO, METEOROLÓGICO Y AMBIENTAL NACIONAL","Propios","INGRESOS CORRIENTES","CSF",74925000,0,74925000,67500000,"Cédula de Ciudadanía","1085245371","FUERTES RAMIREZ LADY ANDREA","Abono en cuenta","Ahorro","676736072","Activa","860035827","BANCO COMERCIAL AV VILLAS S.A.","30320","29120","52520","48420, 91820","86320, 101320","43402420, 47632920",null,"2020-01-28 00:00:00","CONTRATO DE PRESTACION DE SERVICIOS - PROFESIONALES","0792020","RENGLON 030, ACT PAA ESTUDI06, PRESTAR LOS SERVICIOS PROFESIONALES COMO EVALUADOR LÍDER, DE ACUERDO CON EL PERFIL DEFINIDO EN LA RESOLUCIÓN 2765 DE 2015, PARA LA PLANEACIÓN, EJECUCIÓN, SEGUIMIENTO Y MEJORA DEL SERVICIO DE ACREDITACIÓN DE LABORATORIOS"]
[52838804,0,0,782020,782020,52820,"2020-01-28 00:00:00","2020-01-28 12:10:31","Con Obligacion","08","IDEAM-GG-SUBDIRECCION ESTUDIOS AMBIENTALES","C-3204-0900-3-0-3204007-02","ADQUISICIÓN DE BIENES Y SERVICIOS - SERVICIO DE ACREDITACIÓN DE LABORATORIOS Y ORGANIZACIONES - FORTALECIMIENTO DE LA GESTIÓN DEL CONOCIMIENTO HIDROLÓGICO, METEOROLÓGICO Y AMBIENTAL NACIONAL","Propios","INGRESOS CORRIENTES","CSF",25974000,0,25974000,23400000,"Cédula de Ciudadanía","52838804","MARIBEL MONTAÑEZ BLANCO","Abono en cuenta","Ahorro","20026002764","Activa","890903938","BANCOLOMBIA S.A.","29020","27720","52820","40820, 91520","48420, 100820","20251220, 47632420",null,"2020-01-28 00:00:00","CONTRATO DE PRESTACION DE SERVICIOS - PROFESIONALES","0782020","RENGLON 006, ACT PAA ESTUDI06, PRESTAR LOS SERVICIOS DE APOYO A LA GESTIÓN PARA REALIZAR LOS PROCESOS DE ARCHIVO Y DIGITALIZACIÓN DOCUMENTAL DE LOS SERVICIOS DE AUTORIZACIÓN DE LA MEDICIÓN DE EMISIONES DE FUENTES MÓVILES Y DE ACREDITACIÓN DE LABORATO"]
[53124060,0,0,772020,772020,53120,"2020-01-28 00:00:00","2020-01-28 15:22:43","Con Obligacion","08","IDEAM-GG-SUBDIRECCION ESTUDIOS AMBIENTALES","C-3204-0900-3-0-3204007-02","ADQUISICIÓN DE BIENES Y SERVICIOS - SERVICIO DE ACREDITACIÓN DE LABORATORIOS Y ORGANIZACIONES - FORTALECIMIENTO DE LA GESTIÓN DEL CONOCIMIENTO HIDROLÓGICO, METEOROLÓGICO Y AMBIENTAL NACIONAL","Propios","INGRESOS CORRIENTES","CSF",74925000,0,74925000,67500000,"Cédula de Ciudadanía","53124060","SANDOVAL SISA EDNA ROCIO","Abono en cuenta","Ahorro","67349494121","Activa","890903938","BANCOLOMBIA S.A.","32020","30520","53120","57920, 94120","73420, 103420","33236120, 48995820",null,"2020-01-28 00:00:00","CONTRATO DE PRESTACION DE SERVICIOS - PROFESIONALES","0772020","RENGLON 025, ACT PAA ESTUDI06, PRESTAR LOS SERVICIOS PROFESIONALES COMO EVALUADOR LÍDER, DE ACUERDO CON EL PERFIL DEFINIDO EN LA RESOLUCIÓN 2765 DE 2015, PARA LA PLANEACIÓN, EJECUCIÓN, SEGUIMIENTO Y MEJORA DEL SERVICIO DE ACREDITACIÓN DE LABORATORIOS"]
[1030545059,0,0,802020,802020,53220,"2020-01-28 00:00:00","2020-01-28 15:46:48","Con Obligacion","08","IDEAM-GG-SUBDIRECCION ESTUDIOS AMBIENTALES","C-3204-0900-3-0-3204007-02","ADQUISICIÓN DE BIENES Y SERVICIOS - SERVICIO DE ACREDITACIÓN DE LABORATORIOS Y ORGANIZACIONES - FORTALECIMIENTO DE LA GESTIÓN DEL CONOCIMIENTO HIDROLÓGICO, METEOROLÓGICO Y AMBIENTAL NACIONAL","Propios","INGRESOS CORRIENTES","CSF",25974000,0,25974000,23400000,"Cédula de Ciudadanía","1030545059","RODRIGUEZ MARTINEZ JORGE ANDRES","Abono en cuenta","Ahorro","473100042224","Activa","860034313","BANCO DAVIVIENDA S.A.","28920","27620","53220","59120, 91920","87420, 101520","43402920, 47633220",null,"2020-01-28 00:00:00","CONTRATO DE PRESTACION DE SERVICIOS","0802020","RENGLON 005, ACT PAA ESTUDI06, PRESTAR LOS SERVICIOS DE APOYO A LA GESTIÓN PARA ORGANIZAR EL ARCHIVO INACTIVO DE LOS EXPEDIENTES ASOCIADOS A LOS SERVICIOS DE AUTORIZACIÓN DE LA MEDICIÓN DE EMISIONES DE FUENTES MÓVILES Y DE ACREDITACIÓN DE LABORATORI"]
[94532212,0,0,812020,812020,53320,"2020-01-28 00:00:00","2020-01-28 16:16:56","Con Obligacion","08","IDEAM-GG-SUBDIRECCION ESTUDIOS AMBIENTALES","C-3204-0900-3-0-3204045-02","ADQUISICIÓN DE BIENES Y SERVICIOS - SERVICIOS DE  ADMINISTRACIÓN DE REGISTRO DE ESTABLECIMIENTOS - FORTALECIMIENTO DE LA GESTIÓN DEL CONOCIMIENTO HIDROLÓGICO, METEOROLÓGICO Y AMBIENTAL NACIONAL","Nación","OTROS RECURSOS DEL TESORO","CSF",67416000,0,67416000,60420000,"Cédula de Ciudadanía","94532212","RODRIGUEZ RODRIGUEZ JULIAN ANDRES","Abono en cuenta","Ahorro","20765890474","Activa","890903938","BANCOLOMBIA S.A.","37620","36120","53320","38120, 99920","70420, 108020","33232720, 49003720",null,"2020-01-28 00:00:00","CONTRATO DE PRESTACION DE SERVICIOS - PROFESIONALES","0812020","RENGLON 041, ACT PAA ESTUDI04, PRESTAR EL SOPORTE INFORMÁTICO, ATENCIÓN A INCIDENCIAS Y MANTENIMIENTO EVOLUTIVO A LOS APLICATIVOS ADMINISTRADOS POR LA SEA:RUAMF – RESPEL – RUA NUEVO – SISTEMA DE TRAZABILIDAD"]
[3087793,0,0,822020,822020,53420,"2020-01-28 00:00:00","2020-01-28 16:59:25","Con Obligacion","08","IDEAM-GG-SUBDIRECCION ESTUDIOS AMBIENTALES","C-3204-0900-3-0-3204007-02","ADQUISICIÓN DE BIENES Y SERVICIOS - SERVICIO DE ACREDITACIÓN DE LABORATORIOS Y ORGANIZACIONES - FORTALECIMIENTO DE LA GESTIÓN DEL CONOCIMIENTO HIDROLÓGICO, METEOROLÓGICO Y AMBIENTAL NACIONAL","Propios","INGRESOS CORRIENTES","CSF",48618000,0,48618000,43800000,"Cédula de Ciudadanía","3087793","CADENA MORENO VICTOR ALFONSO","Abono en cuenta","Ahorro","0570004870401215","Activa","860034313","BANCO DAVIVIENDA S.A.","29820","28520","53420","94020, 94320","103320, 103520","48995620, 48996020",null,"2020-01-28 00:00:00","CONTRATO DE PRESTACION DE SERVICIOS - PROFESIONALES","0822020","RENGLON 014, ACT PAA ESTUDI06, PRESTAR LOS SERVICIOS PROFESIONALES COMO EVALUADOR ASISTENTE, DE ACUERDO CON EL PERFIL DEFINIDO EN LA RESOLUCIÓN 2765 DE 2015, PARA LA EJECUCIÓN, SEGUIMIENTO, APOYO Y MEJORA DE LOS SERVICIOS DE AUTORIZACIÓN DE LA MEDICI"]
[52419721,0,0,832020,832020,53520,"2020-01-28 00:00:00","2020-01-28 17:18:18","Con Obligacion","05","IDEAM-GG-SUBDIRECCION HIDROLOGIA","C-3204-0900-3-0-3204015-02","ADQUISICIÓN DE BIENES Y SERVICIOS - SERVICIO DE MONITOREO HIDROLÓGICO - FORTALECIMIENTO DE LA GESTIÓN DEL CONOCIMIENTO HIDROLÓGICO, METEOROLÓGICO Y AMBIENTAL NACIONAL","Nación","OTROS RECURSOS DEL TESORO","CSF",76320000,0,76320000,68400000,"Cédula de Ciudadanía","52419721","BUSTILLO MENDOZA AURA MARIA","Abono en cuenta","Ahorro","18060076048","Activa","890903938","BANCOLOMBIA S.A.","24820","24020","53520","58020, 82320","87320, 92720","44478920, 44483220",null,"2020-01-28 00:00:00","CONTRATO DE PRESTACION DE SERVICIOS - PROFESIONALES","0832020","RENGLON 008, ACT PAA HIDRO05, PRESTAR LOS SERVICIOS PROFESIONALES PARA BRINDAR EL SOPORTE TEMÁTICO, ACTIVIDADES DE ADMINISTRACIÓN Y SOCIALIZACIÓN REQUERIDAS PARA EL FUNCIONAMIENTO DEL SIRH Y VALIDAR LA CALIDAD DE LOS DATOS REPORTADOS POR LAS AUTORIDA"]
[52825427,0,0,842020,842020,53620,"2020-01-28 00:00:00","2020-01-28 17:24:48","Con Obligacion","06","IDEAM-GG-SUBDIRECCION METEOROLOGIA","C-3204-0900-3-0-3204043-02","ADQUISICIÓN DE BIENES Y SERVICIOS - SERVICIO DE INFORMACIÓN DE DATOS CLIMÁTICOS Y MONITOREO - FORTALECIMIENTO DE LA GESTIÓN DEL CONOCIMIENTO HIDROLÓGICO, METEOROLÓGICO Y AMBIENTAL NACIONAL","Nación","OTROS RECURSOS DEL TESORO","CSF",65508000,0,65508000,58710000,"Cédula de Ciudadanía","52825427","RODRIGUEZ RODRIGUEZ CLAUDIA PATRICIA","Abono en cuenta","Ahorro","15413978944","Activa","890903938","BANCOLOMBIA S.A.","20720","20020","53620","34720, 84620","43820, 94320","18157920, 44749020",null,"2020-01-28 00:00:00","CONTRATO DE PRESTACION DE SERVICIOS - PROFESIONALES","0842020","RENGLON 009, ACT PAA METEO02, PRESTAR LOS SERVICIOS PROFESIONALES PARA EL FORTALECIMIENTO DE LOS PROCESOS DE GESTIÓN DE CALIDAD ASOCIADOS A LA OBSERVACIÓN, VALIDACIÓN Y CAPTURA DE DATOS METEOROLÓGICOS"]
[1032407533,0,0,852020,852020,53720,"2020-01-28 00:00:00","2020-01-28 17:56:11","Con Obligacion","08","IDEAM-GG-SUBDIRECCION ESTUDIOS AMBIENTALES","C-3204-0900-3-0-3204007-02","ADQUISICIÓN DE BIENES Y SERVICIOS - SERVICIO DE ACREDITACIÓN DE LABORATORIOS Y ORGANIZACIONES - FORTALECIMIENTO DE LA GESTIÓN DEL CONOCIMIENTO HIDROLÓGICO, METEOROLÓGICO Y AMBIENTAL NACIONAL","Propios","INGRESOS CORRIENTES","CSF",48618000,0,48618000,43800000,"Cédula de Ciudadanía","1032407533","BOLAÑOS ALMEIDA CAROL ANDREA","Abono en cuenta","Ahorro","23175537091","Activa","890903938","BANCOLOMBIA S.A.","30220","29020","53720","51420, 92020","86820, 101620","43402820, 47633520",null,"2020-01-28 00:00:00","CONTRATO DE PRESTACION DE SERVICIOS - PROFESIONALES","0852020","RENGLON 019, ACT PAA ESTUDI06, PRESTAR LOS SERVICIOS PROFESIONALES COMO EVALUADOR ASISTENTE, DE ACUERDO CON EL PERFIL DEFINIDO EN LA RESOLUCIÓN 2765 DE 2015, PARA LA EJECUCIÓN, SEGUIMIENTO, APOYO Y MEJORA DEL SERVICIO DE ACREDITACIÓN DE LABORATORIOS"]
[1075662129,0,0,862020,862020,53820,"2020-01-28 00:00:00","2020-01-28 18:03:56","Con Obligacion","08","IDEAM-GG-SUBDIRECCION ESTUDIOS AMBIENTALES","C-3204-0900-3-0-3204007-02","ADQUISICIÓN DE BIENES Y SERVICIOS - SERVICIO DE ACREDITACIÓN DE LABORATORIOS Y ORGANIZACIONES - FORTALECIMIENTO DE LA GESTIÓN DEL CONOCIMIENTO HIDROLÓGICO, METEOROLÓGICO Y AMBIENTAL NACIONAL","Propios","INGRESOS CORRIENTES","CSF",48618000,0,48618000,43800000,"Cédula de Ciudadanía","1075662129","ZAMBRANO VELOSA JUAN MANUEL","Abono en cuenta","Ahorro","94474784651","Activa","890903938","BANCOLOMBIA S.A.","29520","28220","53820","37920, 89520","85920, 100520","42985420, 47631820",null,"2020-01-28 00:00:00","CONTRATO DE PRESTACION DE SERVICIOS - PROFESIONALES","0862020","RENGLON 011, ACT PAA ESTUDI06, PRESTAR LOS SERVICIOS PROFESIONALES COMO EVALUADOR ASISTENTE, DE ACUERDO CON EL PERFIL DEFINIDO EN LA RESOLUCIÓN 2765 DE 2015, PARA LA EJECUCIÓN, SEGUIMIENTO, APOYO Y MEJORA DE LOS SERVICIOS DE AUTORIZACIÓN DE LA MEDICI"]
[1019027870,0,0,872020,872020,53920,"2020-01-28 00:00:00","2020-01-28 18:08:38","Con Obligacion","08","IDEAM-GG-SUBDIRECCION ESTUDIOS AMBIENTALES","C-3204-0900-3-0-3204007-02","ADQUISICIÓN DE BIENES Y SERVICIOS - SERVICIO DE ACREDITACIÓN DE LABORATORIOS Y ORGANIZACIONES - FORTALECIMIENTO DE LA GESTIÓN DEL CONOCIMIENTO HIDROLÓGICO, METEOROLÓGICO Y AMBIENTAL NACIONAL","Propios","INGRESOS CORRIENTES","CSF",48618000,0,48618000,43800000,"Cédula de Ciudadanía","1019027870","CRIOLLO ALVARADO JOHANA","Abono en cuenta","Ahorro","94482281588","Activa","890903938","BANCOLOMBIA S.A.","30120","28820","53920","51320, 93620","86720, 103120","43402720, 48995120",null,"2020-01-28 00:00:00","CONTRATO DE PRESTACION DE SERVICIOS - PROFESIONALES","0872020","RENGLON 017, ACT PAA ESTUDI06, PRESTAR LOS SERVICIOS PROFESIONALES COMO EVALUADOR ASISTENTE, DE ACUERDO CON EL PERFIL DEFINIDO EN LA RESOLUCIÓN 2765 DE 2015, PARA LA EJECUCIÓN, SEGUIMIENTO, APOYO Y MEJORA DEL SERVICIO DE ACREDITACIÓN DE LABORATORIOS"]
[1032409082,0,0,882020,882020,54020,"2020-01-28 00:00:00","2020-01-28 18:18:35","Con Obligacion","08","IDEAM-GG-SUBDIRECCION ESTUDIOS AMBIENTALES","C-3204-0900-3-0-3204007-02","ADQUISICIÓN DE BIENES Y SERVICIOS - SERVICIO DE ACREDITACIÓN DE LABORATORIOS Y ORGANIZACIONES - FORTALECIMIENTO DE LA GESTIÓN DEL CONOCIMIENTO HIDROLÓGICO, METEOROLÓGICO Y AMBIENTAL NACIONAL","Propios","INGRESOS CORRIENTES","CSF",25974000,0,25974000,23400000,"Cédula de Ciudadanía","1032409082","GRAJALES ORTIZ ANGELICA JHOHANNA","Abono en cuenta","Ahorro","651721552","Activa","860035827","BANCO COMERCIAL AV VILLAS S.A.","28820","27520","54020","48020, 89720","86020, 99920","47631220, 48993420",null,"2020-01-28 00:00:00","CONTRATO DE PRESTACION DE SERVICIOS","0882020","RENGLON 004, ACT PAA ESTUDI06, PRESTAR LOS SERVICIOS DE APOYO A LA GESTIÓN PARA REALIZAR LOS PROCESOS DE ARCHIVO Y DIGITALIZACIÓN DOCUMENTAL DE LOS SERVICIOS DE AUTORIZACIÓN DE LA MEDICIÓN DE EMISIONES DE FUENTES MÓVILES Y DE ACREDITACIÓN DE LABORATO"]
[52817987,0,0,892020,892020,54120,"2020-01-28 00:00:00","2020-01-28 18:24:38","Con Obligacion","05","IDEAM-GG-SUBDIRECCION HIDROLOGIA","C-3204-0900-3-0-3204015-02","ADQUISICIÓN DE BIENES Y SERVICIOS - SERVICIO DE MONITOREO HIDROLÓGICO - FORTALECIMIENTO DE LA GESTIÓN DEL CONOCIMIENTO HIDROLÓGICO, METEOROLÓGICO Y AMBIENTAL NACIONAL","Nación","OTROS RECURSOS DEL TESORO","CSF",76320000,0,76320000,68400000,"Cédula de Ciudadanía","52817987","VESGA GUIZA ANA MARIA","Abono en cuenta","Ahorro","20620015481","Activa","890903938","BANCOLOMBIA S.A.","24920","24120","54120","58220, 83820","86520, 91820","42985620, 44482520",null,"2020-01-28 00:00:00","CONTRATO DE PRESTACION DE SERVICIOS - PROFESIONALES","0892020","RENGLON 007, ACT PAA HIDRO02, PRESTAR LOS SERVICIOS PROFESIONALES PARA EL DESARROLLO E IMPLEMENTACIÓN DE ESTRATEGIAS A NIVEL NACIONAL QUE CONTRIBUYA UNA ADECUADA EVALUACIÓN Y GESTIÓN DE LAS AGUAS SUBTERRÁNEAS EN COLOMBIA"]
[80732988,0,0,902020,902020,54220,"2020-01-28 00:00:00","2020-01-28 18:30:18","Con Obligacion","06","IDEAM-GG-SUBDIRECCION METEOROLOGIA","C-3204-0900-3-0-3204043-02","ADQUISICIÓN DE BIENES Y SERVICIOS - SERVICIO DE INFORMACIÓN DE DATOS CLIMÁTICOS Y MONITOREO - FORTALECIMIENTO DE LA GESTIÓN DEL CONOCIMIENTO HIDROLÓGICO, METEOROLÓGICO Y AMBIENTAL NACIONAL","Nación","OTROS RECURSOS DEL TESORO","CSF",61374000,0,61374000,55005000,"Cédula de Ciudadanía","80732988","MARTINEZ CAMERO EDWIN ENRIQUE","Abono en cuenta","Ahorro","0187125083","Activa","860003020","BANCO BILBAO VIZCAYA ARGENTARIA COLOMBIA S.A. BBVA","21020","20320","54220","37720, 86020","69820, 95420","33221220, 46531320",null,"2020-01-28 00:00:00","CONTRATO DE PRESTACION DE SERVICIOS - PROFESIONALES","0902020","RENGLON 011, ACT PAA METEO02, PRESTAR LOS SERVICIOS PROFESIONALES A LA SUBDIRECCIÓN DE METEOROLOGÍA, COMO ESTADÍSTICO EN LA EVALUACIÓN INFORMACIÓN METEOROLÓGICA BASADA EN MÉTODOS ESTADÍSTICOS QUE PERMITAN LA POSTERIOR REALIZACIÓN Y CARACTERIZACIÓN DE"]
[1010189529,0,0,912020,912020,55220,"2020-01-29 00:00:00","2020-01-29 17:14:07","Con Obligacion","02","IDEAM-GG-SECRETARIA GENERAL","C-3204-0900-3-0-3204048-02","ADQUISICIÓN DE BIENES Y SERVICIOS - SERVICIO DE ADMINISTRACION DE LOS SISTEMAS DE INFORMACIÓN PARA LOS PROCESOS DE TOMA DE DECISIONES - FORTALECIMIENTO DE LA GESTIÓN DEL CONOCIMIENTO HIDROLÓGICO, METEOROLÓGICO Y AMBIENTAL NACIONAL","Nación","OTROS RECURSOS DEL TESORO","CSF",24900000,0,24900000,22244000,"Cédula de Ciudadanía","1010189529","PACHON PIRAJAN DIANA ROCIO","Abono en cuenta","Ahorro","237190145","Activa","860002964","BANCO DE BOGOTA S. A.","36120","34620","55220","58920, 81220","71920, 93420","36170320, 44483620",null,"2020-01-29 00:00:00","CONTRATO DE PRESTACION DE SERVICIOS - PROFESIONALES","0912020","RENGLON 133, ACT PAA 3204048, APLICAR LOS PROCESOS DE SELECCIÓN , DIGITALIZACION Y ELIMINACIÓN DE LA DOCUMENTACIÓN DE GESTIÓN Y ARCHIVO CENTRAL QUE REPOSA EN EL INSTITUTO, INCLUIDAS LAS ÁREAS OPERATIVAS."]
[1100952607,0,0,922020,922020,55320,"2020-01-29 00:00:00","2020-01-29 17:22:23","Con Obligacion","08","IDEAM-GG-SUBDIRECCION ESTUDIOS AMBIENTALES","C-3204-0900-3-0-3204007-02","ADQUISICIÓN DE BIENES Y SERVICIOS - SERVICIO DE ACREDITACIÓN DE LABORATORIOS Y ORGANIZACIONES - FORTALECIMIENTO DE LA GESTIÓN DEL CONOCIMIENTO HIDROLÓGICO, METEOROLÓGICO Y AMBIENTAL NACIONAL","Propios","INGRESOS CORRIENTES","CSF",48472000,0,48472000,43800000,"Cédula de Ciudadanía","1100952607","HERNANDEZ LOPEZ MARIAN JULIETH","Abono en cuenta","Ahorro","041676636","Activa","860002964","BANCO DE BOGOTA S. A.","29920","28620","55320","105720, 105820, 114920","113120, 113220, 122420","52501220, 55197020",null,"2020-01-29 00:00:00","CONTRATO DE PRESTACION DE SERVICIOS - PROFESIONALES","0922020","RENGLON 015, ACT PAA ESTUDI06, PRESTAR LOS SERVICIOS PROFESIONALES COMO EVALUADOR ASISTENTE, DE ACUERDO CON EL PERFIL DEFINIDO EN LA RESOLUCIÓN 2765 DE 2015, PARA LA EJECUCIÓN, SEGUIMIENTO, APOYO Y MEJORA DEL SERVICIO DE ACREDITACIÓN DE LABORATORIOS"]
[{"$f":"+V153+0","v":1023938558},0,0,932020,932020,55420,"2020-01-29 00:00:00","2020-01-29 17:30:31","Con Obligacion","02","IDEAM-GG-SECRETARIA GENERAL","A-02-02-02-008-003","OTROS SERVICIOS PROFESIONALES, CIENTÍFICOS Y TÉCNICOS","Propios","OTROS RECURSOS DE TESORERIA","CSF",25232000,0,25232000,22800000,"Cédula de Ciudadanía","1023938558","GONZALEZ FERRUCHO CRISTHIAN DAVID","Abono en cuenta","Ahorro","002883929","Activa","860035827","BANCO COMERCIAL AV VILLAS S.A.","25720","24920","55420","58520, 82520","73220, 92920","33233520, 44483320",null,"2020-01-29 00:00:00","CONTRATO DE PRESTACION DE SERVICIOS","0932020","RENGLON 129, ACT PAA 00, APOYAR AL GRUPO DE GESTIÓN DOCUMENTAL EL PROCESOS DE CLASIFICACIÓN, ORDENACIÓN, CONSERVACIÓN Y DESCRIPCIÓN DE LOS ARCHIVOS PRODUCIDOS POR EL INSTITUTO DE ACUERDO CON EL SISTEMA DE GESTION DOCUMENTAL."]
[1096482823,0,0,942020,942020,55520,"2020-01-29 00:00:00","2020-01-29 17:39:54","Con Obligacion","05","IDEAM-GG-SUBDIRECCION HIDROLOGIA","C-3204-0900-3-0-3204052-02","ADQUISICIÓN DE BIENES Y SERVICIOS - LABORATORIO DE CALIDAD AMBIENTAL ACREDITADO - FORTALECIMIENTO DE LA GESTIÓN DEL CONOCIMIENTO HIDROLÓGICO, METEOROLÓGICO Y AMBIENTAL NACIONAL","Nación","OTROS RECURSOS DEL TESORO","CSF",50820000,0,50820000,45892000,"Cédula de Ciudadanía","1096482823","GONZALEZ MATEUS ELIZABETH","Abono en cuenta","Ahorro","30660301042","Activa","890903938","BANCOLOMBIA S.A.","34220","32720","55520","75120, 87520","89920, 97720","44480720, 46534220",null,"2020-01-29 00:00:00","CONTRATO DE PRESTACION DE SERVICIOS - PROFESIONALES","0942020","RENGLON 070, ACT PAA HIDRO18, PRESTAR LOS SERVICIOS PROFESIONALES PARA IMPLEMENTAR DE MANERA INTEGRAL LAS TECNICAS ANALITICAS ASIGNADAS ASÍ COMO LAS DE PESTICIDAS Y COMPUESTOS HIDROCARBONADOS PARA DIFERENTES MATRICES"]
[1030548316,0,0,952020,952020,57320,"2020-01-31 00:00:00","2020-01-31 16:39:52","Con Obligacion","02","IDEAM-GG-SECRETARIA GENERAL","C-3204-0900-3-0-3204048-02","ADQUISICIÓN DE BIENES Y SERVICIOS - SERVICIO DE ADMINISTRACION DE LOS SISTEMAS DE INFORMACIÓN PARA LOS PROCESOS DE TOMA DE DECISIONES - FORTALECIMIENTO DE LA GESTIÓN DEL CONOCIMIENTO HIDROLÓGICO, METEOROLÓGICO Y AMBIENTAL NACIONAL","Nación","OTROS RECURSOS DEL TESORO","CSF",24750000,0,24750000,22500000,"Cédula de Ciudadanía","1030548316","ROMERO ROMERO SERGIO","Abono en cuenta","Ahorro","20671221380","Activa","890903938","BANCOLOMBIA S.A.","36220","34720","57320","81320","93520","44728820",null,"2020-01-31 00:00:00","CONTRATO DE PRESTACION DE SERVICIOS - PROFESIONALES","0952020","RENGLON 134, ACT PAA 3204048,APLICAR LOS PROCESOS DE SELECCIÓN Y ELIMINACIÓN DE LA DOCUMENTACIÓN DE GESTIÓN Y ARCHIVO CENTRAL QUE REPOSA EN EL INSTITUTO, COORDINANDO EL PROCESO CON LAS ÁREAS OPERATIVAS."]
[1032471045,0,0,972020,972020,57420,"2020-01-31 00:00:00","2020-01-31 17:31:32","Con Obligacion","04","IDEAM-GG-DG.OFICINA DEL SERVICIO DE PRONOSTICOS Y ALERTAS","C-3204-0900-3-0-3204043-02","ADQUISICIÓN DE BIENES Y SERVICIOS - SERVICIO DE INFORMACIÓN DE DATOS CLIMÁTICOS Y MONITOREO - FORTALECIMIENTO DE LA GESTIÓN DEL CONOCIMIENTO HIDROLÓGICO, METEOROLÓGICO Y AMBIENTAL NACIONAL","Propios","INGRESOS CORRIENTES","CSF",8280000,0,8280000,5520000,"Cédula de Ciudadanía","1032471045","ORTIZ OLARTE DANYS","Abono en cuenta","Ahorro","99629328471","Activa","890903938","BANCOLOMBIA S.A.","33120","31620","57420","97820","106220","49001120",null,"2020-01-31 00:00:00","CONTRATO DE PRESTACION DE SERVICIOS - PROFESIONALES","0972020","RENGLON 040, ACT PAA OSPA03, PRESTAR LOS SERVICIOS PROFESIONALES EN LA ELABORACIÓN DE PRONÓSTICOS DEL ESTADO DEL TIEMPO, PRONÓSTICOS ESPECIALES DE VARIABILIDAD CLIMÁTICA Y OTROS PROCESOS METEOROLÓGICOS Y CLIMÁTICOS PARA LA CIUDA"]
[52737460,0,0,962020,962020,57520,"2020-01-31 00:00:00","2020-01-31 17:37:52","Con Obligacion","04","IDEAM-GG-DG.OFICINA DEL SERVICIO DE PRONOSTICOS Y ALERTAS","C-3204-0900-3-0-3204043-02","ADQUISICIÓN DE BIENES Y SERVICIOS - SERVICIO DE INFORMACIÓN DE DATOS CLIMÁTICOS Y MONITOREO - FORTALECIMIENTO DE LA GESTIÓN DEL CONOCIMIENTO HIDROLÓGICO, METEOROLÓGICO Y AMBIENTAL NACIONAL","Propios","INGRESOS CORRIENTES","CSF",16650000,0,16650000,11100000,"Cédula de Ciudadanía","52737460","PEÑA BELTRAN ZAIDA YAMILE","Abono en cuenta","Ahorro","450200057146","Activa","860034313","BANCO DAVIVIENDA S.A.","33020","31520","57520","97720","106120","49000820",null,"2020-01-31 00:00:00","CONTRATO DE PRESTACION DE SERVICIOS - PROFESIONALES","0962020","RENGLON 039, ACT PAA OSPA03, PRESTAR LOS SERVICIOS PROFESIONALES EN LA ELABORACIÓN DE PRONÓSTICOS DEL ESTADO DEL TIEMPO, PRONÓSTICOS ESPECIALES DE VARIABILIDAD CLIMÁTICA Y OTROS PROCESOS METEOROLÓGICOS Y CLIMÁTICOS PARA LA CIUDAD DE BOGOTÁ, EN EL MAR"]
[63502730,0,0,982020,982020,57620,"2020-02-03 00:00:00","2020-02-03 11:09:52","Con Obligacion","08","IDEAM-GG-SUBDIRECCION ESTUDIOS AMBIENTALES","C-3204-0900-3-0-3204007-02","ADQUISICIÓN DE BIENES Y SERVICIOS - SERVICIO DE ACREDITACIÓN DE LABORATORIOS Y ORGANIZACIONES - FORTALECIMIENTO DE LA GESTIÓN DEL CONOCIMIENTO HIDROLÓGICO, METEOROLÓGICO Y AMBIENTAL NACIONAL","Propios","INGRESOS CORRIENTES","CSF",73575000,0,73575000,67500000,"Cédula de Ciudadanía","63502730","CARPIO GALVAN TANIA MILENA","Abono en cuenta","Ahorro","004500121530","Activa","860034313","BANCO DAVIVIENDA S.A.","33620","32120","57620","92320","101920","47634120",null,"2020-02-03 00:00:00","CONTRATO DE PRESTACION DE SERVICIOS - PROFESIONALES","0982020","RENGLON 031, ACT PAA ESTUDI06, PRESTAR LOS SERVICIOS PROFESIONALES COMO EVALUADOR LÍDER, DE ACUERDO CON EL PERFIL DEFINIDO EN LA RESOLUCIÓN 2765 DE 2015, PARA LA PLANEACIÓN, EJECUCIÓN, SEGUIMIENTO Y MEJORA DEL SERVICIO DE ACREDITACIÓN DE LABORATORIOS"]
[34329723,0,0,992020,992020,57720,"2020-02-03 00:00:00","2020-02-03 11:17:24","Con Obligacion","08","IDEAM-GG-SUBDIRECCION ESTUDIOS AMBIENTALES","C-3204-0900-3-0-3204007-02","ADQUISICIÓN DE BIENES Y SERVICIOS - SERVICIO DE ACREDITACIÓN DE LABORATORIOS Y ORGANIZACIONES - FORTALECIMIENTO DE LA GESTIÓN DEL CONOCIMIENTO HIDROLÓGICO, METEOROLÓGICO Y AMBIENTAL NACIONAL","Propios","INGRESOS CORRIENTES","CSF",73575000,0,73575000,67500000,"Cédula de Ciudadanía","34329723","PERDOMO CALAMBAS ANA MARIA","Abono en cuenta","Ahorro","014295554","Activa","860002964","BANCO DE BOGOTA S. A.","31820","30320","57720","93920","103220","48995420",null,"2020-02-03 00:00:00","CONTRATO DE PRESTACION DE SERVICIOS - PROFESIONALES","0992020","RENGLON 023, ACT PAA ESTUDI06, PRESTAR LOS SERVICIOS PROFESIONALES COMO EVALUADOR LÍDER, DE ACUERDO CON EL PERFIL DEFINIDO EN LA RESOLUCIÓN 2765 DE 2015, PARA LA PLANEACIÓN, EJECUCIÓN, SEGUIMIENTO Y MEJORA DEL SERVICIO DE ACREDITACIÓN DE LABORATORIOS"]
[80421909,0,0,1002020,1002020,57820,"2020-02-03 00:00:00","2020-02-03 11:24:53","Con Obligacion","08","IDEAM-GG-SUBDIRECCION ESTUDIOS AMBIENTALES","C-3204-0900-3-0-3204007-02","ADQUISICIÓN DE BIENES Y SERVICIOS - SERVICIO DE ACREDITACIÓN DE LABORATORIOS Y ORGANIZACIONES - FORTALECIMIENTO DE LA GESTIÓN DEL CONOCIMIENTO HIDROLÓGICO, METEOROLÓGICO Y AMBIENTAL NACIONAL","Propios","INGRESOS CORRIENTES","CSF",73575000,0,73575000,67500000,"Cédula de Ciudadanía","80421909","CADENA OSORIO LUIS ALFONSO","Abono en cuenta","Ahorro","26505657150","Activa","860007335","BCSC S A","31720","30220","57820","91420","100720","47632120",null,"2020-02-03 00:00:00","CONTRATO DE PRESTACION DE SERVICIOS - PROFESIONALES","1002020","RENGLON 022, ACT PAA ESTUDI06, PRESTAR LOS SERVICIOS PROFESIONALES COMO EVALUADOR LÍDER, DE ACUERDO CON EL PERFIL DEFINIDO EN LA RESOLUCIÓN 2765 DE 2015, PARA LA PLANEACIÓN, EJECUCIÓN, SEGUIMIENTO Y MEJORA DE LOS SERVICIOS DE AUTORIZACIÓN DE LA MEDIC"]
[80726164,0,0,1012020,1012020,57920,"2020-02-03 00:00:00","2020-02-03 11:31:49","Con Obligacion","08","IDEAM-GG-SUBDIRECCION ESTUDIOS AMBIENTALES","C-3204-0900-3-0-3204007-02","ADQUISICIÓN DE BIENES Y SERVICIOS - SERVICIO DE ACREDITACIÓN DE LABORATORIOS Y ORGANIZACIONES - FORTALECIMIENTO DE LA GESTIÓN DEL CONOCIMIENTO HIDROLÓGICO, METEOROLÓGICO Y AMBIENTAL NACIONAL","Propios","INGRESOS CORRIENTES","CSF",73575000,0,73575000,67500000,"Cédula de Ciudadanía","80726164","CARDEÑOSA GALINDO JOHN JAIRO","Abono en cuenta","Ahorro","20105737034","Activa","890903938","BANCOLOMBIA S.A.","33420","31920","57920","94920","103820","47634620",null,"2020-02-03 00:00:00","CONTRATO DE PRESTACION DE SERVICIOS - PROFESIONALES","1012020","RENGLON 028, ACT PAA ESTUDI06, PRESTAR LOS SERVICIOS PROFESIONALES COMO EVALUADOR LÍDER, DE ACUERDO CON EL PERFIL DEFINIDO EN LA RESOLUCIÓN 2765 DE 2015, PARA LA PLANEACIÓN, EJECUCIÓN, SEGUIMIENTO Y MEJORA DEL SERVICIO DE ACREDITACIÓN DE LABORATORIOS"]
[52784459,0,0,1022020,1022020,58020,"2020-02-03 00:00:00","2020-02-03 11:38:43","Con Obligacion","05","IDEAM-GG-SUBDIRECCION HIDROLOGIA","C-3204-0900-3-0-3204015-02","ADQUISICIÓN DE BIENES Y SERVICIOS - SERVICIO DE MONITOREO HIDROLÓGICO - FORTALECIMIENTO DE LA GESTIÓN DEL CONOCIMIENTO HIDROLÓGICO, METEOROLÓGICO Y AMBIENTAL NACIONAL","Nación","OTROS RECURSOS DEL TESORO","CSF",74880000,0,74880000,68400000,"Cédula de Ciudadanía","52784459","TETAY BOTIA CLAUDIA NICOL","Abono en cuenta","Ahorro","65217461302","Activa","890903938","BANCOLOMBIA S.A.","34520","33020","58020","80220","90320","44481220",null,"2020-02-03 00:00:00","CONTRATO DE PRESTACION DE SERVICIOS - PROFESIONALES","1022020","RENGLON 006, ACT PAA HIDRO03, PRESTAR LOS SERVICIOS PROFESIONALES PARA GENERAR INSUMOS A LAS ACTIVIDADES QUE ADELANTA LA SUBDIRECCIÓN DE HIDROLOGÍA EN LA TEMÁTICA DE CALIDAD DEL AGUA Y EN EL SEGUIMIENTO A LA OPERACIÓN DE LA RED DE REFERENCIA NACIONAL"]
[1012380120,0,0,1032020,1032020,58220,"2020-02-03 00:00:00","2020-02-03 11:51:21","Con Obligacion","02","IDEAM-GG-SECRETARIA GENERAL","A-02-02-02-008-003","OTROS SERVICIOS PROFESIONALES, CIENTÍFICOS Y TÉCNICOS","Propios","OTROS RECURSOS DE TESORERIA","CSF",24776000,0,24776000,22724000,"Cédula de Ciudadanía","1012380120","CANASTERO ORJUELA ERIKA MARCELA","Abono en cuenta","Ahorro","20180117581","Activa","890903938","BANCOLOMBIA S.A.","25820","25120","58220","82420","92820","44726920",null,"2020-02-03 00:00:00","CONTRATO DE PRESTACION DE SERVICIOS","1032020","RENGLON 130, ACT PAA 00, PRESTAR LOS SERVICIOS DE DIGITALIZACIÓN DE TODOS LOS DOCUMENTOS QUE SON RECIBIDOS Y RADICADOS EN LA VENTANILLA ÚNICA DE CORRESPONDENCIA, ASÍ COMO TODOS SUS ANEXOS A TRAVÉS DE LA HERRAMIENTA ORFEO SCAN, PARA SER TRAMITADOS DE"]
[{"$f":"+V164+0","v":52035482},0,0,1042020,1042020,58320,"2020-02-03 00:00:00","2020-02-03 12:05:50","Con Obligacion","02","IDEAM-GG-SECRETARIA GENERAL","A-02-02-02-008-003","OTROS SERVICIOS PROFESIONALES, CIENTÍFICOS Y TÉCNICOS","Propios","OTROS RECURSOS DE TESORERIA","CSF",24852000,0,24852000,22800000,"Cédula de Ciudadanía","52035482","FAJARDO VIRVIESCAS NEYLA LILIANA","Abono en cuenta","Ahorro","24128674337","Activa","890903938","BANCOLOMBIA S.A.","25620","24820","58320","81620","93720","44483920",null,"2020-02-03 00:00:00","CONTRATO DE PRESTACION DE SERVICIOS - PROFESIONALES","1042020","RENGLON 126, ACT PAA 00, REALIZAR ACTIVIDADES DE ORGANIZACIÓN FÍSICA DE LOS DOCUMENTOS OFICIALES DEL AÑO 2020, QUE LLEGAN AL INSTITUTO A TRAVÉS DE CORRESPONDENCIA Y LOS GENERADOS POR LAS DEPENDENCIAS DEL IDEAM APLICANDO LAS NORMAS DE ARCHIVO Y PROCED"]
[5819732,0,0,1062020,1062020,58420,"2020-02-03 00:00:00","2020-02-03 12:33:56","Con Obligacion","02","IDEAM-GG-SECRETARIA GENERAL","A-02-02-02-008-003","OTROS SERVICIOS PROFESIONALES, CIENTÍFICOS Y TÉCNICOS","Nación","RECURSOS CORRIENTES","CSF",31392000,0,31392000,28800000,"Cédula de Ciudadanía","5819732","BARRETO RUIZ MIGUEL ALEJANDRO","Abono en cuenta","Ahorro","0357530831","Activa","860003020","BANCO BILBAO VIZCAYA ARGENTARIA COLOMBIA S.A. BBVA","8920","8920","58420","76120","90220","44481120",null,"2020-02-03 00:00:00","CONTRATO DE PRESTACION DE SERVICIOS","1062020","RENGLON 079, ACT PAA 00, PRESTAR LOS SERVICIOS DE APOYO A LA GESTIÓN EN EL MANEJO DE INVENTARIOS Y ALMACÉN, DEL GRUPO MANEJO Y CONTROL DE ALMACÉN E INVENTARIOS"]
[11344671,0,0,1052020,1052020,58520,"2020-02-03 00:00:00","2020-02-03 15:47:35","Con Obligacion","05","IDEAM-GG-SUBDIRECCION HIDROLOGIA","C-3204-0900-3-0-3204052-02","ADQUISICIÓN DE BIENES Y SERVICIOS - LABORATORIO DE CALIDAD AMBIENTAL ACREDITADO - FORTALECIMIENTO DE LA GESTIÓN DEL CONOCIMIENTO HIDROLÓGICO, METEOROLÓGICO Y AMBIENTAL NACIONAL","Nación","OTROS RECURSOS DEL TESORO","CSF",78480000,0,78480000,72000000,"Cédula de Ciudadanía","11344671","VELASQUEZ RAMIREZ CARLOS MARTIN","Abono en cuenta","Ahorro","0356000200005876","Activa","860003020","BANCO BILBAO VIZCAYA ARGENTARIA COLOMBIA S.A. BBVA","38220","36720","58520","75220","90020","44480920",null,"2020-02-03 00:00:00","CONTRATO DE PRESTACION DE SERVICIOS - PROFESIONALES","1052020","RENGLON 067, ACT PAA HIDRO18, PRESTAR LOS SERVICIOS COMO PROFESIONAL EN QUÍMICA PARA APOYAR LA REVISIÓN, APROBACIÓN Y SUPERVISIÓN DE LAS ACTIVIDADES TÉCNICAS DEL LABORATORIO ASEGURANDO LA CALIDAD REQUERIDA, EL CUMPLIMIENTO DE LAS BUENAS PRACTICAS DE"]
[1030527161,0,0,1072020,1072020,59020,"2020-02-03 00:00:00","2020-02-03 17:08:36","Con Obligacion","08","IDEAM-GG-SUBDIRECCION ESTUDIOS AMBIENTALES","C-3204-0900-3-0-3204007-02","ADQUISICIÓN DE BIENES Y SERVICIOS - SERVICIO DE ACREDITACIÓN DE LABORATORIOS Y ORGANIZACIONES - FORTALECIMIENTO DE LA GESTIÓN DEL CONOCIMIENTO HIDROLÓGICO, METEOROLÓGICO Y AMBIENTAL NACIONAL","Propios","INGRESOS CORRIENTES","CSF",73575000,0,73575000,67500000,"Cédula de Ciudadanía","1030527161","ALTAMAR PEREZ ANDRES ALBERTO","Abono en cuenta","Ahorro","007500781138","Activa","860034313","BANCO DAVIVIENDA S.A.","31920","30420","59020","90620","100220","47631520",null,"2020-02-03 00:00:00","CONTRATO DE PRESTACION DE SERVICIOS - PROFESIONALES","1072020","RENGLON 024, ACT PAA ESTUDI06, PRESTAR LOS SERVICIOS PROFESIONALES COMO EVALUADOR LÍDER, DE ACUERDO CON EL PERFIL DEFINIDO EN LA RESOLUCIÓN 2765 DE 2015, PARA LA PLANEACIÓN, EJECUCIÓN, SEGUIMIENTO Y MEJORA DE LOS SERVICIOS DE AUTORIZACIÓN DE LA MEDIC"]
[79881484,0,0,1082020,1082020,59120,"2020-02-03 00:00:00","2020-02-03 17:18:33","Con Obligacion","07","IDEAM-GG-SUBDIRECCION ECOSISTEMAS E INFORMACION AMBIENTAL","C-3204-0900-3-0-3204053-02","ADQUISICIÓN DE BIENES Y SERVICIOS - SERVICIO DE MONITOREO Y SEGUIMIENTO DE LA BIODIVERSIDAD Y LOS SERVICIOS ECOSISTÉMICOS - FORTALECIMIENTO DE LA GESTIÓN DEL CONOCIMIENTO HIDROLÓGICO, METEOROLÓGICO Y AMBIENTAL NACIONAL","Nación","OTROS RECURSOS DEL TESORO","CSF",40764000,0,40764000,36120000,"Cédula de Ciudadanía","79881484","POSADA CESPEDES IVAN ANDRES","Abono en cuenta","Ahorro","20362614041","Activa","890903938","BANCOLOMBIA S.A.","35720","34220","59120","103820","112220","50122820",null,"2020-02-03 00:00:00","CONTRATO DE PRESTACION DE SERVICIOS - PROFESIONALES","1082020","RENGLON 019, ACT PAA ecosis08, PRESTAR LOS SERVICIOS PROFESIONALES PARA LA INTERPRETACIÓN DE COBERTURAS DE LA TIERRA BAJO LA METODOLOGÍA CORINE LAND COVER, A ESCALA 1:100.000, A PARTIR DE IMÁGENES DE SENSORES REMOTOS, EN ÁREAS SELECCIONADAS Y APOYAR"]
[11202166,0,0,1092020,1092020,59220,"2020-02-03 00:00:00","2020-02-03 17:32:58","Con Obligacion","07","IDEAM-GG-SUBDIRECCION ECOSISTEMAS E INFORMACION AMBIENTAL","C-3204-0900-3-0-3204053-02","ADQUISICIÓN DE BIENES Y SERVICIOS - SERVICIO DE MONITOREO Y SEGUIMIENTO DE LA BIODIVERSIDAD Y LOS SERVICIOS ECOSISTÉMICOS - FORTALECIMIENTO DE LA GESTIÓN DEL CONOCIMIENTO HIDROLÓGICO, METEOROLÓGICO Y AMBIENTAL NACIONAL","Nación","OTROS RECURSOS DEL TESORO","CSF",40764000,0,40764000,36120000,"Cédula de Ciudadanía","11202166","FANDIÑO MALAVER YESID EDUARDO","Abono en cuenta","Ahorro","24516943778","Activa","860007335","BCSC S A","35620","34120","59220","103720","112120","50122720",null,"2020-02-03 00:00:00","CONTRATO DE PRESTACION DE SERVICIOS - PROFESIONALES","1092020","RENGLON 018, ACT PAA ecosis08, PRESTAR LOS SERVICIOS PROFESIONALES PARA LA INTERPRETACIÓN DE COBERTURAS DE LA TIERRA BAJO LA METODOLOGÍA CORINE LAND COVER, A ESCALA 1:100.000, A PARTIR DE IMÁGENES DE SENSORES REMOTOS, EN ÁREAS SELECCIONADAS Y APOYAR"]
[14296039,0,0,1102020,1102020,59920,"2020-02-04 00:00:00","2020-02-04 12:18:52","Con Obligacion","08","IDEAM-GG-SUBDIRECCION ESTUDIOS AMBIENTALES","C-3204-0900-3-0-3204007-02","ADQUISICIÓN DE BIENES Y SERVICIOS - SERVICIO DE ACREDITACIÓN DE LABORATORIOS Y ORGANIZACIONES - FORTALECIMIENTO DE LA GESTIÓN DEL CONOCIMIENTO HIDROLÓGICO, METEOROLÓGICO Y AMBIENTAL NACIONAL","Propios","INGRESOS CORRIENTES","CSF",73350000,0,73350000,67500000,"Cédula de Ciudadanía","14296039","ARCINIEGAS CHAVEZ GERMAN EDUARDO","Abono en cuenta","Ahorro","15323744511","Activa","890903938","BANCOLOMBIA S.A.","32120","30620","59920","92220","101820","47634020",null,"2020-02-04 00:00:00","CONTRATO DE PRESTACION DE SERVICIOS - PROFESIONALES","1102020","RENGLON 026, ACT PAA ESTUDI06, PRESTAR LOS SERVICIOS PROFESIONALES COMO EVALUADOR LÍDER, DE ACUERDO CON EL PERFIL DEFINIDO EN LA RESOLUCIÓN 2765 DE 2015, PARA LA PLANEACIÓN, EJECUCIÓN, SEGUIMIENTO Y MEJORA DE LOS SERVICIOS DE AUTORIZACIÓN DE LA MEDI"]
[79723819,0,0,1112020,1112020,60020,"2020-02-04 00:00:00","2020-02-04 12:33:28","Con Obligacion","08","IDEAM-GG-SUBDIRECCION ESTUDIOS AMBIENTALES","C-3204-0900-3-0-3204007-02","ADQUISICIÓN DE BIENES Y SERVICIOS - SERVICIO DE ACREDITACIÓN DE LABORATORIOS Y ORGANIZACIONES - FORTALECIMIENTO DE LA GESTIÓN DEL CONOCIMIENTO HIDROLÓGICO, METEOROLÓGICO Y AMBIENTAL NACIONAL","Propios","INGRESOS CORRIENTES","CSF",73350000,0,73350000,67500000,"Cédula de Ciudadanía","79723819","GUERRERO OTERO JULIAN DARIO","Abono en cuenta","Ahorro","20485822808","Activa","890903938","BANCOLOMBIA S.A.","33520","32020","60020","92420","102020","47634220",null,"2020-02-04 00:00:00","CONTRATO DE PRESTACION DE SERVICIOS - PROFESIONALES","1112020","RENGLON 029, ACT PAA ESTUDI06, PRESTAR LOS SERVICIOS PROFESIONALES COMO EVALUADOR LÍDER, DE ACUERDO CON EL PERFIL DEFINIDO EN LA RESOLUCIÓN 2765 DE 2015, PARA LA PLANEACIÓN, EJECUCIÓN, SEGUIMIENTO Y MEJORA DEL SERVICIO DE ACREDITACIÓN DE LABORATORIOS"]
[80852239,0,0,1122020,1122020,60120,"2020-02-04 00:00:00","2020-02-04 13:04:48","Con Obligacion","08","IDEAM-GG-SUBDIRECCION ESTUDIOS AMBIENTALES","C-3204-0900-3-0-3204007-02","ADQUISICIÓN DE BIENES Y SERVICIOS - SERVICIO DE ACREDITACIÓN DE LABORATORIOS Y ORGANIZACIONES - FORTALECIMIENTO DE LA GESTIÓN DEL CONOCIMIENTO HIDROLÓGICO, METEOROLÓGICO Y AMBIENTAL NACIONAL","Propios","INGRESOS CORRIENTES","CSF",73350000,0,73350000,67500000,"Cédula de Ciudadanía","80852239","PEÑALOZA BEJARANO JEISON DUVAN","Abono en cuenta","Ahorro","20375801903","Activa","890903938","BANCOLOMBIA S.A.","32220","30720","60120","91720","101220","47632620",null,"2020-02-04 00:00:00","CONTRATO DE PRESTACION DE SERVICIOS - PROFESIONALES","1122020","RENGLON 027, ACT PAA ESTUDI06, PRESTAR LOS SERVICIOS PROFESIONALES COMO EVALUADOR LÍDER, DE ACUERDO CON EL PERFIL DEFINIDO EN LA RESOLUCIÓN 2765 DE 2015, PARA LA PLANEACIÓN, EJECUCIÓN, SEGUIMIENTO Y MEJORA DEL SERVICIO DE ACREDITACIÓN DE LABORATORIOS"]
[52320418,0,0,1142020,1142020,60920,"2020-02-05 00:00:00","2020-02-05 15:48:42","Con Obligacion","14","IDEAM-GG-OFICINA ASESORA DE PLANEACION","C-3299-0900-1-0-3299020-02","ADQUISICIÓN DE BIENES Y SERVICIOS - SERVICIO DE GESTIÓN DE CALIDAD - FORTALECIMIENTO DE LA GESTIÓN Y DIRECCIÓN DEL INSTITUTO DE HIDROLOGÍA, METEOROLOGÍA Y ESTUDIOS AMBIENTALES NACIONAL","Nación","OTROS RECURSOS DEL TESORO","CSF",69915000,0,69915000,64227000,"Cédula de Ciudadanía","52320418","RODRIGUEZ VARGAS OLGA VIVIANA","Abono en cuenta","Ahorro","24500021572","Activa","860007335","BCSC S A","31220","29720","60920","101220","119720","54966920",null,"2020-02-05 00:00:00","CONTRATO DE PRESTACION DE SERVICIOS - PROFESIONALES","1142020","RENGLON 01, ACT PAA 0AP01, PRESTAR LOS SERVICIOS PROFESIONALES PARA APOYAR A LA OFICINA ASESORA DE PLANEACIÓN EN EL PROCESO DE FORMULACIÓN, SEGUIMIENTO Y EVALUACIÓN DE LOS DIFERENTES PLANES ESTRATÉGICOS, DE GESTIÓN PRESUPUESTAL Y RECURSOS DEL MODELO"]
[52388000,{"$f":"IFERROR(MID(AM174,SEARCH(\"CTO.\",AM174)+5,7),0)","v":0},{"$f":"IFERROR(MID(AM174,SEARCH(\"CTO \",AM174)+4,7),0)","v":0},{"$f":"IFERROR(AM174+0,0)","v":1152020},{"$f":"B174+C174+D174","v":1152020},61020,"2020-02-05 00:00:00","2020-02-05 15:57:21","Con Obligacion","14","IDEAM-GG-OFICINA ASESORA DE PLANEACION","C-3299-0900-1-0-3299020-02","ADQUISICIÓN DE BIENES Y SERVICIOS - SERVICIO DE GESTIÓN DE CALIDAD - FORTALECIMIENTO DE LA GESTIÓN Y DIRECCIÓN DEL INSTITUTO DE HIDROLOGÍA, METEOROLOGÍA Y ESTUDIOS AMBIENTALES NACIONAL","Nación","OTROS RECURSOS DEL TESORO","CSF",69915000,0,69915000,63990000,"Cédula de Ciudadanía","52388000","BERMUDEZ CORTES PAOLA ANDREA","Abono en cuenta","Ahorro","0550488413545275","Activa","860034313","BANCO DAVIVIENDA S.A.","31120","29620","61020","101120","122520","55190220",null,"2020-02-05 00:00:00","CONTRATO DE PRESTACION DE SERVICIOS - PROFESIONALES","1152020","RENGLON 02, ACT PAA 0AP02, PRESTAR LOS SERVICIOS PROFESIONALES A LA OFICINA ASESORA DE PLANEACIÓN EN EL PROCESO DE SEGUIMIENTO Y SOPORTE PARA EL REPORTE DE LA INFORMACIÓN REQUERIDA EN LOS APLICATIVOS SPI, SUIFP, SICONPES Y SER EL ENLACE PARA EL RELAC"]
[80145103,0,0,1162020,1162020,61220,"2020-02-05 00:00:00","2020-02-05 16:28:50","Con Obligacion","03","IDEAM-GG-DG.OFICINA INFORMATICA","C-3299-0900-1-0-3299001-02","ADQUISICIÓN DE BIENES Y SERVICIOS - SERVICIOS DE INFORMACIÓN PARA LA GESTIÓN ADMINISTRATIVA - FORTALECIMIENTO DE LA GESTIÓN Y DIRECCIÓN DEL INSTITUTO DE HIDROLOGÍA, METEOROLOGÍA Y ESTUDIOS AMBIENTALES NACIONAL","Nación","OTROS RECURSOS DEL TESORO","CSF",57970000,0,57970000,53295000,"Cédula de Ciudadanía","80145103","GOMEZ JOYA WILMAR","Abono en cuenta","Ahorro","143058618","Activa","860002964","BANCO DE BOGOTA S. A.","26420","25620","61220","101420","119920","54967120",null,"2020-02-05 00:00:00","CONTRATO DE PRESTACION DE SERVICIOS - PROFESIONALES","1162020","RENGLON 029, ACT PAA INFO04, PRESTAR LOS SERVICIOS DE DESARROLLO TEMPORAL DE SOFTWARE DE TECNOLOGÍAS DE LA INFORMACIÓN - SOPORTE Y MIGRACIÓN APLICATIVO DHIME"]
[1116440460,0,0,1172020,1172020,61420,"2020-02-05 00:00:00","2020-02-05 16:43:09","Con Obligacion","08","IDEAM-GG-SUBDIRECCION ESTUDIOS AMBIENTALES","C-3204-0900-3-0-3204007-02","ADQUISICIÓN DE BIENES Y SERVICIOS - SERVICIO DE ACREDITACIÓN DE LABORATORIOS Y ORGANIZACIONES - FORTALECIMIENTO DE LA GESTIÓN DEL CONOCIMIENTO HIDROLÓGICO, METEOROLÓGICO Y AMBIENTAL NACIONAL","Propios","INGRESOS CORRIENTES","CSF",47450000,0,47450000,43800000,"Cédula de Ciudadanía","1116440460","GUZMAN VALENCIA MAYKH DONOBAN","Abono en cuenta","Ahorro","73360771846","Activa","890903938","BANCOLOMBIA S.A.","29220","27920","61420","95620","104120","48996320",null,"2020-02-05 00:00:00","CONTRATO DE PRESTACION DE SERVICIOS - PROFESIONALES","1172020","RENGLON 008, ACT PAA ESTUDI06, PRESTAR LOS SERVICIOS PROFESIONALES COMO EVALUADOR ASISTENTE, DE ACUERDO CON EL PERFIL DEFINIDO EN LA RESOLUCIÓN 2765 DE 2015, PARA LA EJECUCIÓN, SEGUIMIENTO, APOYO Y MEJORA DEL SERVICIO DE ACREDITACIÓN DE LABORATORIOS"]
[91539366,0,0,1182020,1182020,61820,"2020-02-05 00:00:00","2020-02-05 16:57:39","Con Obligacion","08","IDEAM-GG-SUBDIRECCION ESTUDIOS AMBIENTALES","C-3204-0900-3-0-3204007-02","ADQUISICIÓN DE BIENES Y SERVICIOS - SERVICIO DE ACREDITACIÓN DE LABORATORIOS Y ORGANIZACIONES - FORTALECIMIENTO DE LA GESTIÓN DEL CONOCIMIENTO HIDROLÓGICO, METEOROLÓGICO Y AMBIENTAL NACIONAL","Propios","INGRESOS CORRIENTES","CSF",47450000,0,47450000,43800000,"Cédula de Ciudadanía","91539366","ROA ROMERO SAUL ALBERTO","Abono en cuenta","Ahorro","08948463297","Activa","890903938","BANCOLOMBIA S.A.","29120","27820","61820","92120","101720","47633720",null,"2020-02-05 00:00:00","CONTRATO DE PRESTACION DE SERVICIOS - PROFESIONALES","1182020","RENGLON 007, ACT PAA ESTUDI06, PRESTAR LOS SERVICIOS PROFESIONALES COMO EVALUADOR ASISTENTE, DE ACUERDO CON EL PERFIL DEFINIDO EN LA RESOLUCIÓN 2765 DE 2015, PARA LA EJECUCIÓN, SEGUIMIENTO, APOYO Y MEJORA DEL SERVICIO DE ACREDITACIÓN DE LABORATORIOS"]
[1016046754,0,0,1192020,1192020,61920,"2020-02-05 00:00:00","2020-02-05 17:08:30","Con Obligacion","08","IDEAM-GG-SUBDIRECCION ESTUDIOS AMBIENTALES","C-3204-0900-3-0-3204007-02","ADQUISICIÓN DE BIENES Y SERVICIOS - SERVICIO DE ACREDITACIÓN DE LABORATORIOS Y ORGANIZACIONES - FORTALECIMIENTO DE LA GESTIÓN DEL CONOCIMIENTO HIDROLÓGICO, METEOROLÓGICO Y AMBIENTAL NACIONAL","Propios","INGRESOS CORRIENTES","CSF",47450000,0,47450000,43800000,"Cédula de Ciudadanía","1016046754","CARDENAS AYALA HECTOR OSWALDO","Abono en cuenta","Ahorro","807407014","Activa","890903937","ITAU CORPBANCA COLOMBIA S A","29620","28320","61920","90520","100020","47631320",null,"2020-02-05 00:00:00","CONTRATO DE PRESTACION DE SERVICIOS - PROFESIONALES","1192020","RENGLON 012, ACT PAA ESTUDI06, PRESTAR LOS SERVICIOS PROFESIONALES COMO EVALUADOR ASISTENTE, DE ACUERDO CON EL PERFIL DEFINIDO EN LA RESOLUCIÓN 2765 DE 2015, PARA LA EJECUCIÓN, SEGUIMIENTO, APOYO Y MEJORA DE LOS SERVICIOS DE AUTORIZACIÓN DE LA MEDICI"]
[1013618577,0,0,1202020,1202020,63020,"2020-02-06 00:00:00","2020-02-06 12:26:21","Con Obligacion","04","IDEAM-GG-DG.OFICINA DEL SERVICIO DE PRONOSTICOS Y ALERTAS","C-3204-0900-3-0-3204043-02","ADQUISICIÓN DE BIENES Y SERVICIOS - SERVICIO DE INFORMACIÓN DE DATOS CLIMÁTICOS Y MONITOREO - FORTALECIMIENTO DE LA GESTIÓN DEL CONOCIMIENTO HIDROLÓGICO, METEOROLÓGICO Y AMBIENTAL NACIONAL","Propios","INGRESOS CORRIENTES","CSF",15288000,0,15288000,10920000,"Cédula de Ciudadanía","1013618577","RAMIREZ YARA YESSICA NATALIA","Abono en cuenta","Ahorro","336197173","Activa","860002964","BANCO DE BOGOTA S. A.","33220","31720","63020","98120","106420","49001520",null,"2020-02-06 00:00:00","CONTRATO DE PRESTACION DE SERVICIOS - PROFESIONALES","1202020","RENGLON 041, ACT PAA OSPA03, PRESTAR LOS SERVICIOS PROFESIONALES EN LA OFICINA DEL SERVICIO DE PRONÓSTICOS Y ALERTAS DEL IDEAM, CON EL FIN DE ANÁLIZAR Y ADELANTAR PROCESAMIENTO DE INFORMACIÓN HIDROLOGICA Y/O METEOROLOGICA, ASI COMO EN LA GENERACIÓN"]
[52102982,0,0,1212020,1212020,63820,"2020-02-06 00:00:00","2020-02-06 15:25:37","Con Obligacion","08","IDEAM-GG-SUBDIRECCION ESTUDIOS AMBIENTALES","C-3204-0900-3-0-3204007-02","ADQUISICIÓN DE BIENES Y SERVICIOS - SERVICIO DE ACREDITACIÓN DE LABORATORIOS Y ORGANIZACIONES - FORTALECIMIENTO DE LA GESTIÓN DEL CONOCIMIENTO HIDROLÓGICO, METEOROLÓGICO Y AMBIENTAL NACIONAL","Propios","INGRESOS CORRIENTES","CSF",64800000,0,64800000,60000000,"Cédula de Ciudadanía","52102982","TORRES REYES NYDIA ESPERANZA","Abono en cuenta","Ahorro","0049138654","Activa","860034313","BANCO DAVIVIENDA S.A.","31620","30120","63820","90420, 90920","100320, 119620","54966820",null,"2020-02-06 00:00:00","CONTRATO DE PRESTACION DE SERVICIOS - PROFESIONALES","1212020","RENGLON 021, ACT PAA ESTUDI06, PRESTAR LOS SERVICIOS PROFESIONALES PARA LA IMPLEMENTACIÓN Y SEGUIMIENTO AL SISTEMA DE GESTIÓN CON BASE EN LA NORMA NTC/ISO 17011 \"EVALUACIÓN DE LA CONFORMIDAD, REQUISITOS GENERALES PARA LOS ORGANISMOS DE ACREDITACIÓN"]
[53072111,0,0,1222020,1222020,65820,"2020-02-10 00:00:00","2020-02-10 15:40:13","Con Obligacion","08","IDEAM-GG-SUBDIRECCION ESTUDIOS AMBIENTALES","C-3204-0900-3-0-3204007-02","ADQUISICIÓN DE BIENES Y SERVICIOS - SERVICIO DE ACREDITACIÓN DE LABORATORIOS Y ORGANIZACIONES - FORTALECIMIENTO DE LA GESTIÓN DEL CONOCIMIENTO HIDROLÓGICO, METEOROLÓGICO Y AMBIENTAL NACIONAL","Propios","INGRESOS CORRIENTES","CSF",46720000,0,46720000,43800000,"Cédula de Ciudadanía","53072111","VELANDIA RODRIGUEZ NANCY YOHANA","Abono en cuenta","Ahorro","008290328254","Activa","860034313","BANCO DAVIVIENDA S.A.","30020","28720","65820","96720","105020","48998620",null,"2020-02-10 00:00:00","CONTRATO DE PRESTACION DE SERVICIOS - PROFESIONALES","1222020","RENGLON 016, ACT PAA ESTUDI06, PRESTAR LOS SERVICIOS PROFESIONALES COMO EVALUADOR ASISTENTE, DE ACUERDO CON EL PERFIL DEFINIDO EN LA RESOLUCIÓN 2765 DE 2015, PARA LA EJECUCIÓN, SEGUIMIENTO, APOYO Y MEJORA DEL SERVICIO DE ACREDITACIÓN DE LABORATORIOS"]
[1018411373,0,0,1232020,1232020,65920,"2020-02-10 00:00:00","2020-02-10 15:52:55","Con Obligacion","08","IDEAM-GG-SUBDIRECCION ESTUDIOS AMBIENTALES","C-3204-0900-3-0-3204007-02","ADQUISICIÓN DE BIENES Y SERVICIOS - SERVICIO DE ACREDITACIÓN DE LABORATORIOS Y ORGANIZACIONES - FORTALECIMIENTO DE LA GESTIÓN DEL CONOCIMIENTO HIDROLÓGICO, METEOROLÓGICO Y AMBIENTAL NACIONAL","Propios","INGRESOS CORRIENTES","CSF",46720000,0,46720000,43800000,"Cédula de Ciudadanía","1018411373","CUARAN ANACONA DIANA VANESSA","Abono en cuenta","Ahorro","22195501398","Activa","890903938","BANCOLOMBIA S.A.","29320","28020","65920","92520","102120","47634420",null,"2020-02-10 00:00:00","CONTRATO DE PRESTACION DE SERVICIOS - PROFESIONALES","1232020","RENGLON 009, ACT PAA ESTUDI06, PRESTAR LOS SERVICIOS PROFESIONALES COMO EVALUADOR ASISTENTE, DE ACUERDO CON EL PERFIL DEFINIDO EN LA RESOLUCIÓN 2765 DE 2015, PARA LA EJECUCIÓN, SEGUIMIENTO, APOYO Y MEJORA DEL SERVICIO DE ACREDITACIÓN DE LABORATORIOS"]
[1052392588,0,0,1242020,1242020,66020,"2020-02-10 00:00:00","2020-02-10 15:59:31","Con Obligacion","08","IDEAM-GG-SUBDIRECCION ESTUDIOS AMBIENTALES","C-3204-0900-3-0-3204007-02","ADQUISICIÓN DE BIENES Y SERVICIOS - SERVICIO DE ACREDITACIÓN DE LABORATORIOS Y ORGANIZACIONES - FORTALECIMIENTO DE LA GESTIÓN DEL CONOCIMIENTO HIDROLÓGICO, METEOROLÓGICO Y AMBIENTAL NACIONAL","Propios","INGRESOS CORRIENTES","CSF",46720000,0,46720000,43800000,"Cédula de Ciudadanía","1052392588","MUNEVAR LEON GYNNA DANIELA","Abono en cuenta","Ahorro","26267451221","Activa","890903938","BANCOLOMBIA S.A.","29420","28120","66020","89420","100420","47631620",null,"2020-02-10 00:00:00","CONTRATO DE PRESTACION DE SERVICIOS - PROFESIONALES","1242020","RENGLON 010, ACT PAA ESTUDI06, PRESTAR LOS SERVICIOS PROFESIONALES COMO EVALUADOR ASISTENTE, DE ACUERDO CON EL PERFIL DEFINIDO EN LA RESOLUCIÓN 2765 DE 2015, PARA LA EJECUCIÓN, SEGUIMIENTO, APOYO Y MEJORA DEL SERVICIO DE ACREDIT"]
[52802410,0,0,1252020,1252020,66220,"2020-02-10 00:00:00","2020-02-10 16:10:21","Con Obligacion","02","IDEAM-GG-SECRETARIA GENERAL","A-02-02-02-008-003","OTROS SERVICIOS PROFESIONALES, CIENTÍFICOS Y TÉCNICOS","Propios","OTROS RECURSOS DE TESORERIA","CSF",24320000,0,24320000,22800000,"Cédula de Ciudadanía","52802410","BAYONA PIRAJAN LUZ DARY","Abono en cuenta","Ahorro","23011514951","Activa","860007335","BCSC S A","43520","41520","66220","102720","119320","54966620",null,"2020-02-10 00:00:00","CONTRATO DE PRESTACION DE SERVICIOS","1252020","RENGLON 152, ACT PAA 00, APOYAR AL GRUPO DE GESTIÓN DOCUMENTAL EN LA REALIZACIÓN DE PROCESOS DE CLASIFICACIÓN, ORDENACIÓN, DESCRIPCIÓN Y CONSERVACIÓN DEL ARCHIVO CENTRAL DEL INSTITUTO, DE ACUERDO CON EL SISTEMA DE GESTIÓN DOCUMENTAL"]
[39545167,0,0,1272020,1272020,69720,"2020-02-14 00:00:00","2020-02-14 14:50:13","Con Obligacion","02","IDEAM-GG-SECRETARIA GENERAL","A-02-02-02-008-003","OTROS SERVICIOS PROFESIONALES, CIENTÍFICOS Y TÉCNICOS","Nación","RECURSOS CORRIENTES","CSF",52772000,0,52772000,50100000,"Cédula de Ciudadanía","39545167","BOBADILLA BENAVIDES AMANDA LUCIA","Abono en cuenta","Ahorro","70290733942","Activa","890903938","BANCOLOMBIA S.A.","44020","41820","69720","101320","119820","54967020",null,"2020-02-14 00:00:00","CONTRATO DE PRESTACION DE SERVICIOS - PROFESIONALES","1272020","RENGLON 155, ACT PAA 00, PRESTAR LOS SERVICIOS PROFESIONALES EN EL GRUPO DE ADMINISTRACIÓN Y DESARROLLO DEL TALENTO HUMANO PARA APOYAR EL PROCESO PSICOSOCIAL, CLIMA ORGANIZACIONAL Y EL ACOMPAÑAMIENTO PSICOLÓGICO A LOS FUNCIONARIOS Y CONTRATISTAS EN"]
[1014195597,0,0,1282020,1282020,70620,"2020-02-17 00:00:00","2020-02-17 11:41:08","Con Obligacion","96","IDEAM-GG. CONVENIO 019/2011 CARBONES CERREJON LIMITED-SH. REDES","C-3204-0900-3-0-3204051-02","ADQUISICIÓN DE BIENES Y SERVICIOS - SERVICIO DE MONITOREO Y SEGUIMIENTO HIDROMETEOROLÓGICO - FORTALECIMIENTO DE LA GESTIÓN DEL CONOCIMIENTO HIDROLÓGICO, METEOROLÓGICO Y AMBIENTAL NACIONAL","Propios","INGRESOS CORRIENTES","CSF",32482000,0,32482000,31065000,"Cédula de Ciudadanía","1014195597","HERRERA FAJARDO SEBASTIAN","Abono en cuenta","Ahorro","025142316","Activa","860035827","BANCO COMERCIAL AV VILLAS S.A.","42220","40320","70620","98920","107020","47635120",null,"2020-02-17 00:00:00","CONTRATO DE PRESTACION DE SERVICIOS - PROFESIONALES","1282020","RENGLON 090, ACT PAA HIDRO12, PRESTAR LOS SERVICIOS PROFESIONALES PARA EVALUAR, CAPTURAR , PROCESAR, VERIFICAR Y ANALIZAR LOS DATOS HIDROLOGICOS (NIVELES, CAUDALES Y SEDIMENTOS) DE LA RED ESTACIONES DEL CONVENIO CERREJON EN EL A.O No 05-SANTA MARTA"]
[37442843,0,0,1322020,1322020,71920,"2020-02-19 00:00:00","2020-02-19 11:27:00","Generado","05","IDEAM-GG-SUBDIRECCION HIDROLOGIA","C-3204-0900-3-0-3204052-02","ADQUISICIÓN DE BIENES Y SERVICIOS - LABORATORIO DE CALIDAD AMBIENTAL ACREDITADO - FORTALECIMIENTO DE LA GESTIÓN DEL CONOCIMIENTO HIDROLÓGICO, METEOROLÓGICO Y AMBIENTAL NACIONAL","Nación","OTROS RECURSOS DEL TESORO","CSF",23850000,0,23850000,23850000,"Cédula de Ciudadanía","37442843","CAICEDO GONZALEZ SOR LILIANA","Abono en cuenta","Ahorro","24051776527","Activa","860007335","BCSC S A","34320","32820","71920",null,null,null,null,"2020-02-19 00:00:00","CONTRATO DE PRESTACION DE SERVICIOS - PROFESIONALES","1322020","RENGLON 071, ACT PAA HIDRO18, PRESTAR LOS SERVICIOS PROFESIONALES PARA EL MONTAJE E IMPLEMENTACIÓN DE LAS METODOLOGÍAS ASIGNADAS, ASÍ COMO LA DE ANÁLISIS DE METALES PESADOS EN DIFERENTES MATRICES"]
[1019027947,0,0,1342020,1342020,73620,"2020-02-19 00:00:00","2020-02-19 14:44:29","Con Obligacion","02","IDEAM-GG-SECRETARIA GENERAL","A-02-02-02-008-002","SERVICIOS JURÍDICOS Y CONTABLES","Nación","RECURSOS CORRIENTES","CSF",13380000,0,13380000,10927000,"Cédula de Ciudadanía","1019027947","DIAZ PIMENTEL JULY ALEXANDRA","Abono en cuenta","Ahorro","205119696","Activa","860002964","BANCO DE BOGOTA S. A.","8120","8120","73620","90820","98820","46535520",null,"2020-02-19 00:00:00","CONTRATO DE PRESTACION DE SERVICIOS - PROFESIONALES","1342020","RENGLON 072, ACT PAA 00, PRESTAR LOS SERVICIOS PROFESIONALES EN LA OFICINA ASESORA JURÍDICA DEL INSTITUTO EN ASUNTOS DE CARÁCTER PRECONTRACTUAL, CONTRACTUAL Y POST-CONTRACTUAL QUE SE REQUIERAN."]
[1082992580,0,0,1362020,1362020,76320,"2020-02-21 00:00:00","2020-02-21 15:17:56","Con Obligacion","96","IDEAM-GG. CONVENIO 019/2011 CARBONES CERREJON LIMITED-SH. REDES","C-3204-0900-3-0-3204051-02","ADQUISICIÓN DE BIENES Y SERVICIOS - SERVICIO DE MONITOREO Y SEGUIMIENTO HIDROMETEOROLÓGICO - FORTALECIMIENTO DE LA GESTIÓN DEL CONOCIMIENTO HIDROLÓGICO, METEOROLÓGICO Y AMBIENTAL NACIONAL","Propios","INGRESOS CORRIENTES","CSF",32928000,0,32928000,31920000,"Cédula de Ciudadanía","1082992580","TAMARA NORIEGA XILENA ANDREA","Abono en cuenta","Ahorro","78166235943","Activa","890903938","BANCOLOMBIA S.A.","42420","40520","76320","100920","119420","55200220",null,"2020-02-21 00:00:00","CONTRATO DE PRESTACION DE SERVICIOS - PROFESIONALES","1362020","RENGLON 091, ACT PAA HIDRO12, PRESTAR LOS SERVICIOS PROFESIONALES PARA EVALUAR, CAPTURAR , PROCESAR, VERIFICAR Y ANALIZAR LOS DATOS METEOROLOGICOS (DE LAS VARIABLES TEMPERATURAS: EXTREMAS (MAXIMA Y MINIMA); TERMOMETROS SECOS: TERMOMETROS HUMEDOS"]
[63538297,0,0,1372020,1372020,76420,"2020-02-21 00:00:00","2020-02-21 16:59:42","Con Obligacion","05","IDEAM-GG-SUBDIRECCION HIDROLOGIA","C-3204-0900-3-0-3204051-02","ADQUISICIÓN DE BIENES Y SERVICIOS - SERVICIO DE MONITOREO Y SEGUIMIENTO HIDROMETEOROLÓGICO - FORTALECIMIENTO DE LA GESTIÓN DEL CONOCIMIENTO HIDROLÓGICO, METEOROLÓGICO Y AMBIENTAL NACIONAL","Nación","OTROS RECURSOS DEL TESORO","CSF",10200000,0,10200000,9588000,"Cédula de Ciudadanía","63538297","CADENA PARRA SILVIA JULIANA","Abono en cuenta","Ahorro","32283719412","Activa","890903938","BANCOLOMBIA S.A.","43320","41320","76420","110920","120120","54967320",null,"2020-02-21 00:00:00","CONTRATO DE PRESTACION DE SERVICIOS","1372020","RENGLON 094, ACT PAA HIDRO12, PRESTAR LOS SERVICIOS TÉCNICOS PARA CAPTURAR, PROCESAR, VERIFICAR Y ANALIZAR DATOS HIDROMETEOROLÓGICOS EN EL ÁREA OPERATIVA 08 - BUCARAMANGA"]
[1082803528,0,0,1432020,1432020,82520,"2020-02-26 00:00:00","2020-02-26 17:08:04","Con Obligacion","99","IDEAM GG-COVENIO 025/10 EMGESA-SH. REDES","C-3204-0900-3-0-3204051-02","ADQUISICIÓN DE BIENES Y SERVICIOS - SERVICIO DE MONITOREO Y SEGUIMIENTO HIDROMETEOROLÓGICO - FORTALECIMIENTO DE LA GESTIÓN DEL CONOCIMIENTO HIDROLÓGICO, METEOROLÓGICO Y AMBIENTAL NACIONAL","Propios","INGRESOS CORRIENTES","CSF",26299000,0,26299000,25935000,"Cédula de Ciudadanía","1082803528","SOTO PERDOMO MAYRA ALEXANDRA","Abono en cuenta","Ahorro","45513965536","Activa","890903938","BANCOLOMBIA S.A.","42320","40420","82520","102820","120020","54967220",null,"2020-02-26 00:00:00","CONTRATO DE PRESTACION DE SERVICIOS - PROFESIONALES","1432020","RENGLON 092, ACT PAA HIDRO12, PRESTAR LOS SERVICIOS PROFESIONALES PARA EVALUAR, CAPTURAR, PROCESAR, VERIFICAR Y ANALIZAR DATOS HIDROMETEOROLOGICOS DE LAS ESTACIONES OBJETO DEL CONVENIO IDEAM- EMGESA, ÁREA OPERATIVA 04"]
[93299015,0,0,1422020,1422020,82620,"2020-02-26 00:00:00","2020-02-26 17:11:59","Generado","02","IDEAM-GG-SECRETARIA GENERAL","A-02-02-02-008-003","OTROS SERVICIOS PROFESIONALES, CIENTÍFICOS Y TÉCNICOS","Nación","RECURSOS CORRIENTES","CSF",57800000,0,57800000,57800000,"Cédula de Ciudadanía","93299015","MOJICA PATIÑO RICARDO ANDRES","Abono en cuenta","Ahorro","269036075","Activa","860002964","BANCO DE BOGOTA S. A.","6920","6920","82620",null,null,null,null,"2020-02-26 00:00:00","CONTRATO DE PRESTACION DE SERVICIOS - PROFESIONALES","1422020","RENGLON 068, ACT PAA 00, PRESTAR LOS SERVICIOS PROFESIONALES PARA BRINDAR APOYO JURÍDICO AL GRUPO DE ADMINISTRACIÓN Y DESARROLLO DEL TALENTO HUMANO, EN TEMAS RELACIONADOS CON DERECHO LABORAL ADMINISTRATIVO QUE SEAN COMPETENCIA DE ESE GRUPO"]
[67026391,0,0,1482020,1482020,87520,"2020-03-03 00:00:00","2020-03-03 11:01:36","Generado","05","IDEAM-GG-SUBDIRECCION HIDROLOGIA","C-3204-0900-3-0-3204051-02","ADQUISICIÓN DE BIENES Y SERVICIOS - SERVICIO DE MONITOREO Y SEGUIMIENTO HIDROMETEOROLÓGICO - FORTALECIMIENTO DE LA GESTIÓN DEL CONOCIMIENTO HIDROLÓGICO, METEOROLÓGICO Y AMBIENTAL NACIONAL","Nación","OTROS RECURSOS DEL TESORO","CSF",15450000,0,15450000,15450000,"Cédula de Ciudadanía","67026391","SOLARTE NARVAEZ VICTORIA YORLANY","Abono en cuenta","Ahorro","07744000747","Activa","890903938","BANCOLOMBIA S.A.","44920","42720","87520",null,null,null,null,"2020-03-03 00:00:00","CONTRATO DE PRESTACION DE SERVICIOS - PROFESIONALES","1482020","RENGLON 105, ACT PAA HIDRO12, PRESTAR LOS SERVICIOS PROFESIONALES PARA EVALUAR, CAPTURAR, PROCESAR, VERIFICAR Y ANALIZAR DATOS METEOROLÓGICOS (METEOROS 1, 2, 3 Y 5) EN EL ÁREA OPERATIVA 09 - CALI"]
[1053817225,0,0,1512020,1512020,90720,"2020-03-05 00:00:00","2020-03-05 15:31:25","Generado","05","IDEAM-GG-SUBDIRECCION HIDROLOGIA","C-3204-0900-3-0-3204015-02","ADQUISICIÓN DE BIENES Y SERVICIOS - SERVICIO DE MONITOREO HIDROLÓGICO - FORTALECIMIENTO DE LA GESTIÓN DEL CONOCIMIENTO HIDROLÓGICO, METEOROLÓGICO Y AMBIENTAL NACIONAL","Nación","OTROS RECURSOS DEL TESORO","CSF",59572000,0,59572000,59572000,"Cédula de Ciudadanía","1053817225","MARIN SALAZAR JENNY PAOLA","Abono en cuenta","Ahorro","86085685351","Activa","890903938","BANCOLOMBIA S.A.","37920","36420","90720",null,null,null,null,"2020-03-05 00:00:00","CONTRATO DE PRESTACION DE SERVICIOS - PROFESIONALES","1512020","RENGLON 009, ACT PAA HIDRO04, PRESTAR LOS SERVICIOS PROFESIONALES PARA APOYAR TÉCNICAMENTE LAS ACTIVIDADES PREPARATORIAS A LA CERTIFICACIÓN DE LAS OPERACIONES ESTADÍSTICAS SOBRE OFERTA HÍDRICA Y CALIDAD DEL AGUA , Y GENERAR INSUMOS PARA LA EVALUACIÓN"]
[11348169,0,0,1522020,1522020,91120,"2020-03-05 00:00:00","2020-03-05 15:52:33","Generado","05","IDEAM-GG-SUBDIRECCION HIDROLOGIA","C-3204-0900-3-0-3204015-02","ADQUISICIÓN DE BIENES Y SERVICIOS - SERVICIO DE MONITOREO HIDROLÓGICO - FORTALECIMIENTO DE LA GESTIÓN DEL CONOCIMIENTO HIDROLÓGICO, METEOROLÓGICO Y AMBIENTAL NACIONAL","Nación","OTROS RECURSOS DEL TESORO","CSF",67440000,0,67440000,67440000,"Cédula de Ciudadanía","11348169","CENDALES PRIETO HUGO ARMANDO","Abono en cuenta","Ahorro","000202008462","Activa","860034594","SCOTIABANK COLPATRIA SA","24220","23420","91120",null,null,null,null,"2020-03-05 00:00:00","CONTRATO DE PRESTACION DE SERVICIOS - PROFESIONALES","1522020","RENGLON 010, ACT PAA HIDRO05, PRESTAR LOS SERVICIOS PROFESIONALES PARA DAR SOPORTE AL FUNCIONAMIENTO DE LOS SERVICIOS DEL SIRH Y ATENDER INCIDENCIAS RELACIONADAS CON EL CARGUE Y GENERACIÓN DE REPORTES."]
[31794556,0,0,1532020,1532020,91420,"2020-03-05 00:00:00","2020-03-05 16:14:04","Generado","07","IDEAM-GG-SUBDIRECCION ECOSISTEMAS E INFORMACION AMBIENTAL","C-3204-0900-3-0-3204053-02","ADQUISICIÓN DE BIENES Y SERVICIOS - SERVICIO DE MONITOREO Y SEGUIMIENTO DE LA BIODIVERSIDAD Y LOS SERVICIOS ECOSISTÉMICOS - FORTALECIMIENTO DE LA GESTIÓN DEL CONOCIMIENTO HIDROLÓGICO, METEOROLÓGICO Y AMBIENTAL NACIONAL","Nación","OTROS RECURSOS DEL TESORO","CSF",69407000,0,69407000,69407000,"Cédula de Ciudadanía","31794556","CELIS GIL LILIANA VANESSA","Abono en cuenta","Ahorro","0570007770328263","Activa","860034313","BANCO DAVIVIENDA S.A.","35420","33920","91420",null,null,null,null,"2020-03-05 00:00:00","CONTRATO DE PRESTACION DE SERVICIOS - PROFESIONALES","1532020","RENGLON 006, ACT PAA Ecosis16, PRESTAR LOS SERVICIOS PROFESIONALES PARA APOYAR LA ELABORACIÓN, REVISIÓN Y VALIDACIÓN DE LOS DOCUMENTOS REQUERIDOS PARA LA OFICIALIZACIÓN DE LA INFORMACIÓN GEOGRÁFICA TEMÁTICA GENERADA EN LAS DIFERENTES ÁREAS TÉCNICAS D"]
[79911924,0,0,1542020,1542020,91520,"2020-03-05 00:00:00","2020-03-05 16:30:30","Generado","14","IDEAM-GG-OFICINA ASESORA DE PLANEACION","C-3299-0900-1-0-3299020-02","ADQUISICIÓN DE BIENES Y SERVICIOS - SERVICIO DE GESTIÓN DE CALIDAD - FORTALECIMIENTO DE LA GESTIÓN Y DIRECCIÓN DEL INSTITUTO DE HIDROLOGÍA, METEOROLOGÍA Y ESTUDIOS AMBIENTALES NACIONAL","Nación","OTROS RECURSOS DEL TESORO","CSF",66597000,0,66597000,66597000,"Cédula de Ciudadanía","79911924","DIAZ DIAZ DANIEL","Abono en cuenta","Ahorro","90010871320","Activa","860050750","BANCO GNB SUDAMERIS S A","31020","29520","91520",null,null,null,null,"2020-03-05 00:00:00","CONTRATO DE PRESTACION DE SERVICIOS - PROFESIONALES","1542020","RENGLON 03, ACT PAA OAP01, PRESTAR LOS SERVICIOS PROFESIONALES A LA OFICINA ASESORA DE PLANEACIÓN PARA LA IMPLEMENTACIÓN, SEGUIMIENTO Y EVALUACIÓN DEL SISTEMA INTEGRADO DE GESTIÓN Y EL CUMPLIMIENTO CON LAS HERRAMIENTAS DE SEGUIMIENTO DISEÑADAS POR LO"]
[51922938,0,0,1552020,1552020,91620,"2020-03-05 00:00:00","2020-03-05 16:57:34","Generado","05","IDEAM-GG-SUBDIRECCION HIDROLOGIA","C-3204-0900-3-0-3204052-02","ADQUISICIÓN DE BIENES Y SERVICIOS - LABORATORIO DE CALIDAD AMBIENTAL ACREDITADO - FORTALECIMIENTO DE LA GESTIÓN DEL CONOCIMIENTO HIDROLÓGICO, METEOROLÓGICO Y AMBIENTAL NACIONAL","Nación","OTROS RECURSOS DEL TESORO","CSF",28943000,0,28943000,28943000,"Cédula de Ciudadanía","51922938","DUEÑAS MORENO ADRIANA","Abono en cuenta","Ahorro","5221547006","Activa","890903938","BANCOLOMBIA S.A.","33820","32320","91620",null,null,null,null,"2020-03-05 00:00:00","CONTRATO DE PRESTACION DE SERVICIOS - PROFESIONALES","1552020","RENGLON 066, ACT PAA HIDRO18, PRESTAR LOS SERVICIOS DE APOYO A LA GESTIÓN PARA LA IMPLEMENTACIÓN DE TÉCNICAS GRAVIMETRICAS Y AQUELLAS ASOCIADAS A PARTÍCULAS EN SUSPENSIÓN,DE CONSFORMIDAD CON LOS LINEAMIENTOS DE LA NUEVA VERSIÓN"]
[52862523,0,0,1562020,1562020,91720,"2020-03-05 00:00:00","2020-03-05 17:09:27","Generado","05","IDEAM-GG-SUBDIRECCION HIDROLOGIA","C-3204-0900-3-0-3204052-02","ADQUISICIÓN DE BIENES Y SERVICIOS - LABORATORIO DE CALIDAD AMBIENTAL ACREDITADO - FORTALECIMIENTO DE LA GESTIÓN DEL CONOCIMIENTO HIDROLÓGICO, METEOROLÓGICO Y AMBIENTAL NACIONAL","Nación","OTROS RECURSOS DEL TESORO","CSF",43555000,0,43555000,43555000,"Cédula de Ciudadanía","52862523","RUIZ ARAUJO LUZ ADRIANA","Abono en cuenta","Ahorro","006680312029","Activa","860034313","BANCO DAVIVIENDA S.A.","34420","32920","91720",null,null,null,null,"2020-03-05 00:00:00","CONTRATO DE PRESTACION DE SERVICIOS - PROFESIONALES","1562020","RENGLON 072, ACT PAA HIDRO18, PRESTAR LOS SERVICIOS PROFESIONALES PARA EL DESARROLLO INTEGRAL DE LAS METODOLOGÍAS ASIGANDAS, ASÍ COMO LAS DE IONES EN AGUA Y MERCURIO EN AGUA Y SEDIMENTO"]
[80231444,0,0,1572020,1572020,91820,"2020-03-05 00:00:00","2020-03-05 17:21:55","Generado","05","IDEAM-GG-SUBDIRECCION HIDROLOGIA","C-3204-0900-3-0-3204052-02","ADQUISICIÓN DE BIENES Y SERVICIOS - LABORATORIO DE CALIDAD AMBIENTAL ACREDITADO - FORTALECIMIENTO DE LA GESTIÓN DEL CONOCIMIENTO HIDROLÓGICO, METEOROLÓGICO Y AMBIENTAL NACIONAL","Nación","OTROS RECURSOS DEL TESORO","CSF",43274000,0,43274000,43274000,"Cédula de Ciudadanía","80231444","MENDOZA VELASQUEZ DANIEL IGNACIO","Abono en cuenta","Ahorro","54721496123","Activa","890903938","BANCOLOMBIA S.A.","34120","32620","91820",null,null,null,null,"2020-03-05 00:00:00","CONTRATO DE PRESTACION DE SERVICIOS - PROFESIONALES","1572020","RENGLON 069, ACT PAA HIDRO18, PRESTAR LOS SERVICIOS PROFESIONALES PARA IMPLEMENTAR LAS METODOLOGÍAS DE LABORATORIO ASIGNADAS ASI COMO LAS ASOCIADAS A CONTAMINANTES ORGÁNICOS Y COMPUESTOS NITROGENADOS"]
[46455520,0,0,1582020,1582020,91920,"2020-03-05 00:00:00","2020-03-05 17:44:33","Generado","05","IDEAM-GG-SUBDIRECCION HIDROLOGIA","C-3204-0900-3-0-3204052-02","ADQUISICIÓN DE BIENES Y SERVICIOS - LABORATORIO DE CALIDAD AMBIENTAL ACREDITADO - FORTALECIMIENTO DE LA GESTIÓN DEL CONOCIMIENTO HIDROLÓGICO, METEOROLÓGICO Y AMBIENTAL NACIONAL","Nación","OTROS RECURSOS DEL TESORO","CSF",43555000,0,43555000,43555000,"Cédula de Ciudadanía","46455520","ROSAS WANUMEN DIANA CAROLINA","Abono en cuenta","Ahorro","26232491018","Activa","890903938","BANCOLOMBIA S.A.","34020","32520","91920",null,null,null,null,"2020-03-05 00:00:00","CONTRATO DE PRESTACION DE SERVICIOS - PROFESIONALES","1582020","RENGLON 068, ACT PAA HIDRO18, PRESTAR LOS SERVICIOS PROFESIONALES PARA REALIZAR LABORES DE ANÁLISIS BACTERIOLÓGICO, CONTROL MICROBIOLÓGICO DE AMBIENTES Y ANÁLISIS FISICOQUÍMICOS BÁSICOS COMO DEMANDA BIOLÓGICA DE OXÍGENO, DUREZAS BAJO LOS LINEAMIENTOS"]
[79617890,0,0,1592020,1592020,92020,"2020-03-05 00:00:00","2020-03-05 18:05:03","Generado","07","IDEAM-GG-SUBDIRECCION ECOSISTEMAS E INFORMACION AMBIENTAL","C-3204-0900-3-0-3204053-02","ADQUISICIÓN DE BIENES Y SERVICIOS - SERVICIO DE MONITOREO Y SEGUIMIENTO DE LA BIODIVERSIDAD Y LOS SERVICIOS ECOSISTÉMICOS - FORTALECIMIENTO DE LA GESTIÓN DEL CONOCIMIENTO HIDROLÓGICO, METEOROLÓGICO Y AMBIENTAL NACIONAL","Nación","OTROS RECURSOS DEL TESORO","CSF",62944000,0,62944000,62944000,"Cédula de Ciudadanía","79617890","PALACIO RIVEROS LUIS FERNANDO","Abono en cuenta","Ahorro","20455127535","Activa","890903938","BANCOLOMBIA S.A.","35120","33620","92020",null,null,null,null,"2020-03-05 00:00:00","CONTRATO DE PRESTACION DE SERVICIOS - PROFESIONALES","1592020","RENGLON 003, ACT PAA Ecosis16, PRESTAR LOS SERVICIOS PROFESIONALES PARA APOYAR LA IMPLEMENTACION DE LA ACTUALIZACION DE LOS COMPONENTES DEL SISTEMA DE INFORMACION GEOGRAFICO AMBIENTAL DEL IDEAM, Y GESTIONAR LA VALIDACION DE LA INFORMACIÓN GEOGRAFICA"]
[80803969,0,0,1602020,1602020,92120,"2020-03-05 00:00:00","2020-03-05 18:19:50","Generado","05","IDEAM-GG-SUBDIRECCION HIDROLOGIA","C-3204-0900-3-0-3204050-02","ADQUISICIÓN DE BIENES Y SERVICIOS - SERVICIO DE MODELACIÓN HIDRODINÁMICA - FORTALECIMIENTO DE LA GESTIÓN DEL CONOCIMIENTO HIDROLÓGICO, METEOROLÓGICO Y AMBIENTAL NACIONAL","Nación","OTROS RECURSOS DEL TESORO","CSF",22199000,0,22199000,22199000,"Cédula de Ciudadanía","80803969","PEÑA CASTRO JUAN CAMILO","Abono en cuenta","Ahorro","25039744051","Activa","890903938","BANCOLOMBIA S.A.","23620","22820","92120",null,null,null,null,"2020-03-05 00:00:00","CONTRATO DE PRESTACION DE SERVICIOS - PROFESIONALES","1602020","RENGLON 017, ACT PAA HIDRO07, PRESTACIÓN DE SERVICIOS PROFESIONALES PARA LA APLICACIÓN DE MODELACIÓN HIDROLÓGICA ORIENTADA A PREDICCIÓN HIDROLÓGICA EMPLEANDO LAS METODOLOGÍAS CLASIFICACIÓN JERÁRQUICA SOBRE COMPONENTES PRINCIPALES (CJCP), CLIMATE PRED"]
[91472998,0,0,1622020,1622020,93920,"2020-03-06 00:00:00","2020-03-06 15:02:24","Generado","08","IDEAM-GG-SUBDIRECCION ESTUDIOS AMBIENTALES","C-3204-0900-3-0-3204045-02","ADQUISICIÓN DE BIENES Y SERVICIOS - SERVICIOS DE  ADMINISTRACIÓN DE REGISTRO DE ESTABLECIMIENTOS - FORTALECIMIENTO DE LA GESTIÓN DEL CONOCIMIENTO HIDROLÓGICO, METEOROLÓGICO Y AMBIENTAL NACIONAL","Nación","OTROS RECURSOS DEL TESORO","CSF",52360000,0,52360000,52360000,"Cédula de Ciudadanía","91472998","ARIZA PORRAS JUAN CARLOS","Abono en cuenta","Ahorro","20365619564","Activa","890903938","BANCOLOMBIA S.A.","38920","37420","93920",null,null,null,null,"2020-03-06 00:00:00","CONTRATO DE PRESTACION DE SERVICIOS - PROFESIONALES","1622020","RENGLON 044, ACT PAA ESTUDI05, PRESTAR LOS SERVICIOS PROFESIONALES PARA APOYAR EL MANTENIMIENTO DE LAS OPERACIONES ESTADÍSTICAS RUA MANUFACTURERO, PCB, SISAIRE Y RESPEL CONFORME A LOS LINEAMIENTOS DEL SISTEMA ESTADÍSTICO NACIONAL, ALINEADOS A LOS R"]
[79747764,0,0,1632020,1632020,94220,"2020-03-06 00:00:00","2020-03-06 15:19:14","Generado","08","IDEAM-GG-SUBDIRECCION ESTUDIOS AMBIENTALES","C-3204-0900-3-0-3204046-02","ADQUISICIÓN DE BIENES Y SERVICIOS - DOCUMENTOS DE ESTUDIOS TÉCNICOS PARA LA PLANIFICACIÓN SECTORIAL Y LA GESTIÓN AMBIENTAL - FORTALECIMIENTO DE LA GESTIÓN DEL CONOCIMIENTO HIDROLÓGICO, METEOROLÓGICO Y AMBIENTAL NACIONAL","Nación","OTROS RECURSOS DEL TESORO","CSF",59718000,0,59718000,59718000,"Cédula de Ciudadanía","79747764","PINZON RINCON FABIAN MAURICIO","Abono en cuenta","Ahorro","475300008020","Activa","860034313","BANCO DAVIVIENDA S.A.","40720","38920","94220",null,null,null,null,"2020-03-06 00:00:00","CONTRATO DE PRESTACION DE SERVICIOS - PROFESIONALES","1632020","RENGLON 037, ACT PAA ESTUDI02, PRESTAR LOS SERVICIOS PROFESIONALES PARA LA GESTIÓN DE CONTENIDOS APORTADOS POR EL IDEAM Y LOS INSTITUTOS DE INVESTIGACIÓN DEL SINA, ASÍ MISMO EL PROCESAMIENTO, EL ANÁLISIS Y LA COMPILACIÓN DEL INFORME DEL ESTADO DEL A"]
[80871020,0,0,1642020,1642020,99120,"2020-03-13 00:00:00","2020-03-13 16:41:11","Generado","08","IDEAM-GG-SUBDIRECCION ESTUDIOS AMBIENTALES","C-3204-0900-3-0-3204045-02","ADQUISICIÓN DE BIENES Y SERVICIOS - SERVICIOS DE  ADMINISTRACIÓN DE REGISTRO DE ESTABLECIMIENTOS - FORTALECIMIENTO DE LA GESTIÓN DEL CONOCIMIENTO HIDROLÓGICO, METEOROLÓGICO Y AMBIENTAL NACIONAL","Nación","OTROS RECURSOS DEL TESORO","CSF",39585000,0,39585000,39585000,"Cédula de Ciudadanía","80871020","RAMIREZ HENRIQUEZ JAIME EDUARDO","Abono en cuenta","Ahorro","397050550","Activa","860002964","BANCO DE BOGOTA S. A.","37720","36220","99120",null,null,null,null,"2020-03-13 00:00:00","CONTRATO DE PRESTACION DE SERVICIOS - PROFESIONALES","1642020","RENGLON 043, ACT PAA ESTUDI04, PRESTAR SERVICIOS PROFESIONALES PARA BRINDAR SOPORTE TEMÁTICO Y FUNCIONAL A LA IMPLEMENTACIÓN DEL RUA UNIFICADO Y EL RETC, ASÍ COMO APOYAR LAS PRUEBAS PILOTO QUE SE REALIZARÁN Y ELABORAR LA DOCUMENTACIÓN QUE SE REQUIERA"]
[1130600688,0,0,1652020,1652020,99220,"2020-03-13 00:00:00","2020-03-13 17:14:41","Generado","08","IDEAM-GG-SUBDIRECCION ESTUDIOS AMBIENTALES","C-3204-0900-3-0-3204046-02","ADQUISICIÓN DE BIENES Y SERVICIOS - DOCUMENTOS DE ESTUDIOS TÉCNICOS PARA LA PLANIFICACIÓN SECTORIAL Y LA GESTIÓN AMBIENTAL - FORTALECIMIENTO DE LA GESTIÓN DEL CONOCIMIENTO HIDROLÓGICO, METEOROLÓGICO Y AMBIENTAL NACIONAL","Nación","OTROS RECURSOS DEL TESORO","CSF",62790000,0,62790000,62790000,"Cédula de Ciudadanía","1130600688","JIMENEZ RESTREPO NEFTALI","Abono en cuenta","Ahorro","016889693","Activa","890300279","BANCO DE OCCIDENTE","41620","39720","99220",null,null,null,null,"2020-03-13 00:00:00","CONTRATO DE PRESTACION DE SERVICIOS - PROFESIONALES","1652020","RENGLON 039, ACT PAA ESTUDI02, PRESTAR LOS SERVICIOS PROFESIONALES A LA SUBDIRECCIÓN DE ESTUDIOS AMBIENTALES PARA APOYAR LA ELABORACIÓN DEL INFORME DEL ESTADO DE LA CALIDAD DEL AIRE, ASÍ COMO LOS COMPROMISOS DEL IDEAM RELACIONADOS CON EL CONPES 3943"]
[1010216414,0,0,1672020,1672020,101120,"2020-03-17 00:00:00","2020-03-17 17:13:38","Generado","06","IDEAM-GG-SUBDIRECCION METEOROLOGIA","C-3204-0900-3-0-3204043-02","ADQUISICIÓN DE BIENES Y SERVICIOS - SERVICIO DE INFORMACIÓN DE DATOS CLIMÁTICOS Y MONITOREO - FORTALECIMIENTO DE LA GESTIÓN DEL CONOCIMIENTO HIDROLÓGICO, METEOROLÓGICO Y AMBIENTAL NACIONAL","Nación","OTROS RECURSOS DEL TESORO","CSF",29590000,0,29590000,29590000,"Cédula de Ciudadanía","1010216414","MUNAR MARTINEZ WILLIAM MATEO","Abono en cuenta","Ahorro","0570457070118072","Activa","860034313","BANCO DAVIVIENDA S.A.","20920","20220","101120",null,null,null,null,"2020-03-17 00:00:00","CONTRATO DE PRESTACION DE SERVICIOS - PROFESIONALES","1672020","RENGLON 010, ACT PAA METEO02, PRESTAR LOS SERVICIOS PROFESIONALES PARA ELABORAR, DESARROLLAR Y SUMINISTRAR LOS CÓDIGOS FUENTES (SCRIPTS) PARA AUTOMATIZAR EL PROCESO DE CONTROL DE CALIDAD, COMPLEMENTACIÓN Y HOMOGENIZACIÓN DE LAS VARIABLES METEOROLOGI"]
[79385404,0,0,1662020,1662020,101320,"2020-03-17 00:00:00","2020-03-17 17:27:08","Generado","07","IDEAM-GG-SUBDIRECCION ECOSISTEMAS E INFORMACION AMBIENTAL","C-3204-0900-3-0-3204053-02","ADQUISICIÓN DE BIENES Y SERVICIOS - SERVICIO DE MONITOREO Y SEGUIMIENTO DE LA BIODIVERSIDAD Y LOS SERVICIOS ECOSISTÉMICOS - FORTALECIMIENTO DE LA GESTIÓN DEL CONOCIMIENTO HIDROLÓGICO, METEOROLÓGICO Y AMBIENTAL NACIONAL","Nación","OTROS RECURSOS DEL TESORO","CSF",78570000,0,78570000,78570000,"Cédula de Ciudadanía","79385404","OTERO GARCIA JAVIER","Abono en cuenta","Ahorro","008970235142","Activa","860034313","BANCO DAVIVIENDA S.A.","45720","43520","101320",null,null,null,null,"2020-03-17 00:00:00","CONTRATO DE PRESTACION DE SERVICIOS - PROFESIONALES","1662020","RENGLON 024, ACT PAA ecosis09, PRESTAR LOS SERVICIOS PROFESIONALES PARA PREPARAR LOS INSUMOS TÉCNICOS (ZONIFICACIÓN DE SUSCEPTIBILIDAD DE LOS SUELOS A LA DEGRADACIÓN POR DESERTIFICACIÓN) PARA EL ESTABLECIMIENTO DE LA LÍNEA BASE DE DEGRADACIÓN DE SUE"]
[1070014232,0,0,1692020,1692020,102220,"2020-03-19 00:00:00","2020-03-19 12:48:22","Generado","05","IDEAM-GG-SUBDIRECCION HIDROLOGIA","C-3204-0900-3-0-3204051-02","ADQUISICIÓN DE BIENES Y SERVICIOS - SERVICIO DE MONITOREO Y SEGUIMIENTO HIDROMETEOROLÓGICO - FORTALECIMIENTO DE LA GESTIÓN DEL CONOCIMIENTO HIDROLÓGICO, METEOROLÓGICO Y AMBIENTAL NACIONAL","Nación","OTROS RECURSOS DEL TESORO","CSF",20025000,0,20025000,20025000,"Cédula de Ciudadanía","1070014232","RINCON CHACON DAVID MANUEL","Abono en cuenta","Ahorro","004372011811","Registrada","860034594","SCOTIABANK COLPATRIA SA","39620","38120","102220",null,null,null,null,"2020-03-19 00:00:00","CONTRATO DE PRESTACION DE SERVICIOS","1692020","RENGLON 062, ACT PAA HIDRO12, PRESTAR LOS SERVICIOS TÉCNICOS PARA REALIZAR LA OPERACIÓN DE LAS ESTACIONES CONVENCIONALES Y AUTOMÁTICAS DE LA RED NACIONAL Y APOYAR EL PROCESO DE INFORMACIÓN HIDROLOGICA Y METEOROLÓGICA EN EL ÁREA OPERATIVA 11-BOGOTÁ"]
[0,0,0,0,0]
[0,0,0,0,0]
[0,0,0,0,0]
[0,0,0,0,0]
[0,0,0,0,0]
[0,0,0,0,0]
[0,0,0,0,0]
[0,0,0,0,0]
[0,0,0,0,0]
[0,0,0,0,0]
[0,0,0,0,0]
[{"$f":"+V222+0","v":0},0,0,0,0]
[0,0,0,0,0]
[0,0,0,0,0]
[0,0,0,0,0]
[0,0,0,0,0]
[{"$f":"+V227+0","v":0},0,0,0,0]
[0,0,0,0,0]
[0,0,0,0,0]
[0,0,0,0,0]
[0,0,0,0,0]
[0,0,0,0,0]
[0,0,0,0,0]
[0,0,0,0,0]
[0,0,0,0,0]
[0,0,0,0,0]
[0,{"$f":"IFERROR(MID(AM237,SEARCH(\"CTO.\",AM237)+5,7),0)","v":0},{"$f":"IFERROR(MID(AM237,SEARCH(\"CTO \",AM237)+4,7),0)","v":0},{"$f":"IFERROR(AM237+0,0)","v":0},{"$f":"B237+C237+D237","v":0}]
[0,0,0,0,0]
[0,0,0,0,0]
[0,0,0,0,0]
[0,0,0,0,0]
[0,0,0,0,0]
[0,0,0,0,0]
[0,0,0,0,0]
[0,0,0,0,0]
[0,0,0,0,0]
[0,0,0,0,0]
[0,0,0,0,0]
[0,0,0,0,0]
[0,0,0,0,0]
[0,0,0,0,0]
[0,0,0,0,0]
[{"$f":"+V253+0","v":0},0,0,0,0]
[0,0,0,0,0]
[0,0,0,0,0]
[0,0,0,0,0]
[0,0,0,0,0]
[0,0,0,0,0]
[{"$f":"+V259+0","v":0},0,0,0,0]
[0,0,0,0,0]
[0,0,0,0,0]
[0,0,0,0,0]
[0,0,0,0,0]
[0,0,0,0,0]
[0,0,0,0,0]
[0,0,0,0,0]
[0,0,0,0,0]
[0,0,0,0,0]
[{"$f":"+V269+0","v":0},{"$f":"IFERROR(MID(AM269,SEARCH(\"CTO.\",AM269)+5,7),0)","v":0},{"$f":"IFERROR(MID(AM269,SEARCH(\"CTO \",AM269)+4,7),0)","v":0},{"$f":"IFERROR(AM269+0,0)","v":0},{"$f":"B269+C269+D269","v":0}]
[0,0,0,0,0]
[0,0,0,0,0]
[0,0,0,0,0]
[0,0,0,0,0]
[0,0,0,0,0]
[0,0,0,0,0]
[0,0,0,0,0]
[0,0,0,0,0]
[0,0,0,0,0]
[0,0,0,0,0]
[0,0,0,0,0]
[0,0,0,0,0]
[0,0,0,0,0]
[0,0,0,0,0]
[0,0,0,0,0]
[0,0,0,0,0]
[{"$f":"+V286+0","v":0},{"$f":"IFERROR(MID(AM286,SEARCH(\"CTO.\",AM286)+5,7),0)","v":0},{"$f":"IFERROR(MID(AM286,SEARCH(\"CTO \",AM286)+4,7),0)","v":0},{"$f":"IFERROR(AM286+0,0)","v":0},{"$f":"B286+C286+D286","v":0}]
[0,0,0,0,0]
[0,0,0,0,0]
[0,0,0,0,0]
[0,0,0,0,0]
[0,0,0,0,0]
[0,0,0,0,0]
[0,0,0,0,0]
[0,0,0,0,0]
[0,0,0,0,0]
[0,0,0,0,0]
[0,0,0,0,0]
[0,0,0,0,0]
[0,0,0,0,0]
[0,0,0,0,0]
[0,0,0,0,0]
[0,0,0,0,0]
[0,0,0,0,0]
[0,0,0,0,0]
[0,0,0,0,0]
[0,0,0,0,0]
[0,0,0,0,0]
[0,0,0,0,0]
[0,0,0,0,0]
[0,0,0,0,0]
[0,0,0,0,0]
[0,0,0,0,0]
[0,0,0,0,0]
[0,0,0,0,0]
[0,0,0,0,0]
[0,0,0,0,0]
[0,0,0,0,0]
[0,0,0,0,0]
[0,0,0,0,0]
[0,0,0,0,0]
[0,0,0,0,0]
[0,0,0,0,0]
[0,0,0,0,0]
[0,0,0,0,0]
[0,0,0,0,0]
[0,0,0,0,0]
[0,0,0,0,0]
[0,0,0,0,0]
[0,0,0,0,0]
[0,0,0,0,0]
[0,0,0,0,0]
[0,0,0,0,0]
[0,0,0,0,0]
[0,0,0,0,0]
[0,0,0,0,0]
[0,0,0,0,0]
[0,0,0,0,0]
[0,0,0,0,0]
[0,0,0,0,0]
[0,0,0,0,0]
[0,0,0,0,0]
[0,0,0,0,0]
[0,0,0,0,0]
[0,0,0,0,0]
[{"$f":"+V345+0","v":0},{"$f":"IFERROR(MID(AM345,SEARCH(\"CTO.\",AM345)+5,7),0)","v":0},{"$f":"IFERROR(MID(AM345,SEARCH(\"CTO \",AM345)+4,7),0)","v":0},{"$f":"IFERROR(AM345+0,0)","v":0},{"$f":"B345+C345+D345","v":0}]
[0,0,0,0,0]
[0,0,0,0,0]
[0,0,0,0,0]
[0,0,0,0,0]
[0,0,0,0,0]
[0,0,0,0,0]
[0,0,0,0,0]
[0,0,0,0,0]
[0,0,0,0,0]
[0,0,0,0,0]
[0,0,0,0,0]
[0,0,0,0,0]
[0,0,0,0,0]
[0,0,0,0,0]
[0,0,0,0,0]
[0,0,0,0,0]
[0,0,0,0,0]
[0,0,0,0,0]
[0,0,0,0,0]
[0,0,0,0,0]
[0,0,0,0,0]
[0,0,0,0,0]
[0,0,0,0,0]
[0,0,0,0,0]
[0,0,0,0,0]
[0,0,0,0,0]
[0,0,0,0,0]
[0,0,0,0,0]
[0,0,0,0,0]
[0,0,0,0,0]
[0,0,0,0,0]
[0,0,0,0,0]
[0,0,0,0,0]
[0,0,0,0,0]
[0,0,0,0,0]
[0,0,0,0,0]
[0,0,0,0,0]

{"sheet":"A-GF-F004 Información","index":2,"n_rows":64,"n_cols":3,"rows_kept":64,"cut":false,"hidden":false,"merged":[[31,0,31,1],[32,0,32,1],[33,0,33,1],[34,0,34,1],[0,1,3,1],[0,0,3,0],[5,0,5,2],[8,0,8,1],[9,0,9,1],[23,0,23,1],[25,0,25,1],[26,0,26,1],[27,0,27,1],[17,0,17,1],[19,0,19,1],[18,0,18,1],[13,0,13,1],[14,0,14,1],[16,0,16,2],[29,0,29,2],[30,0,30,1],[20,0,20,1],[22,0,22,1],[21,0,21,1],[24,0,24,1],[6,0,6,1],[7,0,7,1],[10,0,10,1],[11,0,11,1],[12,0,12,1],[35,0,35,1],[39,0,39,1],[40,0,40,1],[41,0,41,1],[42,0,42,1],[36,0,36,1],[37,0,37,1],[38,0,38,1],[49,0,49,1],[50,0,50,1],[51,0,51,1],[52,0,52,1],[43,0,43,1],[45,0,45,2],[46,0,46,1],[47,0,47,1],[48,0,48,1]]}
[null,"INGRESO DE INFORMACIÓN CONTRATO","Código: A-GF-F004"]
[null,null,"Versión: 04"]
[null,null,"Fecha: 16/10/2018"]
[null,null,"Página: 1 de 1"]
[]
["INFORMACION DEL CONTRATO"]
["MODALIDAD DEL CONTRATO"]
["FECHA INICIO DEL CONTRATO"]
["OBJETO DEL CONTRATO"]
["Ha habido modificaciones al Contrato?"]
["En que consisten?"]
["FECHA DE INICIO DE EJECUCIÓN (SEGÚN CONTRATO)"]
["FECHA FINALIZACIÓN DE EJECUCIÓN (SEGÚN CONTRATO)"]
["Valor del contrato ($)"]
["Valor de la modificación ($)"]
[]
["INFORMACION DEL CONTRATISTA"]
["IDENTIFICACIÓN"]
["CONTRATISTA",null,{"$f":"IFERROR(VLOOKUP(C18,'BASE RP'!A:W,23,FALSE),\"documento no valido\")","v":0}]
["No. CONTRATO",null,{"$f":"IFERROR(VLOOKUP(C18,'BASE RP'!A:AR,5,FALSE),\"documento no valido\")","v":0}]
["CDP CONTRATISTA",null,{"$f":"IFERROR(VLOOKUP($C$18,'BASE RP'!A:AE,31,FALSE)+0,\"documento no valido\")","v":0}]
["RP CONTRATISTA",null,{"$f":"IFERROR(VLOOKUP($C$18,'BASE RP'!A:AE,6,FALSE)+0,\"documento no valido\")","v":0}]
["DIRECCIÓN"]
["TELÉFONO"]
["CODIGÓ CPC"]
["CIUDAD:"]
["EXPEDIENTE"]
["CORREO ELECTRÓNICO"]
[]
["INFORMACION DE CUENTA Y PERIODO A FACTURAR"]
["PERIODO A CERTIFICAR (FECHA INICIAL)"]
["PERIODO A CERTIFICAR (FECHA FINAL)"]
["CUOTAS A PAGAR (SEGÚN CONTRATO)"]
["CUOTA QUE ESTA COBRANDO"]
["VALOR A COBRAR"]
["SALDO ACTUAL (ANTES DE ESTE PAGO)"]
["DEPENDENCIA"]
["N° A. OP"]
["NOMBRE AREA OPERATIVA"]
["NOMBRE SUPERVISOR 1"]
["CARGO SUPERVISOR 1"]
["NOMBRE SUPERVISOR 2"]
["CARGO SUPERVISOR 2"]
["FECHA EXPEDICION CERTIFICADO SUPERVISION"]
[]
["DOCUMENTOS ANEXOS AL CERTIFICADO DE SUPERVISION"]
["No. DEL DOCUMENTO EQUIVALENTE"]
["ENTRADA DE ALMACEN"]
["ACTA DE"]
["OTROS (ESPECIFICAR)"]
["Actividad Económica CIIU No."]
["Régimen"]
["Ciudad"]
[]
[]
["HISTORIAL DE CAMBIOS"]
[]
["VERSIÓN","FECHA","DESCRIPCIÓN"]
["01","2015-02-27","Creación del documento"]
["02","2016-05-13","Actualización del documento"]
["03","2017-06-28","Actualización del documento"]
["04","2018-10-16","Actualización del documento"]
[]
["ELABORÓ:\nDENNISSE A. MONROY ESPITIA\nGrupo de Contabilidad","REVISÓ:\nSANDRA M. SANJUAN ACERO\nCoordinadora Grupo de Contabilidad","APROBÓ:\nANDREA SABOGAL PORTILLA\nSecretaria General ( E)"]

{"sheet":"A-GF-F005 Supervisión","index":3,"n_rows":76,"n_cols":8,"rows_kept":76,"cut":false,"hidden":false,"merged":[[33,0,33,7],[63,5,63,7],[64,5,64,7],[63,1,63,3],[64,1,64,3],[60,3,60,4],[47,6,47,7],[47,1,47,3],[48,6,52,7],[62,1,62,3],[62,5,62,7],[14,0,14,7],[6,1,6,5],[7,1,7,6],[19,1,19,6],[22,0,22,7],[0,6,0,7],[1,6,1,7],[2,6,2,7],[3,6,3,7],[0,0,3,1],[0,2,3,5],[73,1,73,2],[73,3,73,5],[75,1,75,2],[75,3,75,5],[71,1,71,2],[71,3,71,5],[72,1,72,2],[72,3,72,5]]}
[null,null,"CERTIFICADO DE SUPERVISIÓN CONTRATISTAS",null,null,null,"Código: A-GF-F005"]
[null,null,null,null,null,null,"Versión: 02"]
[null,null,null,null,null,null,"Fecha: 28/06/2017"]
[null,null,null,null,null,null,"Página: 1 de 1"]
[]
["Contrato No.",{"$f":"+'A-GF-F004 Información'!C20","v":0},"Año",{"$f":"RIGHT(B6,4)","v":"0"},"Modalidad del contrato",{"$f":"+'A-GF-F004 Información'!C7","v":0},"Fecha acta de inicio",{"$f":"+'A-GF-F004 Información'!C12","v":"00:00:00"}]
["Contratista",{"$f":"+'A-GF-F004 Información'!C19","v":0},null,null,null,null,"C.C. o NIT",{"$f":"+'A-GF-F004 Información'!C18","v":0}]
["Objeto del Contrato",{"$f":"+'A-GF-F004 Información'!C9","v":0}]
["¿El contrato ha tenido modificaciones?",null,{"$f":"+'A-GF-F004 Información'!C10","v":0},null,"Descripción de la modificación",{"$f":"+'A-GF-F004 Información'!C11","v":0}]
["Periodo de ejecución (de acuerdo al contrato)",null,null,"del",{"$f":"+'A-GF-F004 Información'!C12","v":"00:00:00"},"al",{"$f":"+'A-GF-F004 Información'!C13","v":"00:00:00"}]
["Periodo a certificar",null,null,"del",{"$f":"+'A-GF-F004 Información'!C31","v":"00:00:00"},"al",{"$f":"+'A-GF-F004 Información'!C32","v":"00:00:00"}]
["Cuota a pagar",{"$f":"+'A-GF-F004 Información'!C34","v":0},"de",{"$f":"+'A-GF-F004 Información'!C33","v":0}]
[]
[]
["INFORMACION FINANCIERA DEL CONTRATO"]
[]
[null,"Valor inicial","Modificaciones","Valor total contrato","Saldo Actual","Menos este pago","Nuevo saldo"]
[null,{"$f":"+'A-GF-F004 Información'!C14","v":0},{"$f":"+'A-GF-F004 Información'!C15","v":0},{"$f":"B18+C18","v":0},{"$f":"+'A-GF-F004 Información'!C36","v":0},{"$f":"+'A-GF-F004 Información'!C35","v":0},{"$f":"E18-F18","v":0}]
[]
["Valor a pagar",{"$f":"UPPER(CLetras(F18))","v":"CERO PESOS M/CTE"}]
[]
[]
["COMO SUPERVISOR DEL CONTRATO ME PERMITO CERTIFICAR (PARA PAGO PARCIAL)"]
["   SI                    NO"]
[null,"Que el contratista cumplió con el OBJETO  para el cual se suscribió el contrato."]
[null,"Que el contratista cumplió con las OBLIGACIONES estipuladas en el contrato."]
[null,"Que el contratista cumplió con la entrega de los bienes y su ingreso fue reportado al almacén."]
[null,"Que se recibió el informe o productos o bienes parciales del contrato, lo cual fue revisado, aprobado y anexado al expediente."]
[null,"Que copia de esta certificación con sus soportes se entregó en la Oficina Jurídica para ser anexado a la carpeta del contrato."]
[null,"Que el contratista dio cumplimiento a lo establecido en las dispocisiones legales vigentes sobre el regimen de seguridad social, y cumplió con los aportes a salud y pensión."]
[null,"El Contratista expide certificación firmada por Representante Legal ó Revisor fiscal, según corresponda, donde indica que no tiene personal con relación laboral"]
[]
[]
["COMO SUPERVISOR DEL CONTRATO ME PERMITO CERTIFICAR (PARA PAGO TOTAL O ULTIMO PAGO)"]
["   SI                    NO"]
[null,"Que el contratista cumplió con el OBJETO  para el cual se suscribió el contrato."]
[null,"Que el contratista cumplió con las OBLIGACIONES estipuladas en el contrato."]
[null,"Que el contratista cumplió con el reintegro los elementos entregados bajo su responsabilidad."]
[null,"Que el contratista cumplió con la entrega de los bienes y su ingreso fue reportado al almacén."]
[null,"Que  el contratista  dio  pleno  cumplimiento  al  contrato,  dentro de los términos establecidos en el mismo."]
[null,"Que se recibieron los informes, productos o bienes solicitados en el contrato, los cuales una  vez  revisados y aprobados fueron anexados al expediente."]
[null,"Que copia de esta certificación con sus soportes se entregó en la Oficina Jurídica para ser anexado a la carpeta del contrato."]
[null,"Que el contratista dio cumplimiento a lo establecido en las dispocisiones legales vigentes sobre el regimen de seguridad social, y cumplió con los aportes a salud y pensión."]
[null,"Que el contratista entregó la totalidad de los productos en medio fisico y magnetico"]
[null,"El Contratista expide certificación firmada por Representante Legal ó Revisor fiscal, según corresponda, donde indica que no tiene personal con relación laboral"]
[]
[]
[null,"DISCRIMINACIÓN PRESUPUESTAL A CAUSAR",null,null,null,null,"RECIBIDO A SATISFACCIÓN"]
[null,"CDP CONTRATO","RP CONTRATO","VALOR",null,null,"Por lo anterior, autorizo el pago correspondiente, conforme se señala en la cláusula de valor y forma de pago del contrato."]
[null,{"$f":"+'A-GF-F004 Información'!C21","v":0},{"$f":"+'A-GF-F004 Información'!C22","v":0},{"$f":"+F18","v":0}]
[]
[]
[]
[]
["Se adjunta los siguientes documentos requeridos en el proceso:"]
[]
["FACTURA No.",{"$f":"IF('A-GF-F004 Información'!C47>0,'A-GF-F004 Información'!C47,\"\")","v":""},null,null,"ENTRADA DE ALMACÉN",{"$f":"IF('A-GF-F004 Información'!C48>0,'A-GF-F004 Información'!C48,\"\")","v":""}]
[]
["ACTA DE",{"$f":"IF('A-GF-F004 Información'!C49>0,'A-GF-F004 Información'!C49,\"\")","v":""},null,null,"OTROS (ESPECIFICAR)",{"$f":"IF('A-GF-F004 Información'!C50>0,'A-GF-F004 Información'!C50,\"\")","v":""}]
[]
["Fecha de Expedición del Certificado de Supervisión",null,null,{"$f":"+'A-GF-F004 Información'!C44","v":"00:00:00"}]
[]
[null,"FIRMA",null,null,null,"FIRMA"]
["SUPERVISOR (1)",{"$f":"IF('A-GF-F004 Información'!C40>0,'A-GF-F004 Información'!C40,\"\")","v":""},null,null,"SUPERVISOR (2)",{"$f":"IF('A-GF-F004 Información'!C42>0,'A-GF-F004 Información'!C42,\"\")","v":""}]
["Cargo",{"$f":"IF('A-GF-F004 Información'!C41>0,'A-GF-F004 Información'!C41,\"\")","v":""},null,null,"Cargo",{"$f":"IF('A-GF-F004 Información'!C43>0,'A-GF-F004 Información'!C43,\"\")","v":""}]
[]
[]
[]
[]
["HISTORIAL DE CAMBIOS"]
[]
["VERSIÓN","FECHA",null,"DESCRIPCIÓN"]
["01","2015-02-27",null,"Creación del documento"]
["02","2017-06-28",null,"Actualización del documento"]
[]
["ELABORÓ:                          CAROLINE SAIZ MENESES","REVISÓ:                                                                     CAROLINA ROZO PRIETO",null,"APROBÓ:                                                                                       ADRIANA YAZMIN PORTILLO "]

{"sheet":"A-GF-F006 Equivalente","index":4,"n_rows":50,"n_cols":11,"rows_kept":50,"cut":false,"hidden":false,"merged":[[8,0,8,7],[4,0,4,7],[36,0,36,2],[36,3,36,5],[36,6,36,10],[27,0,27,6],[27,8,27,10],[30,8,30,10],[31,1,32,1],[31,2,32,5],[31,6,32,6],[31,8,32,10],[33,1,33,6],[33,8,33,10],[34,0,34,10],[35,0,35,2],[37,0,37,2],[37,3,37,5],[37,6,37,10],[38,3,38,4],[38,7,38,10],[35,3,35,5],[35,6,35,10],[25,0,26,1],[25,2,26,3],[25,4,26,4],[25,5,26,6],[25,8,25,10],[20,0,24,1],[20,2,24,6],[20,8,20,10],[21,8,23,10],[19,0,19,1],[19,2,19,3],[19,5,19,6],[19,8,19,10],[0,2,3,5],[0,0,3,1],[8,8,8,10],[9,0,9,6],[9,7,33,7],[9,8,10,10],[10,2,10,6],[11,2,11,6],[11,8,12,8],[11,9,12,9],[11,10,12,10],[12,2,12,6],[13,8,17,10],[17,2,17,6],[18,0,18,6],[18,8,18,10],[0,6,0,7],[1,6,1,7],[2,6,2,7],[3,6,3,7],[0,8,3,10],[4,8,5,10],[6,8,7,10],[5,0,5,7],[6,0,6,7],[7,0,7,7],[49,2,49,3],[46,2,46,3],[45,2,45,3],[44,2,44,3],[44,4,44,6],[45,4,45,6],[46,4,46,6],[49,4,49,6],[47,2,47,3],[47,4,47,6]]}
[null,null,"DOCUMENTO EQUIVALENTE ",null,null,null,"Código: A-GF-F006",null,"DOCUMENTO EQUIVALENTE A LA FACTURA"]
[null,null,null,null,null,null,"Versión: 03"]
[null,null,null,null,null,null,"Fecha: 16/10/2018"]
[null,null,null,null,null,null,"Página: 1 de 1"]
["Instituto de Hidrología, Meteorología y Estudios Ambientales",null,null,null,null,null,null,null,{"$f":"+'A-GF-F004 Información'!C47","v":0}]
["NIT. 830.000.602 - 5"]
["Calle 25 D No. 96B-70",null,null,null,null,null,null,null,"CONSECUTIVO CONTABILIDAD"]
["TELEFONO: 3527160"]
["www.ideam.gov.co"]
["CLIENTE",null,null,null,null,null,null,"NO MODIFICAR","F E C  H A"]
["NOMBRE:",null,{"$f":"+'A-GF-F004 Información'!C19","v":0}]
["NIT/CC",null,{"$f":"+'A-GF-F004 Información'!C18","v":0},null,null,null,null,null,"DIA","MES","AÑO"]
["DIRECCIÓN",null,{"$f":"+'A-GF-F004 Información'!C23","v":0}]
["TELÉFONO",null,{"$f":"+'A-GF-F004 Información'!C24","v":0},null,null,null,null,null,{"$f":"+'A-GF-F004 Información'!C44","v":"00:00:00"}]
["CIUDAD:",null,{"$f":"+'A-GF-F004 Información'!C26","v":0}]
["EXPEDIENTE",null,{"$f":"+'A-GF-F004 Información'!C27","v":0}]
[{"$f":"+'A-GF-F004 Información'!A25:B25","v":"CODIGÓ CPC"},null,{"$f":"+'A-GF-F004 Información'!C25","v":0}]
["CORREO ELECTRÓNICO",null,{"$f":"+'A-GF-F004 Información'!C28","v":0}]
["CONCEPTO",null,null,null,null,null,null,null,"VALOR"]
["CONTRATO No.",null,{"$f":"+'A-GF-F004 Información'!C20","v":0},null,"PAGO No.",{"$f":"+'A-GF-F004 Información'!C34","v":0}]
["BREVE DESCRIPCIÓN DEL OBJETO",null,{"$f":"+'A-GF-F004 Información'!C9","v":0}]
[null,null,null,null,null,null,null,null,{"$f":"+'A-GF-F004 Información'!C35","v":0}]
[]
[]
[]
["PERIODO A PAGAR",null,{"$f":"+'A-GF-F004 Información'!C31","v":"00:00:00"},null,"al",{"$f":"+'A-GF-F004 Información'!C32","v":"00:00:00"}]
[]
["DATOS DE LA CUENTA"]
["NÚMERO DE LA CUENTA",null,null,{"$f":"VLOOKUP(C12,'BASE RP'!A:AN,26,FALSE)","v":0}]
["ENTIDAD FINANCIERA",null,null,{"$f":"VLOOKUP(C12,'BASE RP'!A:AN,29,FALSE)","v":0}]
["TIPO DE CUENTA",null,null,{"$f":"VLOOKUP(C12,'BASE RP'!A:AN,25,FALSE)","v":0}]
[null,"SON:",{"$f":"+'A-GF-F005 Supervisión'!B20","v":"CERO PESOS M/CTE"},null,null,null,"SUB-TOTAL",null,{"$f":"+I22","v":0}]
[]
[null,"VALOR NETO A PAGAR",null,null,null,null,null,null,{"$f":"+I32","v":0}]
["Declaro que los aportes al Sistema de Seguridad Social, derivados del presente cobro, fueron pagados mediante planillas  de las cuales se adjunta fotocopia."]
["FIRMA SUPERVISOR",null,null,"FIRMA SUPERVISOR",null,null,"FIRMA Y C.C. CONTRATISTA "]
[{"$f":"+'A-GF-F005 Supervisión'!B64","v":""},null,null,{"$f":"+'A-GF-F005 Supervisión'!F64","v":""},null,null,{"$f":"+'A-GF-F004 Información'!C19","v":0}]
[{"$f":"+'A-GF-F005 Supervisión'!B65","v":""},null,null,{"$f":"+'A-GF-F005 Supervisión'!F65","v":""},null,null,{"$f":"+'A-GF-F004 Información'!C18","v":0}]
[null,"RÉGIMEN:",{"$f":"+'A-GF-F004 Información'!C52","v":0},"Actividad Económica CIIU No.",null,{"$f":"+'A-GF-F004 Información'!C51","v":0},"De la ciudad de",{"$f":"IF(+'A-GF-F004 Información'!C53=0,\"\",'A-GF-F004 Información'!C53)","v":""}]
[]
[]
[]
[null,"HISTORIAL DE CAMBIOS"]
[]
[null,"VERSIÓN","FECHA",null,"DESCRIPCIÓN"]
[null,"01","2015-02-27",null,"Creación del documento"]
[null,"02","2017-06-28",null,"Actualización del documento"]
[null,"03","2018-10-16",null,"Actualización del documento"]
[]
[null,"ELABORÓ:\nDENNISSE A. MONROY ESPITIA\nGrupo de Contabilidad","REVISÓ:\nSANDRA M. SANJUAN ACERO\nCoordinadora Grupo de Contabilidad",null,"APROBÓ:\nANDREA SABOGAL PORTILLA\nSecretaria General ( E)"]

{"sheet":"A-GF-F017 Lista","index":5,"n_rows":59,"n_cols":18,"rows_kept":59,"cut":false,"hidden":true,"merged":[[0,1,3,5],[0,6,3,16],[0,17,0,21],[1,17,1,21],[2,17,2,21],[3,17,3,21],[9,11,9,12],[9,14,9,20],[4,17,4,20],[5,2,5,4],[5,5,5,12],[5,17,5,20],[6,2,6,4],[6,5,6,11],[7,2,7,4],[7,5,7,11],[8,2,8,4],[8,5,8,6],[8,14,8,20],[11,8,11,9],[13,11,13,12],[13,13,13,17],[13,19,13,20],[14,3,14,10],[14,11,14,12],[14,13,14,17],[14,19,14,20],[15,3,15,10],[15,11,15,12],[15,13,15,17],[15,19,15,20],[16,3,16,10],[16,11,16,12],[16,13,16,17],[16,19,16,20],[17,3,17,10],[17,11,17,12],[17,13,17,17],[17,19,17,20],[18,3,18,10],[18,11,18,12],[18,13,18,17],[18,19,18,20],[19,3,19,10],[19,11,19,12],[19,13,19,17],[19,19,19,20],[20,3,20,10],[20,11,20,12],[20,13,20,17],[20,19,20,20],[27,1,39,21],[21,3,21,10],[21,11,21,12],[21,13,21,17],[21,19,21,20],[22,3,22,10],[22,11,22,12],[22,13,22,17],[22,19,22,20],[23,3,23,10],[23,11,23,12],[23,13,23,17],[23,19,23,20],[24,3,24,11],[43,2,43,5],[43,6,43,7],[43,8,43,9],[43,12,43,14],[43,15,43,19],[42,2,42,5],[42,6,42,7],[42,8,42,9],[42,12,42,14],[42,15,42,19],[53,1,53,4],[53,5,53,6],[53,7,53,11],[46,4,46,12],[48,1,48,11],[50,1,50,4],[50,5,50,6],[50,7,50,11],[51,1,51,4],[51,5,51,6],[51,7,51,11]]}
[null,null,null,null,null,null,"LISTA DE CHEQUEO Y REVISIÓN DE DOCUMENTOS\nDOCUMENTO EQUIVALENTE Y/O FACTURA CONTRATISTAS",null,null,null,null,null,null,null,null,null,null,"Código: A-GF-F017"]
[null,null,null,null,null,null,null,null,null,null,null,null,null,null,null,null,null,"Versión: 01"]
[null,null,null,null,null,null,null,null,null,null,null,null,null,null,null,null,null,"Fecha: 16/10/2018"]
[null,null,null,null,null,null,null,null,null,null,null,null,null,null,null,null,null,"Página: 1 de 1"]
[null,null,null,null,null,null,null,null,null,null,null,null,null,null,null,null,null,"RADICADO CONTABILIDAD"]
[null,null,"NOMBRE:",null,null,{"$f":"+'A-GF-F004 Información'!C19","v":0}]
[null,null,"CEDULA:",null,null,{"$f":"+'A-GF-F004 Información'!C18","v":0}]
[null,null,"DEPENDENCIA:",null,null,{"$f":"+'A-GF-F004 Información'!C37","v":0}]
[null,null,"N° CONTRATO:",null,null,{"$f":"+'A-GF-F004 Información'!C20","v":0},null,null,null,null,null,null,null,null,"ORFEO"]
[null,null,null,null,null,null,null,null,null,"FOLIOS"]
[]
[null,null,null,"AREA OPERATIVA",null,null,"N° A. OP",{"$f":"+'A-GF-F004 Información'!C38","v":0},{"$f":"+'A-GF-F004 Información'!C39","v":0}]
[]
[null,null,null,null,null,null,null,null,null,null,null,"ENTREGA",null,"OBSERVACIONES"]
[null,null,"1.","DOCUMENTO EQUIVALENTE O FACTURA"]
[null,null,"2.","CERTIFICADO DE SUPERVISIÓN "]
[null,null,"3.","DECLARACIÓN JURAMENTADA"]
[null,null,"4.","PLANILLA DE SEGURIDAD SOCIAL"]
[null,null,"5.","INFORME DE CONTRATISTA"]
[null,null,"6.","PAGO O FORMATO PARA PAGO DE AFC"]
[null,null,"7.","REGISTRO CIVIL - IDENTIFICACION DE DEPENDIENTES"]
[null,null,"8.","CERTIFICADO VIGENTE DE PAGO DE INTERESES DE VIVIENDA"]
[null,null,"9.","SOPORTE DE PAGO MEDICINA PREPAGADA, SEGUROS O PLANES COMPLEMENTARIOS"]
[null,null,"10.","OTRO"]
[null,null,null,"RECIBIÓ: _________________________________________________"]
[]
[]
[]
[]
[]
[]
[]
[]
[]
[]
[]
[]
[]
[]
[]
[]
[]
[null,null,"CUENTA POR PAGAR",null,null,null,null,null,null,null,null,null,"NOMBRE RESPONSABLE"]
[null,null,"OBLIGACIÓN",null,null,null,null,null,null,null,null,null,"NOMBRE RESPONSABLE"]
[]
[]
[null,null,null,null,"REVISÓ: "]
[]
[null,"HISTORIAL DE CAMBIOS"]
[]
[null,"VERSIÓN",null,null,null,"FECHA",null,"DESCRIPCIÓN"]
[null,"01",null,null,null,"2018-10-16",null,"Creación del documento"]
[]
[null,"ELABORÓ:\nDENNISSE A. MONROY ESPITIA\nGrupo de Contabilidad",null,null,null,"REVISÓ:\nSANDRA M. SANJUAN ACERO\nCoordinadora Grupo de Contabilidad",null,"APROBÓ:\nANDREA SABOGAL PORTILLA\nSecretaria General ( E)"]
[]
[]
[]
[]
[null,null,null,null,null,null,null,null,null,null,null,null,null,null,null,null,null,","]

{"sheet":"Criterios","index":6,"n_rows":5,"n_cols":4,"rows_kept":5,"cut":false,"hidden":true,"merged":[]}
["Tipo Documento Soporte","SI","Inclusión de obligaciones y Cesión del contrato","Simplificado"]
["CONTRATO DE PRESTACION DE SERVICIOS","NO","Modificación en tiempo de ejecución","Común"]
["CONTRATO DE CONSULTORIA",null,"Modificación en tiempo de ejecución y valor del contrato"]
[null,null,"Modificación en valor del contrato"]
[null,null,"Terminación anticipada del contrato"]